Workbook

Sheet Ceník
I1: Ceník SCASERV a.s. - Platnost od 01. 07. 2025
I2: SEZNAM MATERIÁLU
I4: Zákazník: | P4: Zpracoval: | AA4: Hmotnost> | AB4: =SUMPRODUCT($P$8:$P$853,AB8:AB853)/1000 -> 0 | AC4: 0 | AD4: 0 | AE4: 0 | AF4: 0 | AG4: 0 | AH4: 0 | AI4: 0 | AJ4: 0 | AK4: 0 | AL4: 0 | AM4: 0 | AN4: 0
I5: Akce: | P5: Datum: | AA5: datum nakládky:
B6: Kon 25kN | C6: ScaFlex | D6: LG50 | E6: LG50 SCA | F6: LG50 ZAK | G6: Sprint 75 | I6: Produkt | J6: Sortiment | K6: Komponent | L6: Kód | M6: Kód Editace | N6: Označení komponentu | O6: Component description | P6: Hmotnost 1 ks [kg] | Q6: Prodejní cena 1 ks [Kč] | R6: Nájem 1 ks za 1 den [Kč] | S6: PROJEKCE [ks] | T6: Hmotnost celkem [kg] | U6: Cena celkem [Kč] | V6: Nájem celkem [Kč / den] | Y6: Plocha Bednění [m2] | Z6: Plocha Desky [m2] | AA6: Diference | AB6: LKW 1 | AC6: LKW 2 | AD6: LKW 3 | AE6: LKW 4 | AF6: LKW 5 | AG6: LKW 6 | AH6: LKW 7 | AI6: LKW 8 | AJ6: LKW 9 | AK6: LKW 10 | AL6: LKW xx | AM6: LKW xx | AN6: LKW xx
C8: 1 | I8: Bednění | J8: Dřevěné nosníky | K8: řada H20 | L8: 2210108 | N8: H20 Nosník dřevěný - 0,80m (N) | O8: TFB 200 Beam - 0.80m nonstandard | P8: 4 | Q8: 195 | R8: 1.13 | T8: =IF(ISERROR(S8*P8),0,IF(S8*P8<>0,S8*P8,0)) -> 0 | U8: =IF(ISERROR(S8*Q8),0,IF(S8*Q8<>0,S8*Q8,0)) -> 0 | V8: =IF(ISERROR(S8*R8),0,IF(S8*R8<>0,S8*R8,0)) -> 0 | AA8: =S8-SUM(AB8:AN8) -> 0
C9: 1 | I9: Bednění | J9: Dřevěné nosníky | K9: řada H20 | L9: 2210111 | N9: H20 Nosník dřevěný - 1,10m | O9: TFB 200 Beam - 1.10m nonstandard | P9: 6 | Q9: 310 | R9: 1.55 | T9: =IF(ISERROR(S9*P9),0,IF(S9*P9<>0,S9*P9,0)) -> 0 | U9: =IF(ISERROR(S9*Q9),0,IF(S9*Q9<>0,S9*Q9,0)) -> 0 | V9: =IF(ISERROR(S9*R9),0,IF(S9*R9<>0,S9*R9,0)) -> 0 | AA9: 0
C10: 1 | I10: Bednění | J10: Dřevěné nosníky | K10: řada H20 | L10: 2210114 | M10: 100 | N10: H20 Nosník dřevěný - 1,45m | O10: TFB 200 Beam - 1.45 m | P10: 7.25 | Q10: 408 | R10: 2.04 | T10: 0 | U10: 0 | V10: 0 | AA10: 0
C11: 1 | I11: Bednění | J11: Dřevěné nosníky | K11: řada H20 | L11: 2210119 | N11: H20 Nosník dřevěný - 1,90m | O11: TFB 200 Beam - 1.90 m | P11: 9.5 | Q11: 535 | R11: 2.67 | T11: 0 | U11: 0 | V11: 0 | AA11: 0
C12: 1 | I12: Bednění | J12: Dřevěné nosníky | K12: řada H20 | L12: 2210124 | N12: H20 Nosník dřevěný - 2,45m | O12: TFB 200 Beam - 2.45 m | P12: 12.25 | Q12: 690 | R12: 3.44 | T12: 0 | U12: 0 | V12: 0 | AA12: 0
C13: 1 | I13: Bednění | J13: Dřevěné nosníky | K13: řada H20 | L13: 2210126 | N13: H20 Nosník dřevěný - 2,65m | O13: TFB 200 Beam - 2.65 m | P13: 13.25 | Q13: 746 | R13: 3.72 | T13: =IF(ISERROR(S13*P13),0,IF(S13*P13<>0,S13*P13,0)) -> 0 | U13: =IF(ISERROR(S13*Q13),0,IF(S13*Q13<>0,S13*Q13,0)) -> 0 | V13: =IF(ISERROR(S13*R13),0,IF(S13*R13<>0,S13*R13,0)) -> 0 | AA13: 0
C14: 1 | I14: Bednění | J14: Dřevěné nosníky | K14: řada H20 | L14: 2210129 | M14: 2002900 | N14: H20 Nosník dřevěný - 2,90m | O14: TFB 200 Beam - 2.90 m | P14: 14.5 | Q14: 816 | R14: 4.07 | T14: 0 | U14: 0 | V14: 0 | AA14: 0
C15: 1 | I15: Bednění | J15: Dřevěné nosníky | K15: řada H20 | L15: 2210133 | N15: H20 Nosník dřevěný - 3,30m | O15: TFB 200 Beam - 3.30 m | P15: 16.5 | Q15: 929 | R15: 4.62 | T15: 0 | U15: 0 | V15: 0 | AA15: 0
C16: 1 | I16: Bednění | J16: Dřevěné nosníky | K16: řada H20 | L16: 2210136 | N16: H20 Nosník dřevěný - 3,60m | O16: TFB 200 Beam - 3.60 m | P16: 18 | Q16: 1013 | R16: 5.04 | T16: 0 | U16: 0 | V16: 0 | AA16: 0
C17: 1 | I17: Bednění | J17: Dřevěné nosníky | K17: řada H20 | L17: 2210139 | M17: 2003900 | N17: H20 Nosník dřevěný - 3,90m | O17: TFB 200 Beam - 3.90 m | P17: 19.5 | Q17: 1097 | R17: 5.46 | T17: 0 | U17: 0 | V17: 0 | AA17: 0
C18: 1 | I18: Bednění | J18: Dřevěné nosníky | K18: řada H20 | L18: 2210142 | N18: H20 Nosník dřevěný - 4,20m | O18: TFB 200 Beam - 4.20 m | P18: 21 | Q18: 1182 | R18: 5.88 | T18: 0 | U18: 0 | V18: 0 | AA18: 0
C19: 1 | I19: Bednění | J19: Dřevěné nosníky | K19: řada H20 | L19: 2210145 | N19: H20 Nosník dřevěný - 4,50m | O19: TFB 200 Beam - 4.50 m | P19: 22.5 | Q19: 1266 | R19: 6.3 | T19: 0 | U19: 0 | V19: 0 | AA19: 0
C20: 1 | I20: Bednění | J20: Dřevěné nosníky | K20: řada H20 | L20: 2210149 | N20: H20 Nosník dřevěný - 4,90m | O20: TFB 200 Beam - 4.90 m | P20: 24.5 | Q20: 1379 | R20: 6.86 | T20: 0 | U20: 0 | V20: 0 | AA20: 0
C21: 1 | I21: Bednění | J21: Dřevěné nosníky | K21: řada H20 | L21: 2210159 | M21: 100 | N21: H20 Nosník dřevěný - 5,90m | O21: TFB 200 Beam - 5.0 m | P21: 25 | Q21: 1660 | R21: 8.37 | T21: 0 | U21: 0 | V21: 0 | AA21: 0
C22: 1 | I22: Bednění | J22: Dřevěné nosníky | K22: řada H20 | L22: ZAK2210111 | N22: H20 Nosník dřevěný - 1,10m (N) | O22: TFB 200 Beam - 1.10m nonstandard | P22: 6 | Q22: 255 | R22: 1.96 | T22: 0 | U22: 0 | V22: 0 | AA22: 0
C23: 1 | I23: Bednění | J23: Dřevěné nosníky | K23: řada H20 | L23: ZAK2210114 | N23: H20 Nosník dřevěný - 1,45m | O23: TFB 200 Beam - 1.45 m nonstandard | P23: 7.25 | Q23: 335 | R23: 3.56 | T23: 0 | U23: 0 | V23: 0 | AA23: 0
I24: Bednění | J24: Dřevěné nosníky | K24: Spojky | L24: H563001 | N24: Spojka H20/H20 | O24: UNI-CLAMP | P24: 0.55 | Q24: 695 | R24: 1.82 | T24: 0 | U24: 0 | V24: 0 | AA24: 0
I25: Bednění | J25: Kotevní příslušenství | K25: Příslušenství | L25: 4207002 | N25: Montážní klíč Mk 19/22 stříbrný | O25: Construction Spanner Mk 19/22 silver | P25: 0.43 | Q25: 323 | R25: jen prodej | T25: 0 | U25: 0 | V25: 0 | AA25: 0
I26: Bednění | J26: Kotevní příslušenství | K26: Příslušenství | L26: 4207003 | N26: Montážní klíč Mk 19/22 hnědý | O26: Construction Spanner Mk 19/22 brown | P26: 0.43 | Q26: 323 | R26: jen prodej | T26: 0 | U26: 0 | V26: 0 | AA26: 0
I27: Bednění | J27: Kotevní příslušenství | K27: Příslušenství | L27: 4207004 | N27: Montážní klíč Mk 19/22 černý | O27: Construction Spanner Mk 19/22 black | P27: 0.43 | Q27: 299 | R27: jen prodej | T27: 0 | U27: 0 | V27: 0 | AA27: 0
I28: Bednění | J28: Kotevní příslušenství | K28: Příslušenství | L28: 4207005 | N28: Montážní klíč Mk 19/22 stříbrný UNI | O28: Construction Spanner Mk 19/22 silver with hammer | P28: 0.53 | Q28: 444 | R28: jen prodej | T28: 0 | U28: 0 | V28: 0 | AA28: 0
I29: Bednění | J29: Kotevní příslušenství | K29: Příslušenství | L29: 4207006 | N29: Montážní klíč Mk 19/22 černý UNI | O29: Construction Spanner Mk 19/22 black with hammer | P29: 0.53 | Q29: 429 | R29: jen prodej | T29: 0 | U29: 0 | V29: 0 | AA29: 0
B30: 1 | I30: Bednění | J30: Kotevní příslušenství | K30: Příslušenství | L30: 4204650 | N30: Podložka závitové tyče R22 | O30: Threaded Rod plate R22 | P30: 0.0183 | Q30: 50 | R30: jen prodej | T30: 0 | U30: 0 | V30: 0 | AA30: 0
B31: 1 | I31: Bednění | J31: Kotevní příslušenství | K31: Příslušenství | L31: 4204700 | N31: Závitová tyč M20-1.0M (tř.8.8) | O31: Threaded Rod M20-1.0m (class 8.8) | P31: 2.43 | Q31: 333 | R31: jen prodej | T31: 0 | U31: 0 | V31: 0 | AA31: 0
D32: 1 | I32: Bednění | J32: LOGIK 50 | K32: Příslušenství | L32: 590311 | N32: LG50 Hák jeřábový | O32: Logik50 Crane Hook | P32: 4.26 | Q32: 10334 | R32: 24.29 | T32: 0 | U32: 0 | V32: 0 | AA32: 0
E33: 1 | I33: Bednění | J33: LOGIK 50 | K33: Příslušenství | L33: SCA590311 | N33: SCA -LG50 Hák jeřábový | O33: Logik50 Crane Hook | P33: 4.26 | Q33: 10334 | R33: 24.29 | T33: 0 | U33: 0 | V33: 0 | AA33: 0
D34: 1 | I34: Bednění | J34: LOGIK 50 | K34: Příslušenství | L34: 590802 | N34: LG50 Kotevní spojka | O34: LG50 Anchor clamp | P34: 2.4 | Q34: 401 | R34: 0.99 | T34: 0 | U34: 0 | V34: 0 | AA34: 0
I35: Bednění | J35: LOGIK 50 | K35: Příslušenství | L35: 870478 | N35: LG50 Nádstavec jednostr opěry | O35: LG50 A-Frame Extension | P35: 0 | Q35: 401 | R35: 0.99 | T35: 0 | U35: 0 | V35: 0 | AA35: 0
D36: 1 | I36: Bednění | J36: LOGIK 50 | K36: Příslušenství | L36: 590301 | N36: LG50 Nastavitelná spojka 0-15 cm | O36: Logik50 Adjustable Clamp | P36: 5.4 | Q36: 2386 | R36: 6.38 | T36: 0 | U36: 0 | V36: 0 | AA36: 0
D37: 1 | I37: Bednění | J37: LOGIK 50 | K37: Panely | L37: 590134 | N37: LG50 Panel 1200 x 300 | O37: LG50 Panel 1200 x 300 | P37: 17.53 | Q37: 6796 | R37: 19.98 | T37: 0 | U37: 0 | V37: 0 | Y37: 0.36 | AA37: 0
E38: 1 | I38: Bednění | J38: LOGIK 50 | K38: Panely | L38: SCA590134 | N38: SCA -LG50 Panel 1200 x 300 | O38: SCA -LG50 Panel 1200 x 300 | P38: 17.53 | Q38: 6796 | R38: 19.98 | T38: 0 | U38: 0 | V38: 0 | Y38: 0.36 | AA38: 0
F39: 1 | I39: Bednění | J39: LOGIK 50 | K39: Panely | L39: ZAK590134 | N39: ZAK -LG50 Panel 1200 x 300 | O39: ZAK -LG50 Panel 1200 x 300 | P39: 17.53 | Q39: 6796 | R39: 19.98 | T39: 0 | U39: 0 | V39: 0 | Y39: 0.36 | AA39: 0
D40: 1 | I40: Bednění | J40: LOGIK 50 | K40: Panely | L40: 590133 | N40: LG50 Panel 1200 x 450 | O40: LG50 Panel 1200 x 450 | P40: 22.59 | Q40: 7118 | R40: 20.93 | T40: 0 | U40: 0 | V40: 0 | Y40: 0.54 | AA40: =S40-SUM(AB40:AN40) -> 0
E41: 1 | I41: Bednění | J41: LOGIK 50 | K41: Panely | L41: SCA590133 | N41: SCA -LG50 Panel 1200 x 450 | O41: LG50 Panel 1200 x 450 | P41: 22.59 | Q41: 7118 | R41: 20.93 | T41: 0 | U41: 0 | V41: 0 | Y41: 0.54 | AA41: 0
F42: 1 | I42: Bednění | J42: LOGIK 50 | K42: Panely | L42: ZAK590133 | N42: ZAK -LG50 Panel 1200 x 450 | O42: ZAK -LG50 Panel 1200 x 450 | P42: 22.59 | Q42: 7118 | R42: 20.93 | T42: 0 | U42: 0 | V42: 0 | Y42: 0.54 | AA42: 0
D43: 1 | I43: Bednění | J43: LOGIK 50 | K43: Panely | L43: 590132 | N43: LG50 Panel 1200 x 600 | O43: LG50 Panel 1200 x 600 | P43: 29.85 | Q43: 8525 | R43: 25.06 | T43: 0 | U43: 0 | V43: 0 | Y43: 0.72 | AA43: 0
E44: 1 | I44: Bednění | J44: LOGIK 50 | K44: Panely | L44: SCA590132 | N44: SCA -LG50 Panel 1200 x 600 | O44: SCA -LG50 Panel 1200 x 600 | P44: 29.85 | Q44: 8525 | R44: 25.06 | T44: 0 | U44: 0 | V44: 0 | Y44: 0.72 | AA44: 0
F45: 1 | I45: Bednění | J45: LOGIK 50 | K45: Panely | L45: ZAK590132 | N45: ZAK -LG50 Panel 1200 x 600 | O45: ZAK -LG50 Panel 1200 x 600 | P45: 29.85 | Q45: 8525 | R45: 25.06 | T45: 0 | U45: 0 | V45: 0 | Y45: 0.72 | AA45: 0
D46: 1 | I46: Bednění | J46: LOGIK 50 | K46: Panely | L46: 590135 | N46: LG50 Panel 1200 x 750 | O46: LG50 Panel 1200 x 750 | P46: 36.395 | Q46: 8843 | R46: 26 | T46: 0 | U46: 0 | V46: 0 | Y46: 0.9 | AA46: 0
E47: 1 | I47: Bednění | J47: LOGIK 50 | K47: Panely | L47: SCA590135 | N47: SCA -LG50 Panel 1200 x 750 | O47: SCA -LG50 Panel 1200 x 750 | P47: 36.395 | Q47: 8843 | R47: 26 | T47: 0 | U47: 0 | V47: 0 | Y47: 0.9 | AA47: 0
F48: 1 | I48: Bednění | J48: LOGIK 50 | K48: Panely | L48: ZAK590135 | N48: ZAK -LG50 Panel 1200 x 750 | O48: ZAK -LG50 Panel 1200 x 750 | P48: 36.395 | Q48: 8843 | R48: 26 | T48: 0 | U48: 0 | V48: 0 | Y48: 0.9 | AA48: 0
D49: 1 | I49: Bednění | J49: LOGIK 50 | K49: Panely | L49: 590131 | N49: LG50 Panel 1200 x 900 | O49: LG50 Panel 1200 x 900 | P49: 41.9 | Q49: 10101 | R49: 29.7 | T49: 0 | U49: 0 | V49: 0 | Y49: 1.08 | AA49: 0
E50: 1 | I50: Bednění | J50: LOGIK 50 | K50: Panely | L50: SCA590131 | N50: SCA -LG50 Panel 1200 x 900 | O50: SCA -LG50 Panel 1200 x 900 | P50: 41.9 | Q50: 10101 | R50: 29.7 | T50: 0 | U50: 0 | V50: 0 | Y50: 1.08 | AA50: 0
F51: 1 | I51: Bednění | J51: LOGIK 50 | K51: Panely | L51: ZAK590131 | N51: ZAK -LG50 Panel 1200 x 900 | O51: ZAK -LG50 Panel 1200 x 900 | P51: 41.9 | Q51: 10101 | R51: 29.7 | T51: 0 | U51: 0 | V51: 0 | Y51: 1.08 | AA51: 0
D52: 1 | I52: Bednění | J52: LOGIK 50 | K52: Panely | L52: 590122 | N52: LG50 Panel 1500 x 300 | O52: LG50 Panel 1500 x 300 | P52: 21.34 | Q52: 8131 | R52: 23.91 | T52: 0 | U52: 0 | V52: 0 | Y52: 0.45 | AA52: 0
E53: 1 | I53: Bednění | J53: LOGIK 50 | K53: Panely | L53: SCA590122 | N53: SCA -LG50 Panel 1500 x 300 | O53: SCA -LG50 Panel 1500 x 300 | P53: 21.34 | Q53: 8131 | R53: 23.91 | T53: 0 | U53: 0 | V53: 0 | Y53: 0.45 | AA53: 0
F54: 1 | I54: Bednění | J54: LOGIK 50 | K54: Panely | L54: ZAK590122 | N54: ZAK -LG50 Panel 1500 x 300 | O54: ZAK -LG50 Panel 1500 x 300 | P54: 21.34 | Q54: 8131 | R54: 23.91 | T54: 0 | U54: 0 | V54: 0 | Y54: 0.45 | AA54: 0
D55: 1 | I55: Bednění | J55: LOGIK 50 | K55: Panely | L55: 590123 | N55: LG50 Panel 1500 x 450 | O55: LG50 Panel 1500 x 450 | P55: 27.35 | Q55: 8929 | R55: 26.25 | T55: 0 | U55: 0 | V55: 0 | Y55: 0.675 | AA55: 0
E56: 1 | I56: Bednění | J56: LOGIK 50 | K56: Panely | L56: SCA590123 | N56: SCA -LG50 Panel 1500 x 450 | O56: SCA -LG50 Panel 1500 x 450 | P56: 27.35 | Q56: 8929 | R56: 26.25 | T56: 0 | U56: 0 | V56: 0 | Y56: 0.675 | AA56: 0
F57: 1 | I57: Bednění | J57: LOGIK 50 | K57: Panely | L57: ZAK590123 | N57: ZAK -LG50 Panel 1500 x 450 | O57: ZAK -LG50 Panel 1500 x 450 | P57: 27.35 | Q57: 8929 | R57: 26.25 | T57: 0 | U57: 0 | V57: 0 | Y57: 0.675 | AA57: 0
D58: 1 | I58: Bednění | J58: LOGIK 50 | K58: Panely | L58: 590121 | N58: LG50 Panel 1500 x 600 | O58: LG50 Panel 1500 x 600 | P58: 35.63 | Q58: 9967 | R58: 29.31 | T58: 0 | U58: 0 | V58: 0 | Y58: 0.9 | AA58: 0
E59: 1 | I59: Bednění | J59: LOGIK 50 | K59: Panely | L59: SCA590121 | N59: SCA -LG50 Panel 1500 x 600 | O59: SCA -LG50 Panel 1500 x 600 | P59: 35.63 | Q59: 9967 | R59: 29.31 | T59: 0 | U59: 0 | V59: 0 | Y59: 0.9 | AA59: 0
F60: 1 | I60: Bednění | J60: LOGIK 50 | K60: Panely | L60: ZAK590121 | N60: ZAK -LG50 Panel 1500 x 600 | O60: ZAK -LG50 Panel 1500 x 600 | P60: 35.63 | Q60: 9967 | R60: 29.31 | T60: 0 | U60: 0 | V60: 0 | Y60: 0.9 | AA60: 0
D61: 1 | I61: Bednění | J61: LOGIK 50 | K61: Panely | L61: 590126 | N61: LG50 Panel 1500 x 750 | O61: LG50 Panel 1500 x 750 | P61: 41.53 | Q61: 10547 | R61: 31.01 | T61: 0 | U61: 0 | V61: 0 | Y61: 1.125 | AA61: 0
E62: 1 | I62: Bednění | J62: LOGIK 50 | K62: Panely | L62: SCA590126 | N62: SCA -LG50 Panel 1500 x 750 | O62: SCA -LG50 Panel 1500 x 750 | P62: 41.53 | Q62: 10547 | R62: 31.01 | T62: 0 | U62: 0 | V62: 0 | Y62: 1.125 | AA62: 0
F63: 1 | I63: Bednění | J63: LOGIK 50 | K63: Panely | L63: ZAK590126 | N63: ZAK -LG50 Panel 1500 x 750 | O63: ZAK -LG50 Panel 1500 x 750 | P63: 41.53 | Q63: 10547 | R63: 31.01 | T63: 0 | U63: 0 | V63: 0 | Y63: 1.125 | AA63: 0
D64: 1 | I64: Bednění | J64: LOGIK 50 | K64: Panely | L64: 590120 | N64: LG50 Panel 1500 x 900 | O64: LG50 Panel 1500 x 900 | P64: 49.59 | Q64: 12146 | R64: 35.71 | T64: 0 | U64: 0 | V64: 0 | Y64: 1.35 | AA64: 0
E65: 1 | I65: Bednění | J65: LOGIK 50 | K65: Panely | L65: SCA590120 | N65: SCA -LG50 Panel 1500 x 900 | O65: SCA -LG50 Panel 1500 x 900 | P65: 49.59 | Q65: 12146 | R65: 35.71 | T65: 0 | U65: 0 | V65: 0 | Y65: 1.35 | AA65: 0
F66: 1 | I66: Bednění | J66: LOGIK 50 | K66: Panely | L66: ZAK590120 | N66: ZAK -LG50 Panel 1500 x 900 | O66: ZAK -LG50 Panel 1500 x 900 | P66: 49.59 | Q66: 12146 | R66: 35.71 | T66: 0 | U66: 0 | V66: 0 | Y66: 1.35 | AA66: 0
D67: 1 | I67: Bednění | J67: LOGIK 50 | K67: Panely | L67: 590104 | N67: LG50 Panel 2700 x 300 | O67: LG50 Panel 2700 x 300 | P67: 37.9 | Q67: 12005 | R67: 35.29 | T67: 0 | U67: 0 | V67: 0 | Y67: 0.81 | AA67: 0
E68: 1 | I68: Bednění | J68: LOGIK 50 | K68: Panely | L68: SCA590104 | N68: SCA -LG50 Panel 2700 x 300 | O68: SCA -LG50 Panel 2700 x 300 | P68: 37.9 | Q68: 12005 | R68: 35.29 | T68: 0 | U68: 0 | V68: 0 | Y68: 0.81 | AA68: 0
F69: 1 | I69: Bednění | J69: LOGIK 50 | K69: Panely | L69: ZAK590104 | N69: ZAK -LG50 Panel 2700 x 300 | O69: ZAK -LG50 Panel 2700 x 300 | P69: 37.9 | Q69: 12005 | R69: 35.29 | T69: 0 | U69: 0 | V69: 0 | Y69: 0.81 | AA69: 0
D70: 1 | I70: Bednění | J70: LOGIK 50 | K70: Panely | L70: 590103 | N70: LG50 Panel 2700 x 450 | O70: LG50 Panel 2700 x 450 | P70: 48.52 | Q70: 13095 | R70: 38.5 | T70: 0 | U70: 0 | V70: 0 | Y70: 1.215 | AA70: 0
E71: 1 | I71: Bednění | J71: LOGIK 50 | K71: Panely | L71: SCA590103 | N71: SCA -LG50 Panel 2700 x 450 | O71: SCA -LG50 Panel 2700 x 450 | P71: 48.52 | Q71: 13095 | R71: 38.5 | T71: 0 | U71: 0 | V71: 0 | Y71: 1.215 | AA71: 0
F72: 1 | I72: Bednění | J72: LOGIK 50 | K72: Panely | L72: ZAK590103 | N72: ZAK -LG50 Panel 2700 x 450 | O72: ZAK -LG50 Panel 2700 x 450 | P72: 48.52 | Q72: 13095 | R72: 38.5 | T72: 0 | U72: 0 | V72: 0 | Y72: 1.215 | AA72: =S72-SUM(AB72:AN72) -> 0
D73: 1 | I73: Bednění | J73: LOGIK 50 | K73: Panely | L73: 590102 | N73: LG50 Panel 2700 x 600 | O73: LG50 Panel 2700 x 600 | P73: 61.53 | Q73: 15095 | R73: 44.38 | T73: 0 | U73: 0 | V73: 0 | Y73: 1.62 | AA73: 0
E74: 1 | I74: Bednění | J74: LOGIK 50 | K74: Panely | L74: SCA590102 | N74: SCA -LG50 Panel 2700 x 600 | O74: SCA -LG50 Panel 2700 x 600 | P74: 61.53 | Q74: 15095 | R74: 44.38 | T74: 0 | U74: 0 | V74: 0 | Y74: 1.62 | AA74: 0
F75: 1 | I75: Bednění | J75: LOGIK 50 | K75: Panely | L75: ZAK590102 | N75: ZAK -LG50 Panel 2700 x 600 | O75: ZAK -LG50 Panel 2700 x 600 | P75: 61.53 | Q75: 15095 | R75: 44.38 | T75: 0 | U75: 0 | V75: 0 | Y75: 1.62 | AA75: 0
D76: 1 | I76: Bednění | J76: LOGIK 50 | K76: Panely | L76: 590105 | N76: LG50 Panel 2700 x 750 | O76: LG50 Panel 2700 x 750 | P76: 73.625 | Q76: 15554 | R76: 45.73 | T76: 0 | U76: 0 | V76: 0 | Y76: 2.025 | AA76: 0
E77: 1 | I77: Bednění | J77: LOGIK 50 | K77: Panely | L77: SCA590105 | N77: SCA -LG50 Panel 2700 x 750 | O77: SCA -LG50 Panel 2700 x 750 | P77: 73.625 | Q77: 15554 | R77: 45.73 | T77: =IF(ISERROR(S77*P77),0,IF(S77*P77<>0,S77*P77,0)) -> 0 | U77: =IF(ISERROR(S77*Q77),0,IF(S77*Q77<>0,S77*Q77,0)) -> 0 | V77: =IF(ISERROR(S77*R77),0,IF(S77*R77<>0,S77*R77,0)) -> 0 | Y77: 2.025 | AA77: 0
F78: 1 | I78: Bednění | J78: LOGIK 50 | K78: Panely | L78: ZAK590105 | N78: ZAK -LG50 Panel 2700 x 750 | O78: ZAK -LG50 Panel 2700 x 750 | P78: 73.625 | Q78: 15554 | R78: 45.73 | T78: 0 | U78: 0 | V78: 0 | Y78: 2.025 | AA78: 0
D79: 1 | I79: Bednění | J79: LOGIK 50 | K79: Panely | L79: 590101 | N79: LG50 Panel 2700 x 900 | O79: LG50 Panel 2700 x 900 | P79: 84.7 | Q79: 18072 | R79: 53.13 | T79: 0 | U79: 0 | V79: 0 | Y79: 2.43 | AA79: 0
E80: 1 | I80: Bednění | J80: LOGIK 50 | K80: Panely | L80: SCA590101 | N80: SCA -LG50 Panel 2700 x 900 | O80: SCA -LG50 Panel 2700 x 900 | P80: 84.7 | Q80: 18072 | R80: 53.13 | T80: 0 | U80: 0 | V80: 0 | Y80: 2.43 | AA80: 0
F81: 1 | I81: Bednění | J81: LOGIK 50 | K81: Panely | L81: ZAK590101 | N81: ZAK -LG50 Panel 2700 x 900 | O81: ZAK -LG50 Panel 2700 x 900 | P81: 84.7 | Q81: 18072 | R81: 53.13 | T81: 0 | U81: 0 | V81: 0 | Y81: 2.43 | AA81: 0
I82: Bednění | J82: LOGIK 50 | K82: profily/vyrovnávací prvky | L82: 590273 | N82: LG50 Plech vyrov 1200 x 350 | O82: Logik50 Filler Plate 1200 x 350 | P82: 18.67 | Q82: 4466 | R82: 13.14 | T82: 0 | U82: 0 | V82: 0 | AA82: 0
I83: Bednění | J83: LOGIK 50 | K83: profily/vyrovnávací prvky | L83: 590272 | N83: LG50 Plech vyrov 1500 x 300 | O83: Logik50 Filler Plate 1500 x 350 | P83: 21.23 | Q83: 4899 | R83: 14.4 | T83: 0 | U83: 0 | V83: 0 | AA83: 0
I84: Bednění | J84: LOGIK 50 | K84: profily/vyrovnávací prvky | L84: 590271 | N84: LG50 Plech vyrov 2700 x 350 | O84: Logik50 Filler Plate 2700 x 350 | P84: 41.1 | Q84: 7804 | R84: 22.95 | T84: 0 | U84: 0 | V84: 0 | AA84: 0
I85: Bednění | J85: LOGIK 50 | K85: Náhradní díly | L85: AS100005 | N85: LG50 Průchodka PVC | O85: Logik50 PVC sleever | P85: 0.009 | Q85: 19 | R85: jen prodej | T85: 0 | U85: 0 | V85: 0 | AA85: 0
E86: 1 | I86: Bednění | J86: LOGIK 50 | K86: rohy | L86: SCA590223 | N86: SCA -LG50 Roh vnější 750 | O86: Logik50 External Corner 750 | P86: 8.2 | Q86: 2605 | R86: 7.66 | T86: 0 | U86: 0 | V86: 0 | AA86: 0
D87: 1 | I87: Bednění | J87: LOGIK 50 | K87: rohy | L87: 590222 | N87: LG50 Roh vnější 1200 | O87: Logik50 External Corner 1200 | P87: 10.322 | Q87: 3977 | R87: 11.7 | T87: 0 | U87: 0 | V87: 0 | AA87: 0
E88: 1 | I88: Bednění | J88: LOGIK 50 | K88: rohy | L88: SCA590222 | N88: SCA -LG50 Roh vnější 1200 | O88: Logik50 External Corner 1200 | P88: 10.322 | Q88: 3977 | R88: 11.7 | T88: 0 | U88: 0 | V88: 0 | AA88: 0
D89: 1 | I89: Bednění | J89: LOGIK 50 | K89: rohy | L89: 590221 | N89: LG50 Roh vnější 1500 | O89: Logik50 External Corner 1500 | P89: 11.84 | Q89: 4737 | R89: 13.93 | T89: 0 | U89: 0 | V89: 0 | AA89: 0
E90: 1 | I90: Bednění | J90: LOGIK 50 | K90: rohy | L90: SCA590221 | N90: SCA -LG50 Roh vnější 1500 | O90: Logik50 External Corner 1500 | P90: 11.84 | Q90: 4737 | R90: 13.93 | T90: 0 | U90: 0 | V90: 0 | AA90: 0
D91: 1 | I91: Bednění | J91: LOGIK 50 | K91: rohy | L91: 590220 | N91: LG50 Roh vnější 2700 | O91: Logik50 External Corner 2700 | P91: 21.11 | Q91: 7836 | R91: 23.04 | T91: 0 | U91: 0 | V91: 0 | AA91: 0
E92: 1 | I92: Bednění | J92: LOGIK 50 | K92: rohy | L92: SCA590220 | N92: SCA -LG50 Roh vnější 2700 | O92: Logik50 External Corner 2700 | P92: 21.11 | Q92: 7836 | R92: 23.04 | T92: 0 | U92: 0 | V92: 0 | AA92: 0
D93: 1 | I93: Bednění | J93: LOGIK 50 | K93: rohy | L93: 593263 | N93: LG50 Roh vnější kloub 1200 | O93: LG50 Outer Hinge Corner 1200 C | P93: 21.48 | Q93: 6777 | R93: 19.93 | T93: 0 | U93: 0 | V93: 0 | Y93: 0.3072 | AA93: 0
E94: 1 | I94: Bednění | J94: LOGIK 50 | K94: rohy | L94: SCA593263 | N94: SCA -LG50 Roh vnější kloub 1200 | O94: LG50 Outer Hinge Corner 1200 C | P94: 21.48 | Q94: 6777 | R94: 19.93 | T94: 0 | U94: 0 | V94: 0 | Y94: 0.3072 | AA94: 0
D95: 1 | I95: Bednění | J95: LOGIK 50 | K95: rohy | L95: 593262 | N95: LG50 Roh vnější kloub 1500 | O95: LG50 Outer Hinge Corner 1500 C | P95: 26.68 | Q95: 7595 | R95: 22.33 | T95: 0 | U95: 0 | V95: 0 | Y95: 0.384 | AA95: 0
E96: 1 | I96: Bednění | J96: LOGIK 50 | K96: rohy | L96: SCA593262 | N96: SCA -LG50 Roh vnější kloub 1500 | O96: LG50 Outer Hinge Corner 1500 C | P96: 26.68 | Q96: 7595 | R96: 22.33 | T96: 0 | U96: 0 | V96: 0 | Y96: 0.384 | AA96: 0
E97: 1 | I97: Bednění | J97: LOGIK 50 | K97: rohy | L97: SCA590204 | N97: SCA -LG50 Roh vnitřní 750 x 300 | O97: Logik50 Internal Corner 750x300 | P97: 24.56 | Q97: 5791 | R97: 17.03 | T97: 0 | U97: 0 | V97: 0 | Y97: 0.45 | AA97: 0
D98: 1 | I98: Bednění | J98: LOGIK 50 | K98: rohy | L98: 590203 | N98: LG50 Roh vnitřní 1200 x 300 | O98: Logik50 Internal Corner 1200x300 | P98: 34.46 | Q98: 8572 | R98: 25.21 | T98: 0 | U98: 0 | V98: 0 | Y98: 0.72 | AA98: 0
E99: 1 | I99: Bednění | J99: LOGIK 50 | K99: rohy | L99: SCA590203 | N99: SCA -LG50 Roh vnitřní 1200 x 300 | O99: Logik50 Internal Corner 1200x300 | P99: 34.46 | Q99: 8572 | R99: 25.21 | T99: 0 | U99: 0 | V99: 0 | Y99: 0.72 | AA99: 0
D100: 1 | I100: Bednění | J100: LOGIK 50 | K100: rohy | L100: 590202 | N100: LG50 Roh vnitřní 1500 x 300 | O100: Logik50 Internal Corner 1500x300 | P100: 41.15 | Q100: 10530 | R100: 30.96 | T100: 0 | U100: 0 | V100: 0 | Y100: 0.9 | AA100: 0
E101: 1 | I101: Bednění | J101: LOGIK 50 | K101: rohy | L101: SCA590202 | N101: SCA -LG50 Roh vnitřní 1500 x 300 | O101: Logik50 Internal Corner 1500x300 | P101: 41.15 | Q101: 10530 | R101: 30.96 | T101: 0 | U101: 0 | V101: 0 | Y101: 0.9 | AA101: 0
D102: 1 | I102: Bednění | J102: LOGIK 50 | K102: rohy | L102: 590200 | N102: LG50 Roh vnitřní 2700 x 300 | O102: Logik50 Internal Corner 2700x300 | P102: 69.3 | Q102: 15876 | R102: 46.68 | T102: 0 | U102: 0 | V102: 0 | Y102: =2.7*0.6 -> 1.62 | AA102: 0
E103: 1 | I103: Bednění | J103: LOGIK 50 | K103: rohy | L103: SCA590200 | N103: SCA - LG50 Roh vnitřní 2700 x 300 | O103: Logik50 Internal Corner 2700x300 | P103: 69.3 | Q103: 15876 | R103: 46.68 | T103: 0 | U103: 0 | V103: 0 | Y103: =2.7*0.6 -> 1.62 | AA103: 0
D104: 1 | I104: Bednění | J104: LOGIK 50 | K104: rohy | L104: 593243 | N104: LG50 Roh vnitřní kloub 1200 | O104: LG50 Inner Hinge Corner 1200 C | P104: 35 | Q104: 8401 | R104: 24.7 | T104: 0 | U104: 0 | V104: 0 | Y104: 0.744 | AA104: =S104-SUM(AB104:AN104) -> 0
E105: 1 | I105: Bednění | J105: LOGIK 50 | K105: rohy | L105: SCA593243 | N105: SCA -LG50 Roh vnitřní kloub 1200 | O105: LG50 Inner Hinge Corner 1200 C | P105: 35 | Q105: 8401 | R105: 24.7 | T105: 0 | U105: 0 | V105: 0 | Y105: 0.744 | AA105: 0
D106: 1 | I106: Bednění | J106: LOGIK 50 | K106: rohy | L106: 593242 | N106: LG50 Roh vnitřní kloub 1500 | O106: LG50 Inner Hinge Corner 1500 C | P106: 42.8 | Q106: 15206 | R106: 44.71 | T106: 0 | U106: 0 | V106: 0 | Y106: 0.93 | AA106: 0
E107: 1 | I107: Bednění | J107: LOGIK 50 | K107: rohy | L107: SCA593242 | N107: SCA -LG50 Roh vnitřní kloub 1500 | O107: LG50 Inner Hinge Corner 1500 C | P107: 42.8 | Q107: 15206 | R107: 44.71 | T107: 0 | U107: 0 | V107: 0 | Y107: 0.93 | AA107: 0
E108: 1 | I108: Bednění | J108: LOGIK 50 | L108: SCA590101U | N108: SCA -LG50 Panel UNI 2700 x 900 | P108: 84.7 | Q108: 20783 | R108: 67.25 | T108: 0 | U108: 0 | V108: 0 | Y108: 2.43 | AA108: 0
E109: 1 | I109: Bednění | J109: LOGIK 50 | L109: SCA590105U | N109: SCA -LG50 Panel UNI 2700 x 750 | P109: 73.625 | Q109: 17888 | R109: 58.65 | T109: 0 | U109: 0 | V109: 0 | Y109: 2.025 | AA109: 0
E110: 1 | I110: Bednění | J110: LOGIK 50 | L110: SCA590120U | N110: SCA -LG50 Panel UNI 1500 x 900 | P110: 49.59 | Q110: 13968 | R110: 46 | T110: 0 | U110: 0 | V110: 0 | Y110: 1.35 | AA110: 0
E111: 1 | I111: Bednění | J111: LOGIK 50 | L111: SCA590126U | N111: SCA -LG50 Panel UNI 1500 x 750 | P111: 41.53 | Q111: 12130 | R111: 40.25 | T111: 0 | U111: 0 | V111: 0 | Y111: 1.125 | AA111: 0
E112: 1 | I112: Bednění | J112: LOGIK 50 | L112: SCA590131U | N112: SCA -LG50 Panel UNI 1200 x 900 | P112: 41.9 | Q112: 11617 | R112: 37.95 | T112: 0 | U112: 0 | V112: 0 | Y112: 1.08 | AA112: 0
E113: 1 | I113: Bednění | J113: LOGIK 50 | L113: SCA590135U | N113: SCA -LG50 Panel UNI 1200 x 750 | P113: 36.395 | Q113: 10170 | R113: 33.35 | T113: 0 | U113: 0 | V113: 0 | Y113: 0.9 | AA113: 0
I114: Bednění | J114: LOGIK 50 | L114: SCA590106U | N114: SCA -LG50 Panel UNI 900 x 750 | P114: 22 | Q114: 9300 | R114: 42 | T114: =IF(ISERROR(S114*P114),0,IF(S114*P114<>0,S114*P114,0)) -> 0 | U114: =IF(ISERROR(S114*Q114),0,IF(S114*Q114<>0,S114*Q114,0)) -> 0 | V114: =IF(ISERROR(S114*R114),0,IF(S114*R114<>0,S114*R114,0)) -> 0 | Y114: 0.68 | AA114: =S114-SUM(AB114:AN114) -> 0
D115: 1 | I115: Bednění | J115: LOGIK 50 | K115: Příslušenství | L115: 590310 | N115: LG50 Sloupová spínací spojka | O115: Logik50 Column Coupler | P115: 1.89 | Q115: 1367 | R115: 3.66 | T115: 0 | U115: 0 | V115: 0 | AA115: 0
D116: 1 | I116: Bednění | J116: LOGIK 50 | K116: Příslušenství | L116: 590300 | N116: LG50 Spojka klínová | O116: Logik50 Clamp Standard | P116: 1.05 | Q116: 728 | R116: 1.82 | T116: 0 | U116: 0 | V116: 0 | AA116: =S116-SUM(AB116:AN116) -> 0
D117: 1 | I117: Bednění | J117: LOGIK 50 | K117: profily/vyrovnávací prvky | L117: 590283 | N117: LG50 Tyč vyrov 1200 x 50 | O117: Logik50 Filler Profile 1200 x 50 | P117: 6.96 | Q117: 2438 | R117: 6.53 | T117: 0 | U117: 0 | V117: 0 | Y117: 0.06 | AA117: 0
I118: Bednění | J118: LOGIK 50 | L118: SCA590283 | N118: SCA -LG50 Tyč vyrov 1200 x 50 | P118: 6.96 | Q118: 2438 | R118: 6.53 | T118: 0 | U118: 0 | V118: 0 | Y118: 0.06 | AA118: 0
D119: 1 | I119: Bednění | J119: LOGIK 50 | K119: profily/vyrovnávací prvky | L119: 590282 | N119: LG50 Tyč vyrov 1500 x 50 | O119: Logik50 Filler Profile 1500 x 50 | P119: 8.46 | Q119: 2589 | R119: 6.92 | T119: 0 | U119: 0 | V119: 0 | Y119: 0.075 | AA119: 0
I120: Bednění | J120: LOGIK 50 | L120: SCA590282 | N120: SCA -LG50 Tyč vyrov 1500 x 50 | P120: 8.46 | Q120: 2589 | R120: 6.92 | T120: 0 | U120: 0 | V120: 0 | Y120: 0.075 | AA120: 0
D121: 1 | I121: Bednění | J121: LOGIK 50 | K121: profily/vyrovnávací prvky | L121: 590281 | N121: LG50 Tyč vyrov 2700 x 50 | O121: Logik50 Filler Profile 2700 x 50 | P121: 14.88 | Q121: 3738 | R121: 9.99 | T121: 0 | U121: 0 | V121: 0 | Y121: 0.135 | AA121: 0
B122: 1 | C122: 1 | D122: 1 | I122: Bednění | J122: LOGIK 50 | K122: Příslušenství | L122: 590803 | N122: LG60 Matice křídlová s podl DW15 | O122: Logik60 Tie Washer/Nut DW 15 | P122: 0.3 | Q122: 595 | R122: 1.32 | T122: 0 | U122: 0 | V122: 0 | AA122: 0
D123: 1 | I123: Bednění | J123: LOGIK 50 | K123: Příslušenství | L123: 590801 | N123: LG Držák vnější spínací tyče | O123: Logik Top Tie Rod Holder | P123: 1.11 | Q123: 415 | R123: 1.12 | T123: 0 | U123: 0 | V123: 0 | AA123: 0
I124: Bednění | J124: LOGIK 50 | K124: Příslušenství | L124: 590838 | N124: LG Hlava vzpěry | O124: Logik Stabilizer Head | P124: 0.1 | Q124: 795 | R124: 2.13 | T124: 0 | U124: 0 | V124: 0 | AA124: 0
D125: 1 | I125: Bednění | J125: LOGIK 50 | K125: Příslušenství | L125: 590805 | N125: LG Koncová spín spojka (DW&čep) | O125: LG Stop End Tie Holder (Pin+DW) | P125: 1.4 | Q125: 1056 | R125: 2.83 | T125: 0 | U125: 0 | V125: 0 | AA125: 0
D126: 1 | I126: Bednění | J126: LOGIK 50 | K126: Stabilizátory | L126: 590845 | N126: LG Konzola lávky univerzální | O126: Logik Walkway Bracket Universal | P126: 13.3 | Q126: 3969 | R126: 10.62 | T126: 0 | U126: 0 | V126: 0 | AA126: 0
D127: 1 | I127: Bednění | J127: LOGIK 50 | K127: Stabilizátory | L127: 590821 | N127: LG Nástavec konzoly | O127: LG Walkway Bracket Panel Connector | P127: 1.82 | Q127: 1140 | R127: 3.05 | T127: 0 | U127: 0 | V127: 0 | AA127: 0
D128: 1 | I128: Bednění | J128: LOGIK 50 | K128: Příslušenství | L128: 590839 | N128: LG Patka vzpěry | O128: Logik Stabilizer Base | P128: 1.6 | Q128: 552 | R128: 1.48 | T128: 0 | U128: 0 | V128: 0 | AA128: 0
D129: 1 | I129: Bednění | J129: LOGIK 50 | K129: Příslušenství | L129: 590940 | N129: LG Příchytka A-rámu (DW 15) | O129: Logik A-Frame Connector (DW) | P129: 0.5 | Q129: 937 | R129: 2.51 | T129: 0 | U129: 0 | V129: 0 | AA129: 0
D130: 1 | I130: Bednění | J130: LOGIK 50 | K130: Příslušenství | L130: 590736 | N130: LG Řetěz háku jeřábového | O130: Logik Crain Hook Chain (C) | P130: 2.28 | Q130: 2277 | R130: 5.74 | T130: 0 | U130: 0 | V130: 0 | AA130: 0
E131: 1 | I131: Bednění | J131: LOGIK 50 | K131: Příslušenství | L131: SCA590736 | N131: SCA - LG Řetěz háku jeřábového | O131: Logik Crain Hook Chain (C) | P131: 0 | Q131: 2277 | R131: 5.74 | T131: 0 | U131: 0 | V131: 0 | AA131: 0
I132: Bednění | J132: LOGIK 50 | K132: Příslušenství | L132: 2427451 | N132: LG Spona řetězu jeřábového háku | O132: LG COUPLING RING FOR CHAIN | P132: 0.312 | Q132: 646 | R132: 1.73 | T132: 0 | U132: 0 | V132: 0 | AA132: 0
D133: 1 | I133: Bednění | J133: LOGIK 50 | K133: Příslušenství | L133: 590823 | N133: LG Srovnávací lišta 1000 mm | O133: Logik Alignment Waler 1000 | P133: 7.93 | Q133: 3283 | R133: 8.78 | T133: 0 | U133: 0 | V133: 0 | AA133: 0
E134: 1 | I134: Bednění | J134: LOGIK 50 | K134: Příslušenství | L134: SCA590823 | N134: SCA -LG Srovnávací lišta 1000 mm | O134: Logik Alignment Waler 1000 | P134: 7.93 | Q134: 3283 | R134: 8.78 | T134: 0 | U134: 0 | V134: 0 | AA134: 0
I135: Bednění | J135: LOGIK 50 | K135: Příslušenství | L135: 590825 | N135: LG Srovnávací lišta 700 mm | O135: Logik Alignment Waler 700 | P135: 6.73 | Q135: 3097 | R135: 8.29 | T135: 0 | U135: 0 | V135: 0 | AA135: 0
D136: 1 | I136: Bednění | J136: LOGIK 50 | K136: Stabilizátory | L136: AS720010 | N136: LG Stabil 1,5 & hlava & patka | O136: LG Stabil. 1.5 c/w Head&Base | P136: 9.4 | Q136: 3451 | R136: 9.23 | T136: 0 | U136: 0 | V136: 0 | AA136: 0
D137: 1 | I137: Bednění | J137: LOGIK 50 | K137: Stabilizátory | L137: AS720020 | N137: LG Stabil 3,0 & hlava & patka | O137: LG Stabil. 3.0 c/w Head&Base | P137: 15.7 | Q137: 4626 | R137: 12.37 | T137: 0 | U137: 0 | V137: 0 | AA137: 0
D138: 1 | I138: Bednění | J138: LOGIK 50 | K138: Stabilizátory | L138: AS720030 | N138: LG Stabil 4,5 & hlava & patka | O138: LG Stabil. 4.5 c/w Head&Base | P138: 21.2 | Q138: 5334 | R138: 14.26 | T138: 0 | U138: 0 | V138: 0 | AA138: 0
I139: Bednění | J139: LOGIK 50 | K139: Stabilizátory | L139: AS720050 | N139: LG Stabil 5,5 & hlava & patka | O139: LG Stabil. 5.5 c/w Head&Base | P139: 28.5 | Q139: 5782 | R139: 15.46 | T139: 0 | U139: 0 | V139: 0 | AA139: 0
D140: 1 | I140: Bednění | J140: LOGIK 50 | K140: Stabilizátory | L140: AS720040 | N140: LG Stabil 6,0 & hlava & patka | O140: LG Stabil. 6.0 c/w Head&Base | P140: 43.7 | Q140: 6424 | R140: 17.18 | T140: 0 | U140: 0 | V140: 0 | AA140: 0
I141: Bednění | J141: LOGIK 50 | K141: Příslušenství | L141: 2507303 | N141: LG Svlakový profil 1000 mm | O141: Logik Joint Plate Channel 1000mm | P141: 14.4 | Q141: 2076 | R141: 5.17 | T141: 0 | U141: 0 | V141: 0 | AA141: 0
C142: 1 | D142: 1 | I142: Bednění | J142: LOGIK 50 | K142: Příslušenství | L142: 590721 | N142: LG Svlakový profil 500 mm | O142: Logik Joint Plate Channel 500 mm | P142: 7.2 | Q142: 1038 | R142: 2.78 | T142: =IF(ISERROR(S142*P142),0,IF(S142*P142<>0,S142*P142,0)) -> 0 | U142: =IF(ISERROR(S142*Q142),0,IF(S142*Q142<>0,S142*Q142,0)) -> 0 | V142: =IF(ISERROR(S142*R142),0,IF(S142*R142<>0,S142*R142,0)) -> 0 | AA142: 0
C143: 1 | D143: 1 | I143: Bednění | J143: LOGIK 50 | K143: Příslušenství | L143: 2507302 | N143: LG Svlakový profil 800 mm | O143: Logik Joint Plate Channel 800 mm | P143: 11.83 | Q143: 1625 | R143: 4.35 | T143: 0 | U143: 0 | V143: 0 | AA143: 0
D144: 1 | I144: Bednění | J144: LOGIK 50 | K144: Příslušenství | L144: 2507390 | N144: LG Svlakový profil 1880 mm | O144: Logik Joint Plate Channel 1880 mm | P144: 20.3 | Q144: 2925 | R144: 7.83 | T144: 0 | U144: 0 | V144: 0 | AA144: 0
D145: 1 | I145: Bednění | J145: LOGIK 50 | K145: Příslušenství | L145: 2507391 | N145: LG Svlakový profil 2000 mm | O145: Logik Joint Plate Channel 2000 mm | P145: 21.6 | Q145: 3250 | R145: 8.69 | T145: 0 | U145: 0 | V145: 0 | AA145: 0
D146: 1 | I146: Bednění | J146: LOGIK 50 | K146: Příslušenství | L146: 2507392 | N146: LG Svlakový profil 2400 mm | O146: Logik Joint Plate Channel 2400 mm | P146: 25.92 | Q146: 3900 | R146: 10.43 | T146: 0 | U146: 0 | V146: 0 | AA146: 0
D147: 1 | I147: Bednění | J147: LOGIK 50 | K147: Příslušenství | L147: 2507393 | N147: LG Svlakový profil 2550 mm | O147: Logik Joint Plate Channel 2550 mm | P147: 27.54 | Q147: 4063 | R147: 11 | T147: 0 | U147: 0 | V147: 0 | AA147: 0
D148: 1 | I148: Bednění | J148: LOGIK 50 | K148: Příslušenství | L148: 2507394 | N148: LG Svlakový profil 2600 mm | O148: Logik Joint Plate Channel 2600 mm | P148: 28.08 | Q148: 4224 | R148: 11.11 | T148: 0 | U148: 0 | V148: 0 | AA148: 0
D149: 1 | I149: Bednění | J149: LOGIK 50 | K149: Příslušenství | L149: 2507395 | N149: LG Svlakový profil 2700 mm | O149: Logik Joint Plate Channel 2700 mm | P149: 29.16 | Q149: 4387 | R149: 12.1 | T149: 0 | U149: 0 | V149: 0 | AA149: 0
D150: 1 | I150: Bednění | J150: LOGIK 50 | K150: Stabilizátory | L150: 2882000 | N150: MF A-rám 3,6 m | O150: MF A-Frame 3,6 m | P150: 230 | Q150: 65960 | R150: 197.78 | T150: 0 | U150: 0 | V150: 0 | AA150: 0
I151: Bednění | J151: LOGIK 50 | K151: Náhradní díly | L151: 300149 | N151: LG Šroub pro nast spojku | O151: Logik Adjustable Clamp Bolt | P151: 0.046 | Q151: 219 | R151: 0.69 | T151: 0 | U151: 0 | V151: 0 | AA151: 0
I152: Bednění | J152: LOGIK 50 | K152: Náhradní díly | L152: AS080006 | N152: LG50 Překližka panelu 1200 x 300 | O152: Logik50 Ply 1200 x 300 | P152: 3.58 | Q152: 727 | R152: jen prodej | T152: 0 | U152: 0 | V152: 0 | AA152: 0
I153: Bednění | J153: LOGIK 50 | K153: Náhradní díly | L153: AS080005 | N153: LG50 Překližka panelu 1200 x 450 | O153: Logik50 Ply 1200 x 450 | P153: 5.37 | Q153: 1008 | R153: jen prodej | T153: 0 | U153: 0 | V153: 0 | AA153: 0
I154: Bednění | J154: LOGIK 50 | K154: Náhradní díly | L154: AS080004 | N154: LG50 Překližka panelu 1200 x 600 | O154: Logik50 Ply 1200 x 600 | P154: 7.16 | Q154: 1209 | R154: jen prodej | T154: 0 | U154: 0 | V154: 0 | AA154: 0
I155: Bednění | J155: LOGIK 50 | K155: Náhradní díly | L155: AS871596A | N155: LG50 překližka panelu 1200 x 750 | O155: Logik50 Ply 1200 x 750 | P155: 8.91 | Q155: 1503 | R155: jen prodej | T155: 0 | U155: 0 | V155: 0 | AA155: 0
I156: Bednění | J156: LOGIK 50 | K156: Náhradní díly | L156: AS080003 | N156: LG50 Překližka panelu 1200 x 900 | O156: Logik50 Ply 1200 x 900 | P156: 10.36 | Q156: 1851 | R156: jen prodej | T156: 0 | U156: 0 | V156: 0 | AA156: 0
I157: Bednění | J157: LOGIK 50 | K157: Náhradní díly | L157: AS080486 | N157: LG50 Překližka panelu 1500 x 300 | O157: Logik50 Ply 1500 x 300 | P157: 4.47 | Q157: 1383 | R157: jen prodej | T157: 0 | U157: 0 | V157: 0 | AA157: 0
I158: Bednění | J158: LOGIK 50 | K158: Náhradní díly | L158: AS080485 | N158: LG50 Překližka panelu 1500 x 450 | O158: Logik50 Ply 1500 x 450 | P158: 6.71 | Q158: 1552 | R158: jen prodej | T158: 0 | U158: 0 | V158: 0 | AA158: 0
I159: Bednění | J159: LOGIK 50 | K159: Náhradní díly | L159: AS080484 | N159: LG50 Překližka panelu 1500 x 600 | O159: Logik50 Ply 1500 x 600 | P159: 8.95 | Q159: 1392 | R159: jen prodej | T159: 0 | U159: 0 | V159: 0 | AA159: 0
I160: Bednění | J160: LOGIK 50 | K160: Náhradní díly | L160: AS080060 | N160: LG50 Překližka panelu 1500 x 750 | O160: Logik50 Ply 1500 x 750 | P160: 11.18 | Q160: 1703 | R160: jen prodej | T160: 0 | U160: 0 | V160: 0 | AA160: 0
I161: Bednění | J161: LOGIK 50 | K161: Náhradní díly | L161: AS080483 | N161: LG50 Překližka panelu 1500 x 900 | O161: Logik50 Ply 1500 x 900 | P161: 13.42 | Q161: 2295 | R161: jen prodej | T161: 0 | U161: 0 | V161: 0 | AA161: 0
I162: Bednění | J162: LOGIK 50 | K162: Náhradní díly | L162: AS080139 | N162: LG50 Překližka panelu 2700 x 300 | O162: Logik50 Ply 2700 x 300 | P162: 8.05 | Q162: 1628 | R162: jen prodej | T162: 0 | U162: 0 | V162: 0 | AA162: 0
I163: Bednění | J163: LOGIK 50 | K163: Náhradní díly | L163: AS080138 | N163: LG50 Překližka panelu 2700 x 450 | O163: Logik50 Ply 2700 x 450 | P163: 12.08 | Q163: 2154 | R163: jen prodej | T163: 0 | U163: 0 | V163: 0 | AA163: 0
I164: Bednění | J164: LOGIK 50 | K164: Náhradní díly | L164: AS080136 | N164: LG50 Překližka panelu 2700 x 600 | O164: Logik50 Ply 2700 x 600 | P164: 16.1 | Q164: 2676 | R164: jen prodej | T164: 0 | U164: 0 | V164: 0 | AA164: 0
I165: Bednění | J165: LOGIK 50 | K165: Náhradní díly | L165: AS873083A | N165: LG50 překližka panelu 2700 x 750 | O165: Logik50 Ply 2700 x 750 | P165: 20.05 | Q165: 4139 | R165: jen prodej | T165: 0 | U165: 0 | V165: 0 | AA165: 0
I166: Bednění | J166: LOGIK 50 | K166: Náhradní díly | L166: AS080134 | N166: LG50 Překližka panelu 2700 x 900 | O166: Logik50 Ply 2700 x 900 | P166: 24.15 | Q166: 5205 | R166: jen prodej | T166: 0 | U166: 0 | V166: 0 | AA166: 0
I167: Bednění | J167: LOGIK 50 | L167: AS080003U | N167: LG50 Překližka UNI panelu 1200 x 900 | P167: 10.36 | Q167: 2688 | R167: jen prodej | T167: 0 | U167: 0 | V167: 0 | AA167: 0
I168: Bednění | J168: LOGIK 50 | L168: AS080060U | N168: LG50 Překližka UNI panelu 1500 x 750 | P168: 11.18 | Q168: 2796 | R168: jen prodej | T168: 0 | U168: 0 | V168: 0 | AA168: 0
I169: Bednění | J169: LOGIK 50 | L169: AS080134U | N169: LG50 Překližka UNI panelu 2700 x 900 | P169: 24.15 | Q169: 6036 | R169: jen prodej | T169: 0 | U169: 0 | V169: 0 | AA169: 0
I170: Bednění | J170: LOGIK 50 | L170: AS080483U | N170: LG50 Překližka UNI panelu 1500 x 900 | P170: 13.42 | Q170: 3351 | R170: jen prodej | T170: 0 | U170: 0 | V170: 0 | AA170: 0
I171: Bednění | J171: LOGIK 50 | L171: AS871596AU | N171: LG50 Překližka UNI panelu 1200 x 750 | P171: 8.91 | Q171: 2244 | R171: jen prodej | T171: 0 | U171: 0 | V171: 0 | AA171: 0
I172: Bednění | J172: LOGIK 50 | L172: AS873083AU | N172: LG50 Překližka UNI panelu 2700 x 750 | P172: 20.05 | Q172: 5040 | R172: jen prodej | T172: 0 | U172: 0 | V172: 0 | AA172: 0
I173: Bednění | J173: LOGIK 50 | K173: Náhradní díly | L173: A100007 | N173: LG50 Roh spojovací PVC | O173: Logik50 conecting angle | P173: 0.006 | Q173: 10 | R173: jen prodej | T173: 0 | U173: 0 | V173: 0 | AA173: 0
D174: 1 | I174: Bednění | J174: LOGIK 50 | K174: Náhradní díly | L174: A650050 | N174: Pojistná závlačka D=3 mm | O174: Logik Safety Pin R-clip D=3 mm | P174: 0.01 | Q174: 10 | R174: 0.04 | T174: 0 | U174: 0 | V174: 0 | AA174: 0
D175: 1 | I175: Bednění | J175: LOGIK 50 | K175: Náhradní díly | L175: A650010 | N175: Zajišťovací Čep 16x100 mm | O175: Logik Pivot Pin 16x100 mm | P175: 0.17 | Q175: 87 | R175: 0.24 | T175: 0 | U175: 0 | V175: 0 | AA175: 0
I176: Bednění | J176: MULTIFORM | K176: Příslušenství | L176: A650500 | N176: MF 1/2 spojka D=48mm | O176: MF 1/2 Tube coupler D=48 mm | P176: 0.69 | Q176: 216 | R176: 0.62 | T176: 0 | U176: 0 | V176: 0 | AA176: 0
I177: Bednění | J177: MULTIFORM | K177: Příslušenství | L177: A650110 | N177: MF Distanc trubička MF1 20x60mm | O177: MF spacertube 20x60 mm | P177: 0.04 | Q177: 19 | R177: 0.07 | T177: 0 | U177: 0 | V177: 0 | AA177: 0
I178: Bednění | J178: MULTIFORM | K178: Příslušenství | L178: 591520 | N178: MF Držák sloupku zábradlí | O178: Multifom Handrail Bracket | P178: 1.65 | Q178: 641 | R178: 1.81 | T178: 0 | U178: 0 | V178: 0 | AA178: 0
I179: Bednění | J179: MULTIFORM | K179: Příslušenství | L179: A650520 | N179: MF Otočná spojka d=48 mm | O179: MI TUBE COUPLER VOLVING D=48MM | P179: 1.44 | Q179: 503 | R179: 1.43 | T179: 0 | U179: 0 | V179: 0 | AA179: 0
I180: Bednění | J180: MULTIFORM | K180: Profil MF1 | L180: AS610014 | N180: MF Profil MF1 - 1058,5 mm (B) | O180: MF Profil MF1 - 1058,5 mm (C) | P180: 12.72 | Q180: 1445 | R180: 4.07 | T180: 0 | U180: 0 | V180: 0 | AA180: =S180-SUM(AB180:AN180) -> 0
D181: 1 | I181: Bednění | J181: MULTIFORM | K181: Profil MF1 | L181: AS610016 | N181: MF Profil MF1 - 1183,5 mm (B) | O181: MF Profil MF1 - 1183,5 mm (C) | P181: 14.22 | Q181: 1487 | R181: 4.18 | T181: 0 | U181: 0 | V181: 0 | AA181: 0
D182: 1 | I182: Bednění | J182: MULTIFORM | K182: Profil MF1 | L182: AS610020 | N182: MF Profil MF1 - 1433,5 mm (B) | O182: MF Profil MF1 - 1433,5 mm (C) | P182: 17.23 | Q182: 1693 | R182: 4.77 | T182: 0 | U182: 0 | V182: 0 | AA182: 0
D183: 1 | I183: Bednění | J183: MULTIFORM | K183: Profil MF1 | L183: AS610024 | N183: MF Profil MF1 - 1683,5 mm (B) | O183: MF Profil MF1 - 1683,5 mm (C) | P183: 20.23 | Q183: 2070 | R183: 5.82 | T183: 0 | U183: 0 | V183: 0 | AA183: 0
D184: 1 | I184: Bednění | J184: MULTIFORM | K184: Profil MF1 | L184: AS610028 | N184: MF Profil MF1 - 1933,5 mm (B) | O184: MF Profil MF1 - 1933,5 mm (C) | P184: 23.24 | Q184: 2417 | R184: 6.8 | T184: 0 | U184: 0 | V184: 0 | AA184: 0
I185: Bednění | J185: MULTIFORM | K185: Profil MF1 | L185: AS610029 | N185: MF Profil MF1 - 1996,0 mm (B) | O185: MF Profil MF1 - 1998.5 mm (C) | P185: 23.98 | Q185: 2425 | R185: 6.81 | T185: 0 | U185: 0 | V185: 0 | AA185: 0
D186: 1 | I186: Bednění | J186: MULTIFORM | K186: Profil MF1 | L186: AS610036 | N186: MF Profil MF1 - 2433,5 mm (B) | O186: MF Profil MF1 - 2433,5 mm (C) | P186: 29.24 | Q186: 2836 | R186: 7.96 | T186: 0 | U186: 0 | V186: 0 | AA186: 0
I187: Bednění | J187: MULTIFORM | K187: Profil MF1 | L187: AS610040 | N187: MF Profil MF1 - 2683,5 mm (B) | O187: MF Profil MF1 - 2683,5 mm (C) | P187: 32.39 | Q187: 3030 | R187: 8.51 | T187: 0 | U187: 0 | V187: 0 | AA187: 0
D188: 1 | I188: Bednění | J188: MULTIFORM | K188: Profil MF1 | L188: AS610044 | N188: MF Profil MF1 - 2933,5 mm (B) | O188: MF Profil MF1 - 2933,5 mm (C) | P188: 35.41 | Q188: 3220 | R188: 9.05 | T188: 0 | U188: 0 | V188: 0 | AA188: 0
D189: 1 | I189: Bednění | J189: MULTIFORM | K189: Profil MF1 | L189: AS610052 | N189: MF Profil MF1 - 3433,5 mm (B) | O189: MF Profil MF1 - 3433,5 mm (C) | P189: 41.26 | Q189: 4332 | R189: 12.17 | T189: 0 | U189: 0 | V189: 0 | AA189: 0
I190: Bednění | J190: MULTIFORM | K190: Profil MF1 | L190: AS610056 | N190: MF Profil MF1 - 3683,5 mm (B) | O190: MF Profil MF1 - 3683,5 mm (C) | P190: 44.46 | Q190: 4939 | R190: 13.86 | T190: 0 | U190: 0 | V190: 0 | AA190: 0
D191: 1 | I191: Bednění | J191: MULTIFORM | K191: Profil MF1 | L191: AS610060 | N191: MF Profil MF1 - 3933,5 mm (B) | O191: MF Profil MF1 - 3933,5 mm (C) | P191: 47.27 | Q191: 5168 | R191: 14.52 | T191: 0 | U191: 0 | V191: 0 | AA191: 0
I192: Bednění | J192: MULTIFORM | K192: Profil MF1 | L192: AS610004 | N192: MF Profil MF1 - 433,5 mm (B) | O192: MF Profil MF1 - 433,5 mm (C) | P192: 5.21 | Q192: 791 | R192: 2.23 | T192: 0 | U192: 0 | V192: 0 | AA192: 0
D193: 1 | I193: Bednění | J193: MULTIFORM | K193: Profil MF1 | L193: AS610068 | N193: MF Profil MF1 - 4433,5 mm (B) | O193: MF Profil MF1 - 4433,5 mm (C) | P193: 53.27 | Q193: 5583 | R193: 15.68 | T193: 0 | U193: 0 | V193: 0 | AA193: 0
D194: 1 | I194: Bednění | J194: MULTIFORM | K194: Profil MF1 | L194: AS610076 | N194: MF Profil MF1 - 4933,5 mm (B) | O194: MF Profil MF1 - 4933,5 mm (C) | P194: 59.29 | Q194: 5355 | R194: 15.04 | T194: 0 | U194: 0 | V194: 0 | AA194: 0
D195: 1 | I195: Bednění | J195: MULTIFORM | K195: Profil MF1 | L195: AS610084 | N195: MF Profil MF1 - 5433,5 mm (B) | O195: MF Profil MF1 - 5433,5 mm (C) | P195: 65.29 | Q195: 6919 | R195: 19.43 | T195: 0 | U195: 0 | V195: 0 | AA195: 0
I196: Bednění | J196: MULTIFORM | K196: Profil MF1 | L196: AS610008 | N196: MF Profil MF1 - 683,5 mm (B) | O196: MF Profil MF1 - 683,5 mm (C) | P196: 8.22 | Q196: 989 | R196: 2.8 | T196: 0 | U196: 0 | V196: 0 | AA196: 0
I197: Bednění | J197: MULTIFORM | K197: Profil MF1 | L197: AS610010 | N197: MF Profil MF1 - 808,5 mm (B) | O197: MF profile MF1 - 808,5 mm | P197: 9.71 | Q197: 1199 | R197: 3.39 | T197: 0 | U197: 0 | V197: 0 | AA197: 0
I198: Bednění | J198: MULTIFORM | K198: Profil MF1 | L198: AS610012 | N198: MF Profil MF1 - 933,5 mm (B) | O198: MF Profil MF1 - 933,5 mm (C) | P198: 11.22 | Q198: 1231 | R198: 3.47 | T198: 0 | U198: 0 | V198: 0 | AA198: 0
I199: Bednění | J199: MULTIFORM | K199: Příslušenství | L199: 2610711 | N199: MF Profil MF1 pojezd 4,5 m (N1) | O199: MF Profil MF1 travel. 4,5 m (N1) | P199: 52.98 | Q199: 6621 | R199: 41.64 | T199: 0 | U199: 0 | V199: 0 | AA199: 0
I200: Bednění | J200: MULTIFORM | K200: Příslušenství | L200: H582352 | N200: MF Spojka H20-H20 | O200: MF Coupler H20-H20 | P200: 4.45 | Q200: 1110 | R200: 3.12 | T200: 0 | U200: 0 | V200: 0 | AA200: 0
I201: Bednění | J201: MULTIFORM | K201: Příslušenství | L201: H568048 | N201: MF Spojka MF1 / H20 | O201: H20 TIMBER BEAM CLAMP | P201: 0.82 | Q201: 332 | R201: 0.95 | T201: 0 | U201: 0 | V201: 0 | AA201: 0
D202: 1 | I202: Bednění | J202: MULTIFORM | K202: Příslušenství | L202: AS630501 | N202: MF Spojka MF1 / MF1 | O202: Multiform MF1 Beam Junction | P202: 3.95 | Q202: 708 | R202: 2 | T202: 0 | U202: 0 | V202: 0 | AA202: 0
... 676 more rows

Sheet Transfer

Sheet List1 (hidden)
A1: Sk.kód | B1: Popis | C1: Počet
A2: 590126 | B2: LG50 Panel 1500 x 750 | C2: 2
A3: 593262 | B3: LG50 Roh vnější kloub 1500 (B) | C3: 2
A4: 590135 | B4: LG50 Panel 1200 x 750 | C4: 10
A5: 590134 | B5: LG50 Panel 1200 x 300 | C5: 10
A6: 590131 | B6: LG50 Panel 1200 x 900 | C6: 70
A7: 590132 | B7: LG50 Panel 1200 x 600 | C7: 8
A8: 590133 | B8: LG50 Panel 1200 x 450 | C8: 20
A9: 590283 | B9: LG50 Tyč vyrov 1200 x 50 | C9: 1
A10: 590203 | B10: LG50 Roh vnitřní 1200 x 300 | C10: 2
A11: 590222 | B11: LG50 Roh vnější 1200 | C11: 14
A12: 593243 | B12: LG50 Roh vnitřní kloub 1200 (B | C12: 2
A13: 590300 | B13: LG50 Spojka klínová | C13: 214
A14: 590301 | B14: LG50 Nastavitelná spojka 0-15c | C14: 58
A15: 2852411 | B15: Matice kruhová DW 15 -110 mm | C15: 224
A16: 2852806 | B16: Matice šestihranná DW15 - 60mm | C16: 24
A17: 2850120 | B17: Spínací tyč DW 15 - 2,0 m | C17: 30
A18: 2850115 | B18: Spínací tyč DW 15 - 1,5 m | C18: 92
A19: 2850135 | B19: Spínací tyč DW 15 - 3,5 m | C19: 2
A20: 590981 | B20: LG Stabil 1,5 & hlava & patka | C20: 11
A21: 590721 | B21: LG Svlakový profil 500 mm | C21: 36
A22: 590311 | B22: LG50 Hák jeřábový | C22: 2
A23: 2860100 | B23: Plastic Sleeving tube 22 mm - | C23: 95
A24: 2861501 | B24: Plastic Cone 22 mm | C24: 248
A25: 2861001 | B25: Disarming oil - 1 l | C25: 4
A26: Z45 | B26: Dř.vzpěra 45 cm dodávka zákazn | C26: 4
A27: T50 | B27: Vyrovnávací nosník 50 cmdodávk | C27: 10
A28: H50:1200 | B28: Hranol 5 x 10 x 120 cm | C28: 2
A29: H90:1200 | B29: Hranol 9 x 10 x 120 cm | C29: 4
A30: H120:1200 | B30: Hranol 12 x 10 x 120 cm | C30: 2
A31: H70:1200 | B31: Hranol 7 x 10 x 120 cm | C31: 6
A32: H150:450 | B32: Hranol 15 x 10 x 45 cm | C32: 4
A33: H100:450 | B33: Hranol 10 x 10 x 45 cm | C33: 4
A34: H10:1500 | B34: Hranol 1 x 10 x 150 cm | C34: 2
A35: H50:1500 | B35: Hranol 5 x 10 x 150 cm | C35: 1
A36: H30:1200 | B36: Hranol 3 x 10 x 120 cm | C36: 2
A37: H50:1250 | B37: Hranol 5 x 10 x 125 cm | C37: 2
A38: O290,0 | B38: Plastic Sleeving tube (290 cm | C38: 2
A39: O112,0 | B39: Plastic Sleeving tube (112 cm | C39: 30
A40: O60,0 | B40: Plastic Sleeving tube (60 cm) | C40: 92

Sheet Import TO (hidden)
A1: Převod seznamu materiálu z Tiposu / H-CADu / Euroschalu 3000 do ceníku SCASERV
B2: 1
A3: =VLOOKUP(C3,'prevodni tabulka '!$G$5:$J$3127,4,FALSE) -> 590126 | B3: LG50 Panel 1500 x 750 | C3: 590126 | D3: 2 | W3: 3
A4: =VLOOKUP(C4,'prevodni tabulka '!$G$5:$J$3127,4,FALSE) -> 593262 | B4: LG50 Roh vnější kloub 1500 (B) | C4: 593262 | D4: 2
A5: =VLOOKUP(C5,'prevodni tabulka '!$G$5:$J$3127,4,FALSE) -> 590135 | B5: LG50 Panel 1200 x 750 | C5: 590135 | D5: 10
A6: =VLOOKUP(C6,'prevodni tabulka '!$G$5:$J$3127,4,FALSE) -> 590134 | B6: LG50 Panel 1200 x 300 | C6: 590134 | D6: 10
A7: =VLOOKUP(C7,'prevodni tabulka '!$G$5:$J$3127,4,FALSE) -> 590131 | B7: LG50 Panel 1200 x 900 | C7: 590131 | D7: 70 | W7: 3
A8: =VLOOKUP(C8,'prevodni tabulka '!$G$5:$J$3127,4,FALSE) -> 590132 | B8: LG50 Panel 1200 x 600 | C8: 590132 | D8: 8
A9: =VLOOKUP(C9,'prevodni tabulka '!$G$5:$J$3127,4,FALSE) -> 590133 | B9: LG50 Panel 1200 x 450 | C9: 590133 | D9: 20
A10: =VLOOKUP(C10,'prevodni tabulka '!$G$5:$J$3127,4,FALSE) -> 590283 | B10: LG50 Tyč vyrov 1200 x 50 | C10: 590283 | D10: 1
A11: =VLOOKUP(C11,'prevodni tabulka '!$G$5:$J$3127,4,FALSE) -> 590203 | B11: LG50 Roh vnitřní 1200 x 300 | C11: 590203 | D11: 2
A12: =VLOOKUP(C12,'prevodni tabulka '!$G$5:$J$3127,4,FALSE) -> 590222 | B12: LG50 Roh vnější 1200 | C12: 590222 | D12: 14 | CZ12: 0.2
A13: =VLOOKUP(C13,'prevodni tabulka '!$G$5:$J$3127,4,FALSE) -> 593243 | B13: LG50 Roh vnitřní kloub 1200 (B | C13: 593243 | D13: 2
A14: =VLOOKUP(C14,'prevodni tabulka '!$G$5:$J$3127,4,FALSE) -> 590300 | B14: LG50 Spojka klínová | C14: 590300 | D14: 214
A15: =VLOOKUP(C15,'prevodni tabulka '!$G$5:$J$3127,4,FALSE) -> 590301 | B15: LG50 Nastavitelná spojka 0-15c | C15: 590301 | D15: 58 | CZ15: 0.1
A16: =VLOOKUP(C16,'prevodni tabulka '!$G$5:$J$3127,4,FALSE) -> 2852411 | B16: Matice kruhová DW 15 -110 mm | C16: 2852411 | D16: 224
A17: =VLOOKUP(C17,'prevodni tabulka '!$G$5:$J$3127,4,FALSE) -> 2852805 | B17: Matice šestihranná DW15 - 60mm | C17: 2852805 | D17: 24
A18: =VLOOKUP(C18,'prevodni tabulka '!$G$5:$J$3127,4,FALSE) -> 2850120 | B18: Spínací tyč DW 15 - 2,0 m | C18: 2850120 | D18: 30 | CZ18: 0.2
A19: =VLOOKUP(C19,'prevodni tabulka '!$G$5:$J$3127,4,FALSE) -> 2850115 | B19: Spínací tyč DW 15 - 1,5 m | C19: 2850115 | D19: 92
A20: =VLOOKUP(C20,'prevodni tabulka '!$G$5:$J$3127,4,FALSE) -> 2850135 | B20: Spínací tyč DW 15 - 3,5 m | C20: 2850135 | D20: 2
A21: =VLOOKUP(C21,'prevodni tabulka '!$G$5:$J$3127,4,FALSE) -> AS720010 | B21: LG Stabil 1,5 & hlava & patka | C21: 590981 | D21: 11
A22: =VLOOKUP(C22,'prevodni tabulka '!$G$5:$J$3127,4,FALSE) -> 590721 | B22: LG Svlakový profil 500 mm | C22: 590721 | D22: 36
A23: =VLOOKUP(C23,'prevodni tabulka '!$G$5:$J$3127,4,FALSE) -> 590311 | B23: LG50 Hák jeřábový | C23: 590311 | D23: 2 | CZ23: 0.9
A24: =VLOOKUP(C24,'prevodni tabulka '!$G$5:$J$3127,4,FALSE) -> 2860120 | B24: Chránička 2,0m | C24: 2860120 | D24: 47.5 | CZ24: 0.9
A25: =VLOOKUP(C25,'prevodni tabulka '!$G$5:$J$3127,4,FALSE) -> 2861501K | B25: Plastic Cone 22 mm | C25: 2861501 | D25: 248
A26: =VLOOKUP(C26,'prevodni tabulka '!$G$5:$J$3127,4,FALSE) -> 2861002 | B26: Disarming oil - 1 l | C26: 930017 | D26: =ROUNDUP(CZ26,0) -> 1 | CZ26: 0.4
CZ28: 0.9
CZ29: 0.9
CZ30: 0.9
CZ31: 0.9
CZ33: 0.4
CZ34: 0.2
CZ35: 0.1
CZ37: 0.3
CZ38: 0.2
CZ40: 0.1
CZ42: 0.1
CZ43: 0.1
CZ44: 0.3
CZ45: 0.1
CY47: 0.1 | CZ47: 0.8
CZ49: 0.4
CZ51: 0.3
CZ52: 0.1
CZ55: 0.4
CZ59: 0.3
CZ62: 1
CZ64: 0.3
CZ66: 0.1
CZ69: 0.5
CZ77: 0.7
O105: a daný "chybový" komponent zadejte nakonec do ceníku ručně
N106: 5. v listu SGB spusťte tlačítko "Import TO"
N107: 6. Zkontrolujte, že odpovídá počet naimportovaných položek !
N109: Pozn. : nefunguje pro TOPEC, RONDU atd - tyto systémy nejsou k 21.10.2008 v ceníku SGB !

Sheet Import
A1: CODE | B1: Počet

Sheet MALOOBCHOD (hidden)
I1: MALOOBCHOD - Ceník SCASERV a.s. - Platnost od 01.06.2025
I2: SEZNAM MATERIÁLU
I4: Zákazník: | J4: =Ceník!J4 -> 0 | P4: Zpracoval: | Q4: Ing. Pavel Stehlík | AB4: Hmotnost> | AC4: =SUMPRODUCT($P$8:$P$855,AC8:AC855)/1000 -> 0 | AD4: 0 | AE4: 0 | AF4: 0 | AG4: 0 | AH4: 0 | AI4: 0 | AJ4: 0 | AK4: 0 | AL4: 0 | AM4: 0 | AN4: 0 | AO4: 0
I5: Akce: | J5: =Ceník!J5 -> 0 | P5: Datum: | Q5: =Ceník!Q5 -> 00:00:00 | AB5: datum nakládky:
A6: technika | B6: LG50 | C6: Variomax | D6: mosty | E6: Sprint základ | F6: Sprint komplet | G6: prostorové | H6: Konzola | I6: Produkt | J6: Sortiment | K6: Komponent | L6: Kód | M6: Kód Editace | N6: Označení komponentu | O6: Component description | P6: Hmotnost 1 ks [kg] | Q6: Prodejní cena 1 ks [Kč] | R6: Nájem 1 ks za 1 den [Kč] | S6: PROJEKCE [ks] | T6: Hmotnost celkem [kg] | U6: Cena celkem [Kč] | V6: Nájem celkem [Kč / den] | Z6: Plocha Bednění [m2] | AA6: Plocha Desky [m2] | AB6: Diference | AC6: LKW 1 | AD6: LKW 2 | AE6: LKW 3 | AF6: LKW 4 | AG6: LKW 5 | AH6: LKW 6 | AI6: LKW 7 | AJ6: LKW 8 | AK6: LKW 9 | AL6: LKW 10 | AM6: LKW xx | AN6: LKW xx | AO6: LKW xx
A8: 1 | C8: 1 | D8: 1 | I8: Bednění | J8: Dřevěné nosníky | K8: řada H20 | L8: 2210108 | N8: H20 Nosník dřevěný - 0,80m (N) | O8: TFB 200 Beam - 0.80m nonstandard | P8: 4 | Q8: 195 | R8: 1.13 | T8: =IF(ISERROR(S8*P8),0,IF(S8*P8<>0,S8*P8,0)) -> 0 | U8: =IF(ISERROR(S8*Q8),0,IF(S8*Q8<>0,S8*Q8,0)) -> 0 | V8: =IF(ISERROR(S8*R8),0,IF(S8*R8<>0,S8*R8,0)) -> 0 | AB8: =S8-SUM(AC8:AO8) -> 0
A9: 1 | C9: 1 | D9: 1 | I9: Bednění | J9: Dřevěné nosníky | K9: řada H20 | L9: 2210111 | N9: H20 Nosník dřevěný - 1,10m | O9: TFB 200 Beam - 1.10m nonstandard | P9: 6 | Q9: 310 | R9: 1.55 | T9: 0 | U9: 0 | V9: 0 | AB9: 0
A10: 1 | C10: 1 | D10: 1 | I10: Bednění | J10: Dřevěné nosníky | K10: řada H20 | L10: 2210114 | M10: 100 | N10: H20 Nosník dřevěný - 1,45m | O10: TFB 200 Beam - 1.45 m | P10: 7.25 | Q10: 408 | R10: 2.04 | T10: 0 | U10: 0 | V10: 0 | AB10: 0
A11: 1 | C11: 1 | D11: 1 | H11: 1 | I11: Bednění | J11: Dřevěné nosníky | K11: řada H20 | L11: 2210119 | N11: H20 Nosník dřevěný - 1,90m | O11: TFB 200 Beam - 1.90 m | P11: 9.5 | Q11: 535 | R11: 2.67 | T11: 0 | U11: 0 | V11: 0 | AB11: 0
A12: 1 | C12: 1 | D12: 1 | H12: 1 | I12: Bednění | J12: Dřevěné nosníky | K12: řada H20 | L12: 2210124 | N12: H20 Nosník dřevěný - 2,45m | O12: TFB 200 Beam - 2.45 m | P12: 12.25 | Q12: 690 | R12: 3.44 | T12: 0 | U12: 0 | V12: 0 | AB12: 0
A13: 1 | C13: 1 | D13: 1 | H13: 1 | I13: Bednění | J13: Dřevěné nosníky | K13: řada H20 | L13: 2210126 | N13: H20 Nosník dřevěný - 2,65m | O13: TFB 200 Beam - 2.65 m | P13: 13.25 | Q13: 746 | R13: 3.72 | T13: 0 | U13: 0 | V13: 0 | AB13: 0
A14: 1 | C14: 1 | D14: 1 | H14: 1 | I14: Bednění | J14: Dřevěné nosníky | K14: řada H20 | L14: 2210129 | M14: 2002900 | N14: H20 Nosník dřevěný - 2,90m | O14: TFB 200 Beam - 2.90 m | P14: 14.5 | Q14: 816 | R14: 4.07 | T14: 0 | U14: 0 | V14: 0 | AB14: 0
A15: 1 | C15: 1 | D15: 1 | H15: 1 | I15: Bednění | J15: Dřevěné nosníky | K15: řada H20 | L15: 2210133 | N15: H20 Nosník dřevěný - 3,30m | O15: TFB 200 Beam - 3.30 m | P15: 16.5 | Q15: 929 | R15: 4.62 | T15: 0 | U15: 0 | V15: 0 | AB15: 0
A16: 1 | C16: 1 | D16: 1 | H16: 1 | I16: Bednění | J16: Dřevěné nosníky | K16: řada H20 | L16: 2210136 | N16: H20 Nosník dřevěný - 3,60m | O16: TFB 200 Beam - 3.60 m | P16: 18 | Q16: 1013 | R16: 5.04 | T16: 0 | U16: 0 | V16: 0 | AB16: 0
A17: 1 | C17: 1 | D17: 1 | H17: 1 | I17: Bednění | J17: Dřevěné nosníky | K17: řada H20 | L17: 2210139 | M17: 2003900 | N17: H20 Nosník dřevěný - 3,90m | O17: TFB 200 Beam - 3.90 m | P17: 19.5 | Q17: 1097 | R17: 5.46 | T17: 0 | U17: 0 | V17: 0 | AB17: 0
A18: 1 | C18: 1 | D18: 1 | H18: 1 | I18: Bednění | J18: Dřevěné nosníky | K18: řada H20 | L18: 2210142 | N18: H20 Nosník dřevěný - 4,20m | O18: TFB 200 Beam - 4.20 m | P18: 21 | Q18: 1182 | R18: 5.88 | T18: 0 | U18: 0 | V18: 0 | AB18: 0
A19: 1 | C19: 1 | D19: 1 | H19: 1 | I19: Bednění | J19: Dřevěné nosníky | K19: řada H20 | L19: 2210145 | N19: H20 Nosník dřevěný - 4,50m | O19: TFB 200 Beam - 4.50 m | P19: 22.5 | Q19: 1266 | R19: 6.3 | T19: 0 | U19: 0 | V19: 0 | AB19: 0
A20: 1 | C20: 1 | D20: 1 | H20: 1 | I20: Bednění | J20: Dřevěné nosníky | K20: řada H20 | L20: 2210149 | N20: H20 Nosník dřevěný - 4,90m | O20: TFB 200 Beam - 4.90 m | P20: 24.5 | Q20: 1379 | R20: 6.86 | T20: 0 | U20: 0 | V20: 0 | AB20: 0
A21: 1 | C21: 1 | D21: 1 | H21: 1 | I21: Bednění | J21: Dřevěné nosníky | K21: řada H20 | L21: 2210159 | M21: 100 | N21: H20 Nosník dřevěný - 5,90m | O21: TFB 200 Beam - 5.0 m | P21: 25 | Q21: 1660 | R21: 8.37 | T21: 0 | U21: 0 | V21: 0 | AB21: 0
A22: 1 | C22: 1 | D22: 1 | H22: 1 | I22: Bednění | J22: Dřevěné nosníky | K22: řada H20 | L22: ZAK2210111 | N22: H20 Nosník dřevěný - 1,10m (N) | O22: TFB 200 Beam - 1.10m nonstandard | P22: 6 | Q22: 255 | R22: 1.96 | T22: 0 | U22: 0 | V22: 0 | AB22: 0
A23: 1 | C23: 1 | D23: 1 | H23: 1 | I23: Bednění | J23: Dřevěné nosníky | K23: řada H20 | L23: ZAK2210114 | N23: H20 Nosník dřevěný - 1,45m | O23: TFB 200 Beam - 1.45 m nonstandard | P23: 7.25 | Q23: 335 | R23: 3.56 | T23: 0 | U23: 0 | V23: 0 | AB23: 0
I24: Bednění | J24: Dřevěné nosníky | K24: Spojky | L24: H563001 | N24: Spojka H20/H20 | O24: UNI-CLAMP | P24: 0.55 | Q24: 695 | R24: 1.82 | T24: 0 | U24: 0 | V24: 0 | AB24: 0
I25: Bednění | J25: Kotevní příslušenství | K25: Příslušenství | L25: 4207002 | N25: Montážní klíč Mk 19/22 stříbrný | O25: Construction Spanner Mk 19/22 silver | P25: 0.43 | Q25: 323 | R25: jen prodej | T25: 0 | U25: 0 | V25: 0 | AB25: 0
I26: Bednění | J26: Kotevní příslušenství | K26: Příslušenství | L26: 4207003 | N26: Montážní klíč Mk 19/22 hnědý | O26: Construction Spanner Mk 19/22 brown | P26: 0.43 | Q26: 323 | R26: jen prodej | T26: 0 | U26: 0 | V26: 0 | AB26: 0
I27: Bednění | J27: Kotevní příslušenství | K27: Příslušenství | L27: 4207004 | N27: Montážní klíč Mk 19/22 černý | O27: Construction Spanner Mk 19/22 black | P27: 0.43 | Q27: 299 | R27: jen prodej | T27: 0 | U27: 0 | V27: 0 | AB27: 0
I28: Bednění | J28: Kotevní příslušenství | K28: Příslušenství | L28: 4207005 | N28: Montážní klíč Mk 19/22 stříbrný UNI | O28: Construction Spanner Mk 19/22 silver with hammer | P28: 0.53 | Q28: 444 | R28: jen prodej | T28: 0 | U28: 0 | V28: 0 | AB28: 0
I29: Bednění | J29: Kotevní příslušenství | K29: Příslušenství | L29: 4207006 | N29: Montážní klíč Mk 19/22 černý UNI | O29: Construction Spanner Mk 19/22 black with hammer | P29: 0.53 | Q29: 429 | R29: jen prodej | T29: 0 | U29: 0 | V29: 0 | AB29: 0
A30: 1 | H30: 1 | I30: Bednění | J30: Kotevní příslušenství | K30: Příslušenství | L30: 4204650 | N30: Podložka závitové tyče R22 | O30: Threaded Rod plate R22 | P30: 0.0183 | Q30: 50 | R30: jen prodej | T30: 0 | U30: 0 | V30: 0 | AB30: 0
A31: 1 | H31: 1 | I31: Bednění | J31: Kotevní příslušenství | K31: Příslušenství | L31: 4204700 | N31: Závitová tyč M20-1.0M (tř.8.8) | O31: Threaded Rod M20-1.0m (class 8.8) | P31: 2.43 | Q31: 333 | R31: jen prodej | T31: 0 | U31: 0 | V31: 0 | AB31: 0
A32: 1 | B32: 1 | I32: Bednění | J32: LOGIK 50 | K32: Příslušenství | L32: 590311 | N32: LG50 Hák jeřábový | O32: Logik50 Crane Hook | P32: 4.26 | Q32: 10334 | R32: 24.29 | T32: 0 | U32: 0 | V32: 0 | AB32: 0
I33: Bednění | J33: LOGIK 50 | K33: Příslušenství | L33: SCA590311 | N33: SCA -LG50 Hák jeřábový | O33: Logik50 Crane Hook | P33: 4.26 | Q33: 10334 | R33: 24.29 | T33: 0 | U33: 0 | V33: 0 | AB33: 0
A34: 1 | B34: 1 | I34: Bednění | J34: LOGIK 50 | K34: Příslušenství | L34: 590802 | N34: LG50 Kotevní spojka | O34: LG50 Anchor clamp | P34: 2.4 | Q34: 401 | R34: 0.99 | T34: 0 | U34: 0 | V34: 0 | AB34: 0
I35: Bednění | J35: LOGIK 50 | K35: Příslušenství | L35: 870478 | N35: LG50 Nádstavec jednostr opěry | O35: LG50 A-Frame Extension | P35: 0 | Q35: 401 | R35: 0.99 | T35: 0 | U35: 0 | V35: 0 | AB35: 0
A36: 1 | B36: 1 | I36: Bednění | J36: LOGIK 50 | K36: Příslušenství | L36: 590301 | N36: LG50 Nastavitelná spojka 0-15 cm | O36: Logik50 Adjustable Clamp | P36: 5.4 | Q36: 2386 | R36: 6.38 | T36: 0 | U36: 0 | V36: 0 | AB36: 0
A37: 1 | B37: 1 | I37: Bednění | J37: LOGIK 50 | K37: Panely | L37: 590134 | N37: LG50 Panel 1200 x 300 | O37: LG50 Panel 1200 x 300 | P37: 17.53 | Q37: 6796 | R37: 19.98 | T37: 0 | U37: 0 | V37: 0 | Z37: 0.36 | AB37: 0
I38: Bednění | J38: LOGIK 50 | K38: Panely | L38: SCA590134 | N38: SCA -LG50 Panel 1200 x 300 | O38: SCA -LG50 Panel 1200 x 300 | P38: 17.53 | Q38: 6796 | R38: 19.98 | T38: 0 | U38: 0 | V38: 0 | Z38: 0.36 | AB38: 0
I39: Bednění | J39: LOGIK 50 | K39: Panely | L39: ZAK590134 | N39: ZAK -LG50 Panel 1200 x 300 | O39: ZAK -LG50 Panel 1200 x 300 | P39: 17.53 | Q39: 6796 | R39: 19.98 | T39: 0 | U39: 0 | V39: 0 | Z39: 0.36 | AB39: 0
A40: 1 | B40: 1 | I40: Bednění | J40: LOGIK 50 | K40: Panely | L40: 590133 | N40: LG50 Panel 1200 x 450 | O40: LG50 Panel 1200 x 450 | P40: 22.59 | Q40: 7118 | R40: 20.93 | T40: =IF(ISERROR(S40*P40),0,IF(S40*P40<>0,S40*P40,0)) -> 0 | U40: =IF(ISERROR(S40*Q40),0,IF(S40*Q40<>0,S40*Q40,0)) -> 0 | V40: =IF(ISERROR(S40*R40),0,IF(S40*R40<>0,S40*R40,0)) -> 0 | Z40: 0.54 | AB40: 0
A41: 1 | B41: 1 | I41: Bednění | J41: LOGIK 50 | K41: Panely | L41: SCA590133 | N41: SCA -LG50 Panel 1200 x 450 | O41: LG50 Panel 1200 x 450 | P41: 22.59 | Q41: 7118 | R41: 20.93 | T41: 0 | U41: 0 | V41: 0 | Z41: 0.54 | AB41: 0
A42: 1 | B42: 1 | I42: Bednění | J42: LOGIK 50 | K42: Panely | L42: ZAK590133 | N42: ZAK -LG50 Panel 1200 x 450 | O42: ZAK -LG50 Panel 1200 x 450 | P42: 22.59 | Q42: 7118 | R42: 20.93 | T42: 0 | U42: 0 | V42: 0 | Z42: 0.54 | AB42: 0
A43: 1 | B43: 1 | I43: Bednění | J43: LOGIK 50 | K43: Panely | L43: 590132 | N43: LG50 Panel 1200 x 600 | O43: LG50 Panel 1200 x 600 | P43: 29.85 | Q43: 8525 | R43: 25.06 | T43: 0 | U43: 0 | V43: 0 | Z43: 0.72 | AB43: 0
A44: 1 | B44: 1 | I44: Bednění | J44: LOGIK 50 | K44: Panely | L44: SCA590132 | N44: SCA -LG50 Panel 1200 x 600 | O44: SCA -LG50 Panel 1200 x 600 | P44: 29.85 | Q44: 8525 | R44: 25.06 | T44: 0 | U44: 0 | V44: 0 | Z44: 0.72 | AB44: 0
A45: 1 | B45: 1 | I45: Bednění | J45: LOGIK 50 | K45: Panely | L45: ZAK590132 | N45: ZAK -LG50 Panel 1200 x 600 | O45: ZAK -LG50 Panel 1200 x 600 | P45: 29.85 | Q45: 8525 | R45: 25.06 | T45: 0 | U45: 0 | V45: 0 | Z45: 0.72 | AB45: 0
A46: 1 | B46: 1 | I46: Bednění | J46: LOGIK 50 | K46: Panely | L46: 590135 | N46: LG50 Panel 1200 x 750 | O46: LG50 Panel 1200 x 750 | P46: 36.395 | Q46: 8843 | R46: 26 | T46: 0 | U46: 0 | V46: 0 | Z46: 0.9 | AB46: 0
A47: 1 | B47: 1 | I47: Bednění | J47: LOGIK 50 | K47: Panely | L47: SCA590135 | N47: SCA -LG50 Panel 1200 x 750 | O47: SCA -LG50 Panel 1200 x 750 | P47: 36.395 | Q47: 8843 | R47: 26 | T47: 0 | U47: 0 | V47: 0 | Z47: 0.9 | AB47: 0
A48: 1 | B48: 1 | I48: Bednění | J48: LOGIK 50 | K48: Panely | L48: ZAK590135 | N48: ZAK -LG50 Panel 1200 x 750 | O48: ZAK -LG50 Panel 1200 x 750 | P48: 36.395 | Q48: 8843 | R48: 26 | T48: 0 | U48: 0 | V48: 0 | Z48: 0.9 | AB48: 0
A49: 1 | B49: 1 | I49: Bednění | J49: LOGIK 50 | K49: Panely | L49: 590131 | N49: LG50 Panel 1200 x 900 | O49: LG50 Panel 1200 x 900 | P49: 41.9 | Q49: 10101 | R49: 29.7 | T49: 0 | U49: 0 | V49: 0 | Z49: 1.08 | AB49: 0
A50: 1 | B50: 1 | I50: Bednění | J50: LOGIK 50 | K50: Panely | L50: SCA590131 | N50: SCA -LG50 Panel 1200 x 900 | O50: SCA -LG50 Panel 1200 x 900 | P50: 41.9 | Q50: 10101 | R50: 29.7 | T50: 0 | U50: 0 | V50: 0 | Z50: 1.08 | AB50: 0
A51: 1 | B51: 1 | I51: Bednění | J51: LOGIK 50 | K51: Panely | L51: ZAK590131 | N51: ZAK -LG50 Panel 1200 x 900 | O51: ZAK -LG50 Panel 1200 x 900 | P51: 41.9 | Q51: 10101 | R51: 29.7 | T51: 0 | U51: 0 | V51: 0 | Z51: 1.08 | AB51: 0
A52: 1 | B52: 1 | I52: Bednění | J52: LOGIK 50 | K52: Panely | L52: 590122 | N52: LG50 Panel 1500 x 300 | O52: LG50 Panel 1500 x 300 | P52: 21.34 | Q52: 8131 | R52: 23.91 | T52: 0 | U52: 0 | V52: 0 | Z52: 0.45 | AB52: 0
A53: 1 | B53: 1 | I53: Bednění | J53: LOGIK 50 | K53: Panely | L53: SCA590122 | N53: SCA -LG50 Panel 1500 x 300 | O53: SCA -LG50 Panel 1500 x 300 | P53: 21.34 | Q53: 8131 | R53: 23.91 | T53: 0 | U53: 0 | V53: 0 | Z53: 0.45 | AB53: 0
A54: 1 | B54: 1 | I54: Bednění | J54: LOGIK 50 | K54: Panely | L54: ZAK590122 | N54: ZAK -LG50 Panel 1500 x 300 | O54: ZAK -LG50 Panel 1500 x 300 | P54: 21.34 | Q54: 8131 | R54: 23.91 | T54: 0 | U54: 0 | V54: 0 | Z54: 0.45 | AB54: 0
A55: 1 | B55: 1 | I55: Bednění | J55: LOGIK 50 | K55: Panely | L55: 590123 | N55: LG50 Panel 1500 x 450 | O55: LG50 Panel 1500 x 450 | P55: 27.35 | Q55: 8929 | R55: 26.25 | T55: 0 | U55: 0 | V55: 0 | Z55: 0.675 | AB55: 0
A56: 1 | B56: 1 | I56: Bednění | J56: LOGIK 50 | K56: Panely | L56: SCA590123 | N56: SCA -LG50 Panel 1500 x 450 | O56: SCA -LG50 Panel 1500 x 450 | P56: 27.35 | Q56: 8929 | R56: 26.25 | T56: 0 | U56: 0 | V56: 0 | Z56: 0.675 | AB56: 0
A57: 1 | B57: 1 | I57: Bednění | J57: LOGIK 50 | K57: Panely | L57: ZAK590123 | N57: ZAK -LG50 Panel 1500 x 450 | O57: ZAK -LG50 Panel 1500 x 450 | P57: 27.35 | Q57: 8929 | R57: 26.25 | T57: 0 | U57: 0 | V57: 0 | Z57: 0.675 | AB57: 0
A58: 1 | B58: 1 | I58: Bednění | J58: LOGIK 50 | K58: Panely | L58: 590121 | N58: LG50 Panel 1500 x 600 | O58: LG50 Panel 1500 x 600 | P58: 35.63 | Q58: 9967 | R58: 29.31 | T58: 0 | U58: 0 | V58: 0 | Z58: 0.9 | AB58: 0
A59: 1 | B59: 1 | I59: Bednění | J59: LOGIK 50 | K59: Panely | L59: SCA590121 | N59: SCA -LG50 Panel 1500 x 600 | O59: SCA -LG50 Panel 1500 x 600 | P59: 35.63 | Q59: 9967 | R59: 29.31 | T59: 0 | U59: 0 | V59: 0 | Z59: 0.9 | AB59: 0
A60: 1 | B60: 1 | I60: Bednění | J60: LOGIK 50 | K60: Panely | L60: ZAK590121 | N60: ZAK -LG50 Panel 1500 x 600 | O60: ZAK -LG50 Panel 1500 x 600 | P60: 35.63 | Q60: 9967 | R60: 29.31 | T60: 0 | U60: 0 | V60: 0 | Z60: 0.9 | AB60: 0
A61: 1 | B61: 1 | I61: Bednění | J61: LOGIK 50 | K61: Panely | L61: 590126 | N61: LG50 Panel 1500 x 750 | O61: LG50 Panel 1500 x 750 | P61: 41.53 | Q61: 10547 | R61: 31.01 | T61: 0 | U61: 0 | V61: 0 | Z61: 1.125 | AB61: 0
A62: 1 | B62: 1 | I62: Bednění | J62: LOGIK 50 | K62: Panely | L62: SCA590126 | N62: SCA -LG50 Panel 1500 x 750 | O62: SCA -LG50 Panel 1500 x 750 | P62: 41.53 | Q62: 10547 | R62: 31.01 | T62: 0 | U62: 0 | V62: 0 | Z62: 1.125 | AB62: 0
A63: 1 | B63: 1 | I63: Bednění | J63: LOGIK 50 | K63: Panely | L63: ZAK590126 | N63: ZAK -LG50 Panel 1500 x 750 | O63: ZAK -LG50 Panel 1500 x 750 | P63: 41.53 | Q63: 10547 | R63: 31.01 | T63: 0 | U63: 0 | V63: 0 | Z63: 1.125 | AB63: 0
A64: 1 | B64: 1 | I64: Bednění | J64: LOGIK 50 | K64: Panely | L64: 590120 | N64: LG50 Panel 1500 x 900 | O64: LG50 Panel 1500 x 900 | P64: 49.59 | Q64: 12146 | R64: 35.71 | T64: 0 | U64: 0 | V64: 0 | Z64: 1.35 | AB64: 0
A65: 1 | B65: 1 | I65: Bednění | J65: LOGIK 50 | K65: Panely | L65: SCA590120 | N65: SCA -LG50 Panel 1500 x 900 | O65: SCA -LG50 Panel 1500 x 900 | P65: 49.59 | Q65: 12146 | R65: 35.71 | T65: 0 | U65: 0 | V65: 0 | Z65: 1.35 | AB65: 0
A66: 1 | B66: 1 | I66: Bednění | J66: LOGIK 50 | K66: Panely | L66: ZAK590120 | N66: ZAK -LG50 Panel 1500 x 900 | O66: ZAK -LG50 Panel 1500 x 900 | P66: 49.59 | Q66: 12146 | R66: 35.71 | T66: 0 | U66: 0 | V66: 0 | Z66: 1.35 | AB66: 0
A67: 1 | B67: 1 | I67: Bednění | J67: LOGIK 50 | K67: Panely | L67: 590104 | N67: LG50 Panel 2700 x 300 | O67: LG50 Panel 2700 x 300 | P67: 37.9 | Q67: 12005 | R67: 35.29 | T67: 0 | U67: 0 | V67: 0 | Z67: 0.81 | AB67: 0
A68: 1 | B68: 1 | I68: Bednění | J68: LOGIK 50 | K68: Panely | L68: SCA590104 | N68: SCA -LG50 Panel 2700 x 300 | O68: SCA -LG50 Panel 2700 x 300 | P68: 37.9 | Q68: 12005 | R68: 35.29 | T68: 0 | U68: 0 | V68: 0 | Z68: 0.81 | AB68: 0
A69: 1 | B69: 1 | I69: Bednění | J69: LOGIK 50 | K69: Panely | L69: ZAK590104 | N69: ZAK -LG50 Panel 2700 x 300 | O69: ZAK -LG50 Panel 2700 x 300 | P69: 37.9 | Q69: 12005 | R69: 35.29 | T69: 0 | U69: 0 | V69: 0 | Z69: 0.81 | AB69: 0
A70: 1 | B70: 1 | I70: Bednění | J70: LOGIK 50 | K70: Panely | L70: 590103 | N70: LG50 Panel 2700 x 450 | O70: LG50 Panel 2700 x 450 | P70: 48.52 | Q70: 13095 | R70: 38.5 | T70: 0 | U70: 0 | V70: 0 | Z70: 1.215 | AB70: 0
A71: 1 | B71: 1 | I71: Bednění | J71: LOGIK 50 | K71: Panely | L71: SCA590103 | N71: SCA -LG50 Panel 2700 x 450 | O71: SCA -LG50 Panel 2700 x 450 | P71: 48.52 | Q71: 13095 | R71: 38.5 | T71: 0 | U71: 0 | V71: 0 | Z71: 1.215 | AB71: 0
A72: 1 | B72: 1 | I72: Bednění | J72: LOGIK 50 | K72: Panely | L72: ZAK590103 | N72: ZAK -LG50 Panel 2700 x 450 | O72: ZAK -LG50 Panel 2700 x 450 | P72: 48.52 | Q72: 13095 | R72: 38.5 | T72: =IF(ISERROR(S72*P72),0,IF(S72*P72<>0,S72*P72,0)) -> 0 | U72: =IF(ISERROR(S72*Q72),0,IF(S72*Q72<>0,S72*Q72,0)) -> 0 | V72: =IF(ISERROR(S72*R72),0,IF(S72*R72<>0,S72*R72,0)) -> 0 | Z72: 1.215 | AB72: =S72-SUM(AC72:AO72) -> 0
A73: 1 | B73: 1 | I73: Bednění | J73: LOGIK 50 | K73: Panely | L73: 590102 | N73: LG50 Panel 2700 x 600 | O73: LG50 Panel 2700 x 600 | P73: 61.53 | Q73: 15095 | R73: 44.38 | T73: 0 | U73: 0 | V73: 0 | Z73: 1.62 | AB73: 0
A74: 1 | B74: 1 | I74: Bednění | J74: LOGIK 50 | K74: Panely | L74: SCA590102 | N74: SCA -LG50 Panel 2700 x 600 | O74: SCA -LG50 Panel 2700 x 600 | P74: 61.53 | Q74: 15095 | R74: 44.38 | T74: 0 | U74: 0 | V74: 0 | Z74: 1.62 | AB74: 0
A75: 1 | B75: 1 | I75: Bednění | J75: LOGIK 50 | K75: Panely | L75: ZAK590102 | N75: ZAK -LG50 Panel 2700 x 600 | O75: ZAK -LG50 Panel 2700 x 600 | P75: 61.53 | Q75: 15095 | R75: 44.38 | T75: 0 | U75: 0 | V75: 0 | Z75: 1.62 | AB75: 0
A76: 1 | B76: 1 | I76: Bednění | J76: LOGIK 50 | K76: Panely | L76: 590105 | N76: LG50 Panel 2700 x 750 | O76: LG50 Panel 2700 x 750 | P76: 73.625 | Q76: 15554 | R76: 45.73 | T76: 0 | U76: 0 | V76: 0 | Z76: 2.025 | AB76: 0
A77: 1 | B77: 1 | I77: Bednění | J77: LOGIK 50 | K77: Panely | L77: SCA590105 | N77: SCA -LG50 Panel 2700 x 750 | O77: SCA -LG50 Panel 2700 x 750 | P77: 73.625 | Q77: 15554 | R77: 45.73 | T77: 0 | U77: 0 | V77: 0 | Z77: 2.025 | AB77: 0
A78: 1 | B78: 1 | I78: Bednění | J78: LOGIK 50 | K78: Panely | L78: ZAK590105 | N78: ZAK -LG50 Panel 2700 x 750 | O78: ZAK -LG50 Panel 2700 x 750 | P78: 73.625 | Q78: 15554 | R78: 45.73 | T78: 0 | U78: 0 | V78: 0 | Z78: 2.025 | AB78: 0
A79: 1 | B79: 1 | I79: Bednění | J79: LOGIK 50 | K79: Panely | L79: 590101 | N79: LG50 Panel 2700 x 900 | O79: LG50 Panel 2700 x 900 | P79: 84.7 | Q79: 18072 | R79: 53.13 | T79: 0 | U79: 0 | V79: 0 | Z79: 2.43 | AB79: 0
I80: Bednění | J80: LOGIK 50 | K80: Panely | L80: SCA590101 | N80: SCA -LG50 Panel 2700 x 900 | O80: SCA -LG50 Panel 2700 x 900 | P80: 84.7 | Q80: 18072 | R80: 53.13 | T80: 0 | U80: 0 | V80: 0 | Z80: 2.43 | AB80: 0
I81: Bednění | J81: LOGIK 50 | K81: Panely | L81: ZAK590101 | N81: ZAK -LG50 Panel 2700 x 900 | O81: ZAK -LG50 Panel 2700 x 900 | P81: 84.7 | Q81: 18072 | R81: 53.13 | T81: 0 | U81: 0 | V81: 0 | Z81: 2.43 | AB81: 0
I82: Bednění | J82: LOGIK 50 | K82: profily/vyrovnávací prvky | L82: 590273 | N82: LG50 Plech vyrov 1200 x 350 | O82: Logik50 Filler Plate 1200 x 350 | P82: 18.67 | Q82: 4466 | R82: 13.14 | T82: 0 | U82: 0 | V82: 0 | AB82: 0
I83: Bednění | J83: LOGIK 50 | K83: profily/vyrovnávací prvky | L83: 590272 | N83: LG50 Plech vyrov 1500 x 300 | O83: Logik50 Filler Plate 1500 x 350 | P83: 21.23 | Q83: 4899 | R83: 14.4 | T83: 0 | U83: 0 | V83: 0 | AB83: 0
I84: Bednění | J84: LOGIK 50 | K84: profily/vyrovnávací prvky | L84: 590271 | N84: LG50 Plech vyrov 2700 x 350 | O84: Logik50 Filler Plate 2700 x 350 | P84: 41.1 | Q84: 7804 | R84: 22.95 | T84: 0 | U84: 0 | V84: 0 | AB84: 0
I85: Bednění | J85: LOGIK 50 | K85: Náhradní díly | L85: AS100005 | N85: LG50 Průchodka PVC | O85: Logik50 PVC sleever | P85: 0.009 | Q85: 19 | R85: jen prodej | T85: 0 | U85: 0 | V85: 0 | AB85: 0
A86: 1 | B86: 1 | I86: Bednění | J86: LOGIK 50 | K86: rohy | L86: SCA590223 | N86: SCA -LG50 Roh vnější 750 | O86: Logik50 External Corner 750 | P86: 8.2 | Q86: 2605 | R86: 7.66 | T86: =IF(ISERROR(S86*P86),0,IF(S86*P86<>0,S86*P86,0)) -> 0 | U86: =IF(ISERROR(S86*Q86),0,IF(S86*Q86<>0,S86*Q86,0)) -> 0 | V86: =IF(ISERROR(S86*R86),0,IF(S86*R86<>0,S86*R86,0)) -> 0 | AB86: 0
A87: 1 | B87: 1 | I87: Bednění | J87: LOGIK 50 | K87: rohy | L87: 590222 | N87: LG50 Roh vnější 1200 | O87: Logik50 External Corner 1200 | P87: 10.322 | Q87: 3977 | R87: 11.7 | T87: 0 | U87: 0 | V87: 0 | AB87: 0
A88: 1 | B88: 1 | I88: Bednění | J88: LOGIK 50 | K88: rohy | L88: SCA590222 | N88: SCA -LG50 Roh vnější 1200 | O88: Logik50 External Corner 1200 | P88: 10.322 | Q88: 3977 | R88: 11.7 | T88: 0 | U88: 0 | V88: 0 | AB88: 0
A89: 1 | B89: 1 | I89: Bednění | J89: LOGIK 50 | K89: rohy | L89: 590221 | N89: LG50 Roh vnější 1500 | O89: Logik50 External Corner 1500 | P89: 11.84 | Q89: 4737 | R89: 13.93 | T89: 0 | U89: 0 | V89: 0 | AB89: 0
A90: 1 | B90: 1 | I90: Bednění | J90: LOGIK 50 | K90: rohy | L90: SCA590221 | N90: SCA -LG50 Roh vnější 1500 | O90: Logik50 External Corner 1500 | P90: 11.84 | Q90: 4737 | R90: 13.93 | T90: 0 | U90: 0 | V90: 0 | AB90: 0
A91: 1 | B91: 1 | I91: Bednění | J91: LOGIK 50 | K91: rohy | L91: 590220 | N91: LG50 Roh vnější 2700 | O91: Logik50 External Corner 2700 | P91: 21.11 | Q91: 7836 | R91: 23.04 | T91: 0 | U91: 0 | V91: 0 | AB91: 0
A92: 1 | B92: 1 | I92: Bednění | J92: LOGIK 50 | K92: rohy | L92: SCA590220 | N92: SCA -LG50 Roh vnější 2700 | O92: Logik50 External Corner 2700 | P92: 21.11 | Q92: 7836 | R92: 23.04 | T92: 0 | U92: 0 | V92: 0 | AB92: 0
A93: 1 | B93: 1 | I93: Bednění | J93: LOGIK 50 | K93: rohy | L93: 593263 | N93: LG50 Roh vnější kloub 1200 | O93: LG50 Outer Hinge Corner 1200 C | P93: 21.48 | Q93: 6777 | R93: 19.93 | T93: 0 | U93: 0 | V93: 0 | Z93: 0.307 | AB93: 0
A94: 1 | B94: 1 | I94: Bednění | J94: LOGIK 50 | K94: rohy | L94: SCA593263 | N94: SCA -LG50 Roh vnější kloub 1200 | O94: LG50 Outer Hinge Corner 1200 C | P94: 21.48 | Q94: 6777 | R94: 19.93 | T94: 0 | U94: 0 | V94: 0 | Z94: 0.307 | AB94: 0
A95: 1 | B95: 1 | I95: Bednění | J95: LOGIK 50 | K95: rohy | L95: 593262 | N95: LG50 Roh vnější kloub 1500 | O95: LG50 Outer Hinge Corner 1500 C | P95: 26.68 | Q95: 7595 | R95: 22.33 | T95: 0 | U95: 0 | V95: 0 | Z95: 0.384 | AB95: 0
A96: 1 | B96: 1 | I96: Bednění | J96: LOGIK 50 | K96: rohy | L96: SCA593262 | N96: SCA -LG50 Roh vnější kloub 1500 | O96: LG50 Outer Hinge Corner 1500 C | P96: 26.68 | Q96: 7595 | R96: 22.33 | T96: 0 | U96: 0 | V96: 0 | Z96: 0.384 | AB96: 0
B97: 1 | I97: Bednění | J97: LOGIK 50 | K97: rohy | L97: SCA590204 | N97: SCA -LG50 Roh vnitřní 750 x 300 | O97: Logik50 Internal Corner 750x300 | P97: 24.56 | Q97: 5791 | R97: 17.03 | T97: 0 | U97: 0 | V97: 0 | Z97: 0.45 | AB97: 0
A98: 1 | B98: 1 | I98: Bednění | J98: LOGIK 50 | K98: rohy | L98: 590203 | N98: LG50 Roh vnitřní 1200 x 300 | O98: Logik50 Internal Corner 1200x300 | P98: 34.46 | Q98: 8572 | R98: 25.21 | T98: 0 | U98: 0 | V98: 0 | Z98: 0.72 | AB98: 0
A99: 1 | B99: 1 | I99: Bednění | J99: LOGIK 50 | K99: rohy | L99: SCA590203 | N99: SCA -LG50 Roh vnitřní 1200 x 300 | O99: Logik50 Internal Corner 1200x300 | P99: 34.46 | Q99: 8572 | R99: 25.21 | T99: 0 | U99: 0 | V99: 0 | Z99: 0.72 | AB99: 0
A100: 1 | B100: 1 | I100: Bednění | J100: LOGIK 50 | K100: rohy | L100: 590202 | N100: LG50 Roh vnitřní 1500 x 300 | O100: Logik50 Internal Corner 1500x300 | P100: 41.15 | Q100: 10530 | R100: 30.96 | T100: 0 | U100: 0 | V100: 0 | Z100: 0.9 | AB100: 0
A101: 1 | B101: 1 | I101: Bednění | J101: LOGIK 50 | K101: rohy | L101: SCA590202 | N101: SCA -LG50 Roh vnitřní 1500 x 300 | O101: Logik50 Internal Corner 1500x300 | P101: 41.15 | Q101: 10530 | R101: 30.96 | T101: 0 | U101: 0 | V101: 0 | Z101: 0.9 | AB101: 0
A102: 1 | B102: 1 | I102: Bednění | J102: LOGIK 50 | K102: rohy | L102: 590200 | N102: LG50 Roh vnitřní 2700 x 300 | O102: Logik50 Internal Corner 2700x300 | P102: 69.3 | Q102: 15876 | R102: 46.68 | T102: 0 | U102: 0 | V102: 0 | Z102: =2.7*0.6 -> 1.62 | AB102: 0
A103: 1 | B103: 1 | I103: Bednění | J103: LOGIK 50 | K103: rohy | L103: SCA590200 | N103: SCA - LG50 Roh vnitřní 2700 x 300 | O103: Logik50 Internal Corner 2700x300 | P103: 69.3 | Q103: 15876 | R103: 46.68 | T103: 0 | U103: 0 | V103: 0 | Z103: =2.7*0.6 -> 1.62 | AB103: 0
A104: 1 | B104: 1 | I104: Bednění | J104: LOGIK 50 | K104: rohy | L104: 593243 | N104: LG50 Roh vnitřní kloub 1200 | O104: LG50 Inner Hinge Corner 1200 C | P104: 35 | Q104: 8401 | R104: 24.7 | T104: 0 | U104: 0 | V104: 0 | Z104: 0.744 | AB104: 0
A105: 1 | B105: 1 | I105: Bednění | J105: LOGIK 50 | K105: rohy | L105: SCA593243 | N105: SCA -LG50 Roh vnitřní kloub 1200 | O105: LG50 Inner Hinge Corner 1200 C | P105: 35 | Q105: 8401 | R105: 24.7 | T105: 0 | U105: 0 | V105: 0 | Z105: 0.744 | AB105: 0
A106: 1 | B106: 1 | I106: Bednění | J106: LOGIK 50 | K106: rohy | L106: 593242 | N106: LG50 Roh vnitřní kloub 1500 | O106: LG50 Inner Hinge Corner 1500 C | P106: 42.8 | Q106: 15206 | R106: 44.71 | T106: =IF(ISERROR(S106*P106),0,IF(S106*P106<>0,S106*P106,0)) -> 0 | U106: =IF(ISERROR(S106*Q106),0,IF(S106*Q106<>0,S106*Q106,0)) -> 0 | V106: =IF(ISERROR(S106*R106),0,IF(S106*R106<>0,S106*R106,0)) -> 0 | Z106: 0.93 | AB106: 0
A107: 1 | B107: 1 | I107: Bednění | J107: LOGIK 50 | K107: rohy | L107: SCA593242 | N107: SCA -LG50 Roh vnitřní kloub 1500 | O107: LG50 Inner Hinge Corner 1500 C | P107: 42.8 | Q107: 15206 | R107: 44.71 | T107: 0 | U107: 0 | V107: 0 | Z107: 0.93 | AB107: 0
I108: Bednění | J108: LOGIK 50 | L108: SCA590101U | N108: SCA -LG50 Panel UNI 2700 x 900 | P108: 84.7 | Q108: 20783 | R108: 67.25 | T108: =IF(ISERROR(S108*P108),0,IF(S108*P108<>0,S108*P108,0)) -> 0 | U108: =IF(ISERROR(S108*Q108),0,IF(S108*Q108<>0,S108*Q108,0)) -> 0 | V108: =IF(ISERROR(S108*R108),0,IF(S108*R108<>0,S108*R108,0)) -> 0 | Z108: 2.43 | AB108: 0
I109: Bednění | J109: LOGIK 50 | L109: SCA590105U | N109: SCA -LG50 Panel UNI 2700 x 750 | P109: 73.625 | Q109: 17888 | R109: 58.65 | T109: 0 | U109: 0 | V109: 0 | Z109: 2.025 | AB109: 0
I110: Bednění | J110: LOGIK 50 | L110: SCA590120U | N110: SCA -LG50 Panel UNI 1500 x 900 | P110: 49.59 | Q110: 13968 | R110: 46 | T110: 0 | U110: 0 | V110: 0 | Z110: 1.35 | AB110: 0
I111: Bednění | J111: LOGIK 50 | L111: SCA590126U | N111: SCA -LG50 Panel UNI 1500 x 750 | P111: 41.53 | Q111: 12130 | R111: 40.25 | T111: 0 | U111: 0 | V111: 0 | Z111: 1.125 | AB111: 0
I112: Bednění | J112: LOGIK 50 | L112: SCA590131U | N112: SCA -LG50 Panel UNI 1200 x 900 | P112: 41.9 | Q112: 11617 | R112: 37.95 | T112: 0 | U112: 0 | V112: 0 | Z112: 1.08 | AB112: 0
I113: Bednění | J113: LOGIK 50 | L113: SCA590135U | N113: SCA -LG50 Panel UNI 1200 x 750 | P113: 36.395 | Q113: 10170 | R113: 42 | T113: 0 | U113: 0 | V113: 0 | Z113: 0.9 | AB113: 0
A114: 1 | B114: 1 | I114: Bednění | J114: LOGIK 50 | K114: Příslušenství | L114: 590310 | N114: LG50 Sloupová spínací spojka | O114: Logik50 Column Coupler | P114: 1.89 | Q114: 1367 | R114: 3.66 | T114: 0 | U114: 0 | V114: 0 | AB114: 0
A115: 1 | B115: 1 | I115: Bednění | J115: LOGIK 50 | K115: Příslušenství | L115: 590300 | N115: LG50 Spojka klínová | O115: Logik50 Clamp Standard | P115: 1.05 | Q115: 728 | R115: 1.82 | T115: 0 | U115: 0 | V115: 0 | AB115: 0
A116: 1 | B116: 1 | I116: Bednění | J116: LOGIK 50 | K116: profily/vyrovnávací prvky | L116: 590283 | N116: LG50 Tyč vyrov 1200 x 50 | O116: Logik50 Filler Profile 1200 x 50 | P116: 6.96 | Q116: 2438 | R116: 6.53 | T116: 0 | U116: 0 | V116: 0 | Z116: 0.06 | AB116: 0
I117: Bednění | J117: LOGIK 50 | L117: SCA590283 | N117: SCA -LG50 Tyč vyrov 1200 x 50 | P117: 6.96 | Q117: 2438 | R117: 6.53 | T117: =IF(ISERROR(S117*P117),0,IF(S117*P117<>0,S117*P117,0)) -> 0 | U117: =IF(ISERROR(S117*Q117),0,IF(S117*Q117<>0,S117*Q117,0)) -> 0 | V117: =IF(ISERROR(S117*R117),0,IF(S117*R117<>0,S117*R117,0)) -> 0 | Z117: 0.06 | AB117: 0
A118: 1 | B118: 1 | I118: Bednění | J118: LOGIK 50 | K118: profily/vyrovnávací prvky | L118: 590282 | N118: LG50 Tyč vyrov 1500 x 50 | O118: Logik50 Filler Profile 1500 x 50 | P118: 8.46 | Q118: 2589 | R118: 6.92 | T118: 0 | U118: 0 | V118: 0 | Z118: 0.075 | AB118: 0
I119: Bednění | J119: LOGIK 50 | L119: SCA590282 | N119: SCA -LG50 Tyč vyrov 1500 x 50 | P119: 8.46 | Q119: 2589 | R119: 6.92 | T119: =IF(ISERROR(S119*P119),0,IF(S119*P119<>0,S119*P119,0)) -> 0 | U119: =IF(ISERROR(S119*Q119),0,IF(S119*Q119<>0,S119*Q119,0)) -> 0 | V119: =IF(ISERROR(S119*R119),0,IF(S119*R119<>0,S119*R119,0)) -> 0 | Z119: 0.075 | AB119: 0
A120: 1 | B120: 1 | I120: Bednění | J120: LOGIK 50 | K120: profily/vyrovnávací prvky | L120: 590281 | N120: LG50 Tyč vyrov 2700 x 50 | O120: Logik50 Filler Profile 2700 x 50 | P120: 14.88 | Q120: 3738 | R120: 9.99 | T120: 0 | U120: 0 | V120: 0 | Z120: 0.135 | AB120: 0
A121: 1 | B121: 1 | C121: 1 | D121: 1 | H121: 1 | I121: Bednění | J121: LOGIK 50 | K121: Příslušenství | L121: 590803 | N121: LG60 Matice křídlová s podl DW15 | O121: Logik60 Tie Washer/Nut DW 15 | P121: 0.3 | Q121: 595 | R121: 1.32 | T121: 0 | U121: 0 | V121: 0 | AB121: 0
A122: 1 | B122: 1 | I122: Bednění | J122: LOGIK 50 | K122: Příslušenství | L122: 590801 | N122: LG Držák vnější spínací tyče | O122: Logik Top Tie Rod Holder | P122: 1.11 | Q122: 415 | R122: 1.12 | T122: 0 | U122: 0 | V122: 0 | AB122: 0
A123: 1 | I123: Bednění | J123: LOGIK 50 | K123: Příslušenství | L123: 590838 | N123: LG Hlava vzpěry | O123: Logik Stabilizer Head | P123: 0.1 | Q123: 795 | R123: 2.13 | T123: 0 | U123: 0 | V123: 0 | AB123: 0
A124: 1 | B124: 1 | I124: Bednění | J124: LOGIK 50 | K124: Příslušenství | L124: 590805 | N124: LG Koncová spín spojka (DW&čep) | O124: LG Stop End Tie Holder (Pin+DW) | P124: 1.4 | Q124: 1056 | R124: 2.83 | T124: 0 | U124: 0 | V124: 0 | AB124: 0
A125: 1 | B125: 1 | I125: Bednění | J125: LOGIK 50 | K125: Stabilizátory | L125: 590845 | N125: LG Konzola lávky univerzální | O125: Logik Walkway Bracket Universal | P125: 13.3 | Q125: 3969 | R125: 10.62 | T125: 0 | U125: 0 | V125: 0 | AB125: 0
A126: 1 | B126: 1 | I126: Bednění | J126: LOGIK 50 | K126: Stabilizátory | L126: 590821 | N126: LG Nástavec konzoly | O126: LG Walkway Bracket Panel Connector | P126: 1.82 | Q126: 1140 | R126: 3.05 | T126: 0 | U126: 0 | V126: 0 | AB126: 0
A127: 1 | B127: 1 | I127: Bednění | J127: LOGIK 50 | K127: Příslušenství | L127: 590839 | N127: LG Patka vzpěry | O127: Logik Stabilizer Base | P127: 1.6 | Q127: 552 | R127: 1.48 | T127: 0 | U127: 0 | V127: 0 | AB127: 0
A128: 1 | B128: 1 | D128: 1 | I128: Bednění | J128: LOGIK 50 | K128: Příslušenství | L128: 590940 | N128: LG Příchytka A-rámu (DW 15) | O128: Logik A-Frame Connector (DW) | P128: 0.5 | Q128: 937 | R128: 2.51 | T128: 0 | U128: 0 | V128: 0 | AB128: 0
A129: 1 | B129: 1 | I129: Bednění | J129: LOGIK 50 | K129: Příslušenství | L129: 590736 | N129: LG Řetěz háku jeřábového | O129: Logik Crain Hook Chain (C) | P129: 2.28 | Q129: 2277 | R129: 5.74 | T129: 0 | U129: 0 | V129: 0 | AB129: 0
I130: Bednění | J130: LOGIK 50 | K130: Příslušenství | L130: SCA590736 | N130: SCA - LG Řetěz háku jeřábového | O130: Logik Crain Hook Chain (C) | P130: 0 | Q130: 2277 | R130: jen prodej | T130: 0 | U130: 0 | V130: 0 | AB130: 0
I131: Bednění | J131: LOGIK 50 | K131: Příslušenství | L131: 2427451 | N131: LG Spona řetězu jeřábového háku | O131: LG COUPLING RING FOR CHAIN | P131: 0.312 | Q131: 646 | R131: 1.73 | T131: =IF(ISERROR(S131*P131),0,IF(S131*P131<>0,S131*P131,0)) -> 0 | U131: =IF(ISERROR(S131*Q131),0,IF(S131*Q131<>0,S131*Q131,0)) -> 0 | V131: =IF(ISERROR(S131*R131),0,IF(S131*R131<>0,S131*R131,0)) -> 0 | AB131: 0
A132: 1 | B132: 1 | I132: Bednění | J132: LOGIK 50 | K132: Příslušenství | L132: 590823 | N132: LG Srovnávací lišta 1000 mm | O132: Logik Alignment Waler 1000 | P132: 7.93 | Q132: 3283 | R132: 8.78 | T132: 0 | U132: 0 | V132: 0 | AB132: 0
I133: Bednění | J133: LOGIK 50 | K133: Příslušenství | L133: SCA590823 | N133: SCA -LG Srovnávací lišta 1000 mm | O133: Logik Alignment Waler 1000 | P133: 7.93 | Q133: 3283 | R133: 8.78 | T133: 0 | U133: 0 | V133: 0 | AB133: 0
I134: Bednění | J134: LOGIK 50 | K134: Příslušenství | L134: 590825 | N134: LG Srovnávací lišta 700 mm | O134: Logik Alignment Waler 700 | P134: 6.73 | Q134: 3097 | R134: 8.29 | T134: 0 | U134: 0 | V134: 0 | AB134: 0
A135: 1 | B135: 1 | I135: Bednění | J135: LOGIK 50 | K135: Stabilizátory | L135: AS720010 | N135: LG Stabil 1,5 & hlava & patka | O135: LG Stabil. 1.5 c/w Head&Base | P135: 9.4 | Q135: 3451 | R135: 9.23 | T135: 0 | U135: 0 | V135: 0 | AB135: 0
A136: 1 | B136: 1 | I136: Bednění | J136: LOGIK 50 | K136: Stabilizátory | L136: AS720020 | N136: LG Stabil 3,0 & hlava & patka | O136: LG Stabil. 3.0 c/w Head&Base | P136: 15.7 | Q136: 4626 | R136: 12.37 | T136: 0 | U136: 0 | V136: 0 | AB136: 0
A137: 1 | B137: 1 | I137: Bednění | J137: LOGIK 50 | K137: Stabilizátory | L137: AS720030 | N137: LG Stabil 4,5 & hlava & patka | O137: LG Stabil. 4.5 c/w Head&Base | P137: 21.2 | Q137: 5334 | R137: 14.26 | T137: 0 | U137: 0 | V137: 0 | AB137: 0
I138: Bednění | J138: LOGIK 50 | K138: Stabilizátory | L138: AS720050 | N138: LG Stabil 5,5 & hlava & patka | O138: LG Stabil. 5.5 c/w Head&Base | P138: 28.5 | Q138: 5782 | R138: 15.46 | T138: 0 | U138: 0 | V138: 0 | AB138: 0
A139: 1 | B139: 1 | I139: Bednění | J139: LOGIK 50 | K139: Stabilizátory | L139: AS720040 | N139: LG Stabil 6,0 & hlava & patka | O139: LG Stabil. 6.0 c/w Head&Base | P139: 43.7 | Q139: 6424 | R139: 17.18 | T139: 0 | U139: 0 | V139: 0 | AB139: 0
I140: Bednění | J140: LOGIK 50 | K140: Příslušenství | L140: 2507303 | N140: LG Svlakový profil 1000 mm | O140: Logik Joint Plate Channel 1000mm | P140: 14.4 | Q140: 2076 | R140: 5.17 | T140: 0 | U140: 0 | V140: 0 | AB140: 0
A141: 1 | B141: 1 | I141: Bednění | J141: LOGIK 50 | K141: Příslušenství | L141: 590721 | N141: LG Svlakový profil 500 mm | O141: Logik Joint Plate Channel 500 mm | P141: 7.2 | Q141: 1038 | R141: 2.78 | T141: 0 | U141: 0 | V141: 0 | AB141: 0
A142: 1 | B142: 1 | C142: 1 | I142: Bednění | J142: LOGIK 50 | K142: Příslušenství | L142: 2507302 | N142: LG Svlakový profil 800 mm | O142: Logik Joint Plate Channel 800 mm | P142: 11.83 | Q142: 1625 | R142: 4.35 | T142: 0 | U142: 0 | V142: 0 | AB142: 0
A143: 1 | B143: 1 | C143: 1 | I143: Bednění | J143: LOGIK 50 | K143: Příslušenství | L143: 2507390 | N143: LG Svlakový profil 1880 mm | O143: Logik Joint Plate Channel 1880 mm | P143: 20.3 | Q143: 2925 | R143: 7.83 | T143: 0 | U143: 0 | V143: 0 | AB143: 0
A144: 1 | B144: 1 | C144: 1 | I144: Bednění | J144: LOGIK 50 | K144: Příslušenství | L144: 2507391 | N144: LG Svlakový profil 2000 mm | O144: Logik Joint Plate Channel 2000 mm | P144: 21.6 | Q144: 3250 | R144: 8.69 | T144: 0 | U144: 0 | V144: 0 | AB144: 0
A145: 1 | B145: 1 | C145: 1 | I145: Bednění | J145: LOGIK 50 | K145: Příslušenství | L145: 2507392 | N145: LG Svlakový profil 2400 mm | O145: Logik Joint Plate Channel 2400 mm | P145: 25.92 | Q145: 3900 | R145: 10.43 | T145: 0 | U145: 0 | V145: 0 | AB145: 0
A146: 1 | B146: 1 | C146: 1 | I146: Bednění | J146: LOGIK 50 | K146: Příslušenství | L146: 2507393 | N146: LG Svlakový profil 2550 mm | O146: Logik Joint Plate Channel 2550 mm | P146: 27.54 | Q146: 4063 | R146: 11 | T146: 0 | U146: 0 | V146: 0 | AB146: =S146-SUM(AC146:AO146) -> 0
A147: 1 | B147: 1 | C147: 1 | I147: Bednění | J147: LOGIK 50 | K147: Příslušenství | L147: 2507394 | N147: LG Svlakový profil 2600 mm | O147: Logik Joint Plate Channel 2600 mm | P147: 28.08 | Q147: 4224 | R147: 11.11 | T147: 0 | U147: 0 | V147: 0 | AB147: 0
A148: 1 | B148: 1 | C148: 1 | I148: Bednění | J148: LOGIK 50 | K148: Příslušenství | L148: 2507395 | N148: LG Svlakový profil 2700 mm | O148: Logik Joint Plate Channel 2700 mm | P148: 29.16 | Q148: 4387 | R148: 12.1 | T148: 0 | U148: 0 | V148: 0 | AB148: 0
A149: 1 | B149: 1 | I149: Bednění | J149: LOGIK 50 | K149: Stabilizátory | L149: 2882000 | N149: MF A-rám 3,6 m | O149: MF A-Frame 3,6 m | P149: 230 | Q149: 65960 | R149: 197.78 | T149: 0 | U149: 0 | V149: 0 | AB149: 0
I150: Bednění | J150: LOGIK 50 | K150: Náhradní díly | L150: 300149 | N150: LG Šroub pro nast spojku | O150: Logik Adjustable Clamp Bolt | P150: 0.046 | Q150: 219 | R150: 0.69 | T150: 0 | U150: 0 | V150: 0 | AB150: 0
I151: Bednění | J151: LOGIK 50 | L151: SCA590106U | N151: SCA -LG50 Panel UNI 900 x 750 | P151: 22 | Q151: 9300 | R151: 42 | T151: 0 | U151: 0 | V151: 0 | Z151: =0.9*0.75 -> 0.675 | AB151: 0
I152: Bednění | J152: LOGIK 50 | K152: Náhradní díly | L152: AS080006 | N152: LG50 Překližka panelu 1200 x 300 | O152: Logik50 Ply 1200 x 300 | P152: 3.58 | Q152: 727 | R152: jen prodej | T152: 0 | U152: 0 | V152: 0 | AB152: 0
I153: Bednění | J153: LOGIK 50 | K153: Náhradní díly | L153: AS080005 | N153: LG50 Překližka panelu 1200 x 450 | O153: Logik50 Ply 1200 x 450 | P153: 5.37 | Q153: 1008 | R153: jen prodej | T153: 0 | U153: 0 | V153: 0 | AB153: 0
I154: Bednění | J154: LOGIK 50 | K154: Náhradní díly | L154: AS080004 | N154: LG50 Překližka panelu 1200 x 600 | O154: Logik50 Ply 1200 x 600 | P154: 7.16 | Q154: 1209 | R154: jen prodej | T154: 0 | U154: 0 | V154: 0 | AB154: 0
I155: Bednění | J155: LOGIK 50 | K155: Náhradní díly | L155: AS871596A | N155: LG50 překližka panelu 1200 x 750 | O155: Logik50 Ply 1200 x 750 | P155: 8.91 | Q155: 1503 | R155: jen prodej | T155: 0 | U155: 0 | V155: 0 | AB155: 0
I156: Bednění | J156: LOGIK 50 | K156: Náhradní díly | L156: AS080003 | N156: LG50 Překližka panelu 1200 x 900 | O156: Logik50 Ply 1200 x 900 | P156: 10.36 | Q156: 1851 | R156: jen prodej | T156: 0 | U156: 0 | V156: 0 | AB156: 0
I157: Bednění | J157: LOGIK 50 | K157: Náhradní díly | L157: AS080486 | N157: LG50 Překližka panelu 1500 x 300 | O157: Logik50 Ply 1500 x 300 | P157: 4.47 | Q157: 1383 | R157: jen prodej | T157: 0 | U157: 0 | V157: 0 | AB157: 0
I158: Bednění | J158: LOGIK 50 | K158: Náhradní díly | L158: AS080485 | N158: LG50 Překližka panelu 1500 x 450 | O158: Logik50 Ply 1500 x 450 | P158: 6.71 | Q158: 1552 | R158: jen prodej | T158: 0 | U158: 0 | V158: 0 | AB158: 0
I159: Bednění | J159: LOGIK 50 | K159: Náhradní díly | L159: AS080484 | N159: LG50 Překližka panelu 1500 x 600 | O159: Logik50 Ply 1500 x 600 | P159: 8.95 | Q159: 1392 | R159: jen prodej | T159: 0 | U159: 0 | V159: 0 | AB159: 0
I160: Bednění | J160: LOGIK 50 | K160: Náhradní díly | L160: AS080060 | N160: LG50 Překližka panelu 1500 x 750 | O160: Logik50 Ply 1500 x 750 | P160: 11.18 | Q160: 1703 | R160: jen prodej | T160: 0 | U160: 0 | V160: 0 | AB160: 0
I161: Bednění | J161: LOGIK 50 | K161: Náhradní díly | L161: AS080483 | N161: LG50 Překližka panelu 1500 x 900 | O161: Logik50 Ply 1500 x 900 | P161: 13.42 | Q161: 2295 | R161: jen prodej | T161: 0 | U161: 0 | V161: 0 | AB161: 0
I162: Bednění | J162: LOGIK 50 | K162: Náhradní díly | L162: AS080139 | N162: LG50 Překližka panelu 2700 x 300 | O162: Logik50 Ply 2700 x 300 | P162: 8.05 | Q162: 1628 | R162: jen prodej | T162: 0 | U162: 0 | V162: 0 | AB162: 0
I163: Bednění | J163: LOGIK 50 | K163: Náhradní díly | L163: AS080138 | N163: LG50 Překližka panelu 2700 x 450 | O163: Logik50 Ply 2700 x 450 | P163: 12.08 | Q163: 2154 | R163: jen prodej | T163: 0 | U163: 0 | V163: 0 | AB163: 0
I164: Bednění | J164: LOGIK 50 | K164: Náhradní díly | L164: AS080136 | N164: LG50 Překližka panelu 2700 x 600 | O164: Logik50 Ply 2700 x 600 | P164: 16.1 | Q164: 2676 | R164: jen prodej | T164: 0 | U164: 0 | V164: 0 | AB164: 0
I165: Bednění | J165: LOGIK 50 | K165: Náhradní díly | L165: AS873083A | N165: LG50 překližka panelu 2700 x 750 | O165: Logik50 Ply 2700 x 750 | P165: 20.05 | Q165: 4139 | R165: jen prodej | T165: 0 | U165: 0 | V165: 0 | AB165: 0
I166: Bednění | J166: LOGIK 50 | K166: Náhradní díly | L166: AS080134 | N166: LG50 Překližka panelu 2700 x 900 | O166: Logik50 Ply 2700 x 900 | P166: 24.15 | Q166: 5205 | R166: jen prodej | T166: 0 | U166: 0 | V166: 0 | AB166: 0
I167: Bednění | J167: LOGIK 50 | K167: Náhradní díly | L167: AS080003U | N167: LG50 Překližka UNI panelu 1200 x 900 | P167: 10.36 | Q167: 2688 | R167: jen prodej | T167: =IF(ISERROR(S167*P167),0,IF(S167*P167<>0,S167*P167,0)) -> 0 | U167: =IF(ISERROR(S167*Q167),0,IF(S167*Q167<>0,S167*Q167,0)) -> 0 | V167: =IF(ISERROR(S167*R167),0,IF(S167*R167<>0,S167*R167,0)) -> 0 | AB167: 0
I168: Bednění | J168: LOGIK 50 | K168: Náhradní díly | L168: AS080060U | N168: LG50 Překližka UNI panelu 1500 x 750 | P168: 11.18 | Q168: 2796 | R168: jen prodej | T168: 0 | U168: 0 | V168: 0 | AB168: 0
I169: Bednění | J169: LOGIK 50 | K169: Náhradní díly | L169: AS080134U | N169: LG50 Překližka UNI panelu 2700 x 900 | P169: 24.15 | Q169: 6036 | R169: jen prodej | T169: 0 | U169: 0 | V169: 0 | AB169: 0
I170: Bednění | J170: LOGIK 50 | K170: Náhradní díly | L170: AS080483U | N170: LG50 Překližka UNI panelu 1500 x 900 | P170: 13.42 | Q170: 3351 | R170: jen prodej | T170: 0 | U170: 0 | V170: 0 | AB170: 0
I171: Bednění | J171: LOGIK 50 | L171: AS871596AU | N171: LG50 Překližka UNI panelu 1200 x 750 | P171: 8.91 | Q171: 2244 | R171: jen prodej | T171: 0 | U171: 0 | V171: 0 | AB171: 0
I172: Bednění | J172: LOGIK 50 | L172: AS873083AU | N172: LG50 Překližka UNI panelu 2700 x 750 | P172: 20.05 | Q172: 5040 | R172: jen prodej | T172: 0 | U172: 0 | V172: 0 | AB172: 0
I173: Bednění | J173: LOGIK 50 | K173: Náhradní díly | L173: A100007 | N173: LG50 Roh spojovací PVC | O173: Logik50 conecting angle | P173: 0.006 | Q173: 10 | R173: jen prodej | T173: 0 | U173: 0 | V173: 0 | AB173: 0
A174: 1 | B174: 1 | D174: 1 | I174: Bednění | J174: LOGIK 50 | K174: Náhradní díly | L174: A650050 | N174: Pojistná závlačka D=3 mm | O174: Logik Safety Pin R-clip D=3 mm | P174: 0.01 | Q174: 10 | R174: 0.04 | T174: 0 | U174: 0 | V174: 0 | AB174: 0
A175: 1 | B175: 1 | D175: 1 | I175: Bednění | J175: LOGIK 50 | K175: Náhradní díly | L175: A650010 | N175: Zajišťovací Čep 16x100 mm | O175: Logik Pivot Pin 16x100 mm | P175: 0.17 | Q175: 87 | R175: 0.24 | T175: 0 | U175: 0 | V175: 0 | AB175: 0
I176: Bednění | J176: MULTIFORM | K176: Příslušenství | L176: A650500 | N176: MF 1/2 spojka D=48mm | O176: MF 1/2 Tube coupler D=48 mm | P176: 0.69 | Q176: 216 | R176: 0.62 | T176: 0 | U176: 0 | V176: 0 | AB176: 0
A177: 1 | D177: 1 | I177: Bednění | J177: MULTIFORM | K177: Příslušenství | L177: A650110 | N177: MF Distanc trubička MF1 20x60mm | O177: MF spacertube 20x60 mm | P177: 0.04 | Q177: 19 | R177: 0.07 | T177: 0 | U177: 0 | V177: 0 | AB177: 0
I178: Bednění | J178: MULTIFORM | K178: Příslušenství | L178: 591520 | N178: MF Držák sloupku zábradlí | O178: Multifom Handrail Bracket | P178: 1.65 | Q178: 641 | R178: 1.81 | T178: 0 | U178: 0 | V178: 0 | AB178: 0
I179: Bednění | J179: MULTIFORM | K179: Příslušenství | L179: A650520 | N179: MF Otočná spojka d=48 mm | O179: MI TUBE COUPLER VOLVING D=48MM | P179: 1.44 | Q179: 503 | R179: 1.43 | T179: 0 | U179: 0 | V179: 0 | AB179: 0
I180: Bednění | J180: MULTIFORM | K180: Profil MF1 | L180: AS610014 | N180: MF Profil MF1 - 1058,5 mm (B) | O180: MF Profil MF1 - 1058,5 mm (C) | P180: 12.72 | Q180: 1445 | R180: 4.07 | T180: 0 | U180: 0 | V180: 0 | AB180: 0
A181: 1 | B181: 1 | D181: 1 | I181: Bednění | J181: MULTIFORM | K181: Profil MF1 | L181: AS610016 | N181: MF Profil MF1 - 1183,5 mm (B) | O181: MF Profil MF1 - 1183,5 mm (C) | P181: 14.22 | Q181: 1487 | R181: 4.18 | T181: 0 | U181: 0 | V181: 0 | AB181: 0
A182: 1 | B182: 1 | D182: 1 | I182: Bednění | J182: MULTIFORM | K182: Profil MF1 | L182: AS610020 | N182: MF Profil MF1 - 1433,5 mm (B) | O182: MF Profil MF1 - 1433,5 mm (C) | P182: 17.23 | Q182: 1693 | R182: 4.77 | T182: 0 | U182: 0 | V182: 0 | AB182: 0
A183: 1 | B183: 1 | D183: 1 | I183: Bednění | J183: MULTIFORM | K183: Profil MF1 | L183: AS610024 | N183: MF Profil MF1 - 1683,5 mm (B) | O183: MF Profil MF1 - 1683,5 mm (C) | P183: 20.23 | Q183: 2070 | R183: 5.82 | T183: 0 | U183: 0 | V183: 0 | AB183: 0
A184: 1 | B184: 1 | D184: 1 | H184: 1 | I184: Bednění | J184: MULTIFORM | K184: Profil MF1 | L184: AS610028 | N184: MF Profil MF1 - 1933,5 mm (B) | O184: MF Profil MF1 - 1933,5 mm (C) | P184: 23.24 | Q184: 2417 | R184: 6.8 | T184: 0 | U184: 0 | V184: 0 | AB184: 0
I185: Bednění | J185: MULTIFORM | K185: Profil MF1 | L185: AS610029 | N185: MF Profil MF1 - 1996,0 mm (B) | O185: MF Profil MF1 - 1998.5 mm (C) | P185: 23.98 | Q185: 2425 | R185: 6.81 | T185: 0 | U185: 0 | V185: 0 | AB185: 0
A186: 1 | B186: 1 | I186: Bednění | J186: MULTIFORM | K186: Profil MF1 | L186: AS610036 | N186: MF Profil MF1 - 2433,5 mm (B) | O186: MF Profil MF1 - 2433,5 mm (C) | P186: 29.24 | Q186: 2836 | R186: 7.96 | T186: 0 | U186: 0 | V186: 0 | AB186: 0
I187: Bednění | J187: MULTIFORM | K187: Profil MF1 | L187: AS610040 | N187: MF Profil MF1 - 2683,5 mm (B) | O187: MF Profil MF1 - 2683,5 mm (C) | P187: 32.39 | Q187: 3030 | R187: 8.51 | T187: 0 | U187: 0 | V187: 0 | AB187: 0
A188: 1 | B188: 1 | D188: 1 | H188: 1 | I188: Bednění | J188: MULTIFORM | K188: Profil MF1 | L188: AS610044 | N188: MF Profil MF1 - 2933,5 mm (B) | O188: MF Profil MF1 - 2933,5 mm (C) | P188: 35.41 | Q188: 3220 | R188: 9.05 | T188: 0 | U188: 0 | V188: 0 | AB188: 0
A189: 1 | B189: 1 | D189: 1 | H189: 1 | I189: Bednění | J189: MULTIFORM | K189: Profil MF1 | L189: AS610052 | N189: MF Profil MF1 - 3433,5 mm (B) | O189: MF Profil MF1 - 3433,5 mm (C) | P189: 41.26 | Q189: 4332 | R189: 12.17 | T189: 0 | U189: 0 | V189: 0 | AB189: 0
I190: Bednění | J190: MULTIFORM | K190: Profil MF1 | L190: AS610056 | N190: MF Profil MF1 - 3683,5 mm (B) | O190: MF Profil MF1 - 3683,5 mm (C) | P190: 44.46 | Q190: 4939 | R190: 13.86 | T190: 0 | U190: 0 | V190: 0 | AB190: 0
A191: 1 | B191: 1 | D191: 1 | H191: 1 | I191: Bednění | J191: MULTIFORM | K191: Profil MF1 | L191: AS610060 | N191: MF Profil MF1 - 3933,5 mm (B) | O191: MF Profil MF1 - 3933,5 mm (C) | P191: 47.27 | Q191: 5168 | R191: 14.52 | T191: 0 | U191: 0 | V191: 0 | AB191: 0
A192: 1 | D192: 1 | I192: Bednění | J192: MULTIFORM | K192: Profil MF1 | L192: AS610004 | N192: MF Profil MF1 - 433,5 mm (B) | O192: MF Profil MF1 - 433,5 mm (C) | P192: 5.21 | Q192: 791 | R192: 2.23 | T192: 0 | U192: 0 | V192: 0 | AB192: 0
A193: 1 | B193: 1 | D193: 1 | H193: 1 | I193: Bednění | J193: MULTIFORM | K193: Profil MF1 | L193: AS610068 | N193: MF Profil MF1 - 4433,5 mm (B) | O193: MF Profil MF1 - 4433,5 mm (C) | P193: 53.27 | Q193: 5583 | R193: 15.68 | T193: 0 | U193: 0 | V193: 0 | AB193: 0
A194: 1 | B194: 1 | D194: 1 | H194: 1 | I194: Bednění | J194: MULTIFORM | K194: Profil MF1 | L194: AS610076 | N194: MF Profil MF1 - 4933,5 mm (B) | O194: MF Profil MF1 - 4933,5 mm (C) | P194: 59.29 | Q194: 5355 | R194: 15.04 | T194: 0 | U194: 0 | V194: 0 | AB194: 0
A195: 1 | B195: 1 | D195: 1 | H195: 1 | I195: Bednění | J195: MULTIFORM | K195: Profil MF1 | L195: AS610084 | N195: MF Profil MF1 - 5433,5 mm (B) | O195: MF Profil MF1 - 5433,5 mm (C) | P195: 65.29 | Q195: 6919 | R195: 19.43 | T195: 0 | U195: 0 | V195: 0 | AB195: 0
A196: 1 | D196: 1 | I196: Bednění | J196: MULTIFORM | K196: Profil MF1 | L196: AS610008 | N196: MF Profil MF1 - 683,5 mm (B) | O196: MF Profil MF1 - 683,5 mm (C) | P196: 8.22 | Q196: 989 | R196: 2.8 | T196: 0 | U196: 0 | V196: 0 | AB196: 0
I197: Bednění | J197: MULTIFORM | K197: Profil MF1 | L197: AS610010 | N197: MF Profil MF1 - 808,5 mm (B) | O197: MF profile MF1 - 808,5 mm | P197: 9.71 | Q197: 1199 | R197: 3.39 | T197: 0 | U197: 0 | V197: 0 | AB197: 0
A198: 1 | D198: 1 | I198: Bednění | J198: MULTIFORM | K198: Profil MF1 | L198: AS610012 | N198: MF Profil MF1 - 933,5 mm (B) | O198: MF Profil MF1 - 933,5 mm (C) | P198: 11.22 | Q198: 1231 | R198: 3.47 | T198: 0 | U198: 0 | V198: 0 | AB198: 0
I199: Bednění | J199: MULTIFORM | K199: Příslušenství | L199: 2610711 | N199: MF Profil MF1 pojezd 4,5 m (N1) | O199: MF Profil MF1 travel. 4,5 m (N1) | P199: 52.98 | Q199: 6621 | R199: 41.64 | T199: 0 | U199: 0 | V199: 0 | AB199: 0
I200: Bednění | J200: MULTIFORM | K200: Příslušenství | L200: H582352 | N200: MF Spojka H20-H20 | O200: MF Coupler H20-H20 | P200: 4.45 | Q200: 1110 | R200: 3.12 | T200: 0 | U200: 0 | V200: 0 | AB200: 0
A201: 1 | D201: 1 | H201: 1 | I201: Bednění | J201: MULTIFORM | K201: Příslušenství | L201: H568048 | N201: MF Spojka MF1 / H20 | O201: H20 TIMBER BEAM CLAMP | P201: 0.82 | Q201: 332 | R201: 0.95 | T201: 0 | U201: 0 | V201: 0 | AB201: 0
A202: 1 | B202: 1 | D202: 1 | H202: 1 | I202: Bednění | J202: MULTIFORM | K202: Příslušenství | L202: AS630501 | N202: MF Spojka MF1 / MF1 | O202: Multiform MF1 Beam Junction | P202: 3.95 | Q202: 708 | R202: 2 | T202: =IF(ISERROR(S202*P202),0,IF(S202*P202<>0,S202*P202,0)) -> 0 | U202: =IF(ISERROR(S202*Q202),0,IF(S202*Q202<>0,S202*Q202,0)) -> 0 | V202: =IF(ISERROR(S202*R202),0,IF(S202*R202<>0,S202*R202,0)) -> 0 | AB202: 0
... 682 more rows

Sheet ceny (hidden)
E2: =MAX(data_datumceny) -> 2021-05-13T10:10:16
A4: klic | B4: code | C4: cenova_uroven | D4: cena | E4: datum
A5: 591906_P | B5: 591906 | C5: P | D5: 20809 | E5: 2011-07-08T14:58:06
A6: 591904_P | B6: 591904 | C6: P | D6: 21818 | E6: 2011-07-08T14:58:06
A7: A590051_P | B7: A590051 | C7: P | D7: 2008 | E7: 2011-07-08T14:58:06
A8: 591960_P | B8: 591960 | C8: P | D8: 22433 | E8: 2011-07-08T14:58:06
A9: 591964_P | B9: 591964 | C9: P | D9: 4070 | E9: 2011-07-08T14:58:06
A10: 591968_P | B10: 591968 | C10: P | D10: 3013 | E10: 2011-07-08T14:58:06
A11: 2482027_P | B11: 2482027 | C11: P | D11: 152860 | E11: 2011-07-08T14:58:06
A12: 591973_P | B12: 591973 | C12: P | D12: 9331 | E12: 2011-07-08T14:58:06
A13: G5711_P | B13: G5711 | C13: P | D13: 4481 | E13: 2011-03-06T14:31:07
A14: G1297_P | B14: G1297 | C14: P | D14: 68080 | E14: 2011-03-06T14:31:07
A15: G1298_P | B15: G1298 | C15: P | D15: 70476 | E15: 2011-03-06T14:31:07
A16: G1422_P | B16: G1422 | C16: P | D16: 58918 | E16: 2011-03-06T14:31:07
A17: G1424_P | B17: G1424 | C17: P | D17: 61314 | E17: 2011-03-06T14:31:07
A18: 1802040_P | B18: 1802040 | C18: P | D18: 165 | E18: 2021-05-12T10:28:09
A19: 1802060_P | B19: 1802060 | C19: P | D19: 197 | E19: 2020-03-31T18:07:27
A20: 1807050_P | B20: 1807050 | C20: P | D20: 160 | E20: 2021-05-12T10:28:09
A21: 1807000_P | B21: 1807000 | C21: P | D21: 44 | E21: 2021-05-12T10:28:09
A22: 1780125_P | B22: 1780125 | C22: P | D22: 525 | E22: 2021-05-12T10:28:08
A23: 1780130_P | B23: 1780130 | C23: P | D23: 630 | E23: 2021-05-12T10:28:08
A24: 9536001_P | B24: 9536001 | C24: P | D24: 336 | E24: 2020-03-31T18:07:33
A25: 1787001_P | B25: 1787001 | C25: P | D25: 49 | E25: 2011-07-08T14:58:07
A26: 1780100_P | B26: 1780100 | C26: P | D26: 144 | E26: 2020-03-31T18:07:27
A27: 1780104_P | B27: 1780104 | C27: P | D27: 84 | E27: 2021-05-12T10:28:08
A28: 1780105_P | B28: 1780105 | C28: P | D28: 105 | E28: 2021-05-12T10:28:08
A29: 1780106_P | B29: 1780106 | C29: P | D29: 126 | E29: 2021-05-12T10:28:08
A30: 1780107_P | B30: 1780107 | C30: P | D30: 147 | E30: 2021-05-12T10:28:08
A31: 1780109_P | B31: 1780109 | C31: P | D31: 189 | E31: 2021-05-12T10:28:08
A32: 1780110_P | B32: 1780110 | C32: P | D32: 210 | E32: 2021-05-12T10:28:08
A33: 1780112_P | B33: 1780112 | C33: P | D33: 236 | E33: 2011-07-08T14:58:08
A34: 1780115_P | B34: 1780115 | C34: P | D34: 315 | E34: 2021-05-12T10:28:08
A35: 1780120_P | B35: 1780120 | C35: P | D35: 420 | E35: 2021-05-12T10:28:08
A36: 1780135_P | B36: 1780135 | C36: P | D36: 735 | E36: 2021-05-12T10:28:08
A37: 1780140_P | B37: 1780140 | C37: P | D37: 840 | E37: 2021-05-12T10:28:08
A38: 1780145_P | B38: 1780145 | C38: P | D38: 945 | E38: 2021-05-12T10:28:08
A39: 1780150_P | B39: 1780150 | C39: P | D39: 1050 | E39: 2021-05-12T10:28:08
A40: 1780155_P | B40: 1780155 | C40: P | D40: 1155 | E40: 2021-05-12T10:28:08
A41: 1780160_P | B41: 1780160 | C41: P | D41: 1260 | E41: 2021-05-12T10:28:09
A42: 1790120_P | B42: 1790120 | C42: P | D42: 455 | E42: 2011-07-08T14:58:09
A43: 1790140_P | B43: 1790140 | C43: P | D43: 910 | E43: 2011-07-08T14:58:09
A44: 1790160_P | B44: 1790160 | C44: P | D44: 1458 | E44: 2011-07-08T14:58:09
A45: 1800104_P | B45: 1800104 | C45: P | D45: 55 | E45: 2021-05-12T10:28:09
A46: 1800105_P | B46: 1800105 | C46: P | D46: 62 | E46: 2021-05-12T10:28:09
A47: 1800120_P | B47: 1800120 | C47: P | D47: 274 | E47: 2021-05-12T10:28:09
A48: 1800130_P | B48: 1800130 | C48: P | D48: 411 | E48: 2021-05-12T10:28:09
A49: 1800145_P | B49: 1800145 | C49: P | D49: 616 | E49: 2021-05-12T10:28:09
A50: 1800160_P | B50: 1800160 | C50: P | D50: 821 | E50: 2021-05-12T10:28:09
A51: H583508_P | B51: H583508 | C51: P | D51: 6858 | E51: 2017-02-03T20:00:09
A52: H583530_P | B52: H583530 | C52: P | D52: 4592 | E52: 2017-02-03T20:00:09
A53: H583520_P | B53: H583520 | C53: P | D53: 5440 | E53: 2017-02-03T20:00:09
A54: H587675_P | B54: H587675 | C54: P | D54: 317 | E54: 2017-02-03T20:00:09
A55: H417565_P | B55: H417565 | C55: P | D55: 248 | E55: 2021-05-12T10:28:09
A56: H587377_P | B56: H587377 | C56: P | D56: 801 | E56: 2021-05-12T10:28:09
A57: H510554_P | B57: H510554 | C57: P | D57: 1236 | E57: 2020-03-31T18:07:34
A58: H496458_P | B58: H496458 | C58: P | D58: 1124 | E58: 2021-05-12T10:28:09
A59: H496469_P | B59: H496469 | C59: P | D59: 1529 | E59: 2021-05-12T10:28:09
A60: 2119115_P | B60: 2119115 | C60: P | D60: 1377 | E60: 2020-03-31T18:07:27
A61: 2127010_P | B61: 2127010 | C61: P | D61: 1442 | E61: 2020-03-31T18:07:27
A62: H107107_P | B62: H107107 | C62: P | D62: 255 | E62: 2017-02-03T20:00:08
A63: H452693_P | B63: H452693 | C63: P | D63: 134 | E63: 2017-02-03T20:00:08
A64: H510716_P | B64: H510716 | C64: P | D64: 1926 | E64: 2017-02-03T20:00:08
A65: H463076_P | B65: H463076 | C65: P | D65: 4178 | E65: 2017-02-03T20:00:08
A66: H463065_P | B66: H463065 | C66: P | D66: 3204 | E66: 2017-02-03T20:00:08
A67: T5031195_P | B67: T5031195 | C67: P | D67: 965 | E67: 2020-03-31T18:07:34
A68: 500350_P | B68: 500350 | C68: P | D68: 1862 | E68: 2017-02-03T20:00:07
A69: H463021_P | B69: H463021 | C69: P | D69: 1574 | E69: 2020-03-31T18:07:34
A70: H555118_P | B70: H555118 | C70: P | D70: 1315 | E70: 2017-03-02T11:58:46
A71: H552147_P | B71: H552147 | C71: P | D71: 1969 | E71: 2017-02-03T20:00:09
A72: H601390_P | B72: H601390 | C72: P | D72: 1404 | E72: 2017-02-03T20:00:09
A73: H601400_P | B73: H601400 | C73: P | D73: 1640 | E73: 2017-02-03T20:00:09
A74: H601410_P | B74: H601410 | C74: P | D74: 1969 | E74: 2017-02-03T20:00:09
A75: H601415_P | B75: H601415 | C75: P | D75: 1823 | E75: 2017-03-02T12:00:11
A76: H601425_P | B76: H601425 | C76: P | D76: 3279 | E76: 2017-02-03T20:00:09
A77: 600301_P | B77: 600301 | C77: P | D77: 1315 | E77: 2020-03-31T18:07:32
A78: 600351_P | B78: 600351 | C78: P | D78: 2240 | E78: 2017-02-03T20:00:07
A79: 600401_P | B79: 600401 | C79: P | D79: 1823 | E79: 2020-03-31T18:07:32
A80: H583725_P | B80: H583725 | C80: P | D80: 4063 | E80: 2020-03-31T18:07:34
A81: H583780_P | B81: H583780 | C81: P | D81: 2198 | E81: 2017-02-03T20:00:09
A82: 587132_P | B82: 587132 | C82: P | D82: 1284 | E82: 2020-03-31T18:07:31
A83: 587131_P | B83: 587131 | C83: P | D83: 1453 | E83: 2020-03-31T18:07:31
A84: 587131H_P | B84: 587131H | C84: P | D84: 1453 | E84: 2011-07-08T14:58:14
A85: 587133_P | B85: 587133 | C85: P | D85: 1284 | E85: 2020-03-31T18:07:31
A86: 1155107_P | B86: 1155107 | C86: P | D86: 2163 | E86: 2011-07-08T14:58:15
A87: 587130_P | B87: 587130 | C87: P | D87: 1955 | E87: 2020-03-31T18:07:31
A88: 1165107_P | B88: 1165107 | C88: P | D88: 3278 | E88: 2011-07-08T14:58:15
A89: 3369_P | B89: 3369 | C89: P | D89: 15 | E89: 2020-03-31T18:07:29
A90: 3372_P | B90: 3372 | C90: P | D90: 315 | E90: 2020-03-31T18:07:29
A91: 3373_P | B91: 3373 | C91: P | D91: 28 | E91: 2011-03-06T14:31:08
A92: 3401_P | B92: 3401 | C92: P | D92: 1296 | E92: 2020-03-31T18:07:29
A93: 3403_P | B93: 3403 | C93: P | D93: 74 | E93: 2020-03-31T18:07:29
A94: 3412_P | B94: 3412 | C94: P | D94: 66 | E94: 2011-03-06T14:31:08
A95: 3413_P | B95: 3413 | C95: P | D95: 0.72 | E95: 2020-03-31T18:07:29
A96: 3414_P | B96: 3414 | C96: P | D96: 8.55 | E96: 2020-03-31T18:07:29
A97: 3415_P | B97: 3415 | C97: P | D97: 0.77 | E97: 2020-03-31T18:07:29
A98: 3416_P | B98: 3416 | C98: P | D98: 0.53 | E98: 2020-03-31T18:07:29
A99: 3417_P | B99: 3417 | C99: P | D99: 1.98 | E99: 2020-03-31T18:07:29
A100: 3418_P | B100: 3418 | C100: P | D100: 670 | E100: 2021-05-12T10:28:09
A101: 3419_P | B101: 3419 | C101: P | D101: 69 | E101: 2020-03-31T18:07:29
A102: 3420_P | B102: 3420 | C102: P | D102: 107 | E102: 2020-03-31T18:07:29
A103: 3421_P | B103: 3421 | C103: P | D103: 63 | E103: 2021-05-12T10:28:09
A104: 3454_P | B104: 3454 | C104: P | D104: 252 | E104: 2020-03-31T18:07:29
A105: 3455_P | B105: 3455 | C105: P | D105: 254 | E105: 2020-03-31T18:07:29
A106: 3458_P | B106: 3458 | C106: P | D106: 929 | E106: 2021-05-12T10:28:09
A107: 3460_P | B107: 3460 | C107: P | D107: 1085 | E107: 2020-03-31T18:07:29
A108: 3468_P | B108: 3468 | C108: P | D108: 78 | E108: 2018-06-25T09:49:10
A109: 3469_P | B109: 3469 | C109: P | D109: 7 | E109: 2020-03-31T18:07:29
A110: 3470_P | B110: 3470 | C110: P | D110: 7 | E110: 2020-03-31T18:07:29
A111: 3472_P | B111: 3472 | C111: P | D111: 858 | E111: 2021-05-12T10:28:09
A112: 3881_P | B112: 3881 | C112: P | D112: 35 | E112: 2020-03-31T18:07:29
A113: 3882_P | B113: 3882 | C113: P | D113: 41 | E113: 2020-03-31T18:07:29
A114: 3883_P | B114: 3883 | C114: P | D114: 3 | E114: 2020-03-31T18:07:29
A115: 3884_P | B115: 3884 | C115: P | D115: 57 | E115: 2020-03-31T18:07:29
A116: 31652_P | B116: 31652 | C116: P | D116: 1 | E116: 2020-03-31T18:07:29
A117: 32068_P | B117: 32068 | C117: P | D117: 1 | E117: 2020-03-31T18:07:29
A118: 36075_P | B118: 36075 | C118: P | D118: 7 | E118: 2020-03-31T18:07:29
A119: 3371_P | B119: 3371 | C119: P | D119: 8 | E119: 2020-03-31T18:07:29
A120: 1158201_P | B120: 1158201 | C120: P | D120: 32 | E120: 2020-03-31T18:07:26
A121: 1158206_P | B121: 1158206 | C121: P | D121: 35 | E121: 2020-03-31T18:07:26
A122: 1158209_P | B122: 1158209 | C122: P | D122: 19 | E122: 2020-03-31T18:07:26
A123: 31464_P | B123: 31464 | C123: P | D123: 1 | E123: 2020-03-31T18:07:29
A124: 1158214_P | B124: 1158214 | C124: P | D124: 1 | E124: 2020-03-31T18:07:26
A125: 1158215_P | B125: 1158215 | C125: P | D125: 3 | E125: 2020-03-31T18:07:26
A126: 1158216_P | B126: 1158216 | C126: P | D126: 3 | E126: 2020-03-31T18:07:26
A127: 1158400_P | B127: 1158400 | C127: P | D127: 312 | E127: 2020-03-31T18:07:26
A128: 1158401_P | B128: 1158401 | C128: P | D128: 69 | E128: 2020-03-31T18:07:26
A129: 32356_P | B129: 32356 | C129: P | D129: 2 | E129: 2020-03-31T18:07:29
A130: 9510024_P | B130: 9510024 | C130: P | D130: 610 | E130: 2011-03-06T14:31:08
A131: 103702_P | B131: 103702 | C131: P | D131: 15 | E131: 2020-03-31T18:07:26
A132: 103703_P | B132: 103703 | C132: P | D132: 13 | E132: 2020-03-31T18:07:26
A133: 103704_P | B133: 103704 | C133: P | D133: 12 | E133: 2020-03-31T18:07:26
A134: 103705_P | B134: 103705 | C134: P | D134: 5 | E134: 2020-03-31T18:07:26
A135: 103706_P | B135: 103706 | C135: P | D135: 106 | E135: 2020-03-31T18:07:26
A136: 103707_P | B136: 103707 | C136: P | D136: 117 | E136: 2020-03-31T18:07:26
A137: 587524_P | B137: 587524 | C137: P | D137: 90 | E137: 2020-03-31T18:07:31
A138: 560746_P | B138: 560746 | C138: P | D138: 48 | E138: 2020-03-31T18:07:30
A139: 3366_P | B139: 3366 | C139: P | D139: 1528 | E139: 2020-03-31T18:07:29
A140: 1158217_P | B140: 1158217 | C140: P | D140: 4 | E140: 2020-03-31T18:07:26
A141: 587034_P | B141: 587034 | C141: P | D141: 992 | E141: 2020-03-31T18:07:30
A142: 587034H_P | B142: 587034H | C142: P | D142: 992 | E142: 2011-07-08T14:58:15
A143: 587035_P | B143: 587035 | C143: P | D143: 1136 | E143: 2020-03-31T18:07:30
A144: 587035H_P | B144: 587035H | C144: P | D144: 1136 | E144: 2011-07-08T14:58:16
A145: 587033_P | B145: 587033 | C145: P | D145: 1401 | E145: 2020-03-31T18:07:30
A146: 587033H_P | B146: 587033H | C146: P | D146: 1401 | E146: 2011-07-08T14:58:16
A147: 587032_P | B147: 587032 | C147: P | D147: 1695 | E147: 2020-03-31T18:07:30
A148: 587032H_P | B148: 587032H | C148: P | D148: 1695 | E148: 2011-07-08T14:58:17
A149: 587031_P | B149: 587031 | C149: P | D149: 1895 | E149: 2020-03-31T18:07:30
A150: 587031H_P | B150: 587031H | C150: P | D150: 1895 | E150: 2011-07-08T14:58:17
A151: 587030_P | B151: 587030 | C151: P | D151: 2098 | E151: 2020-03-31T18:07:30
A152: 587030H_P | B152: 587030H | C152: P | D152: 2098 | E152: 2011-07-08T14:58:17
A153: 587043_P | B153: 587043 | C153: P | D153: 3978 | E153: 2011-07-08T14:58:17
A154: 587042_P | B154: 587042 | C154: P | D154: 4815 | E154: 2011-07-08T14:58:18
A155: 587041_P | B155: 587041 | C155: P | D155: 5529 | E155: 2011-07-08T14:58:18
A156: 587040_P | B156: 587040 | C156: P | D156: 5733 | E156: 2011-07-08T14:58:18
A157: 587045_P | B157: 587045 | C157: P | D157: 9030 | E157: 2020-03-31T18:07:30
A158: 587044_P | B158: 587044 | C158: P | D158: 9870 | E158: 2020-03-31T18:07:30
A159: 587312_P | B159: 587312 | C159: P | D159: 451 | E159: 2020-03-31T18:07:31
A160: 587311_P | B160: 587311 | C160: P | D160: 480 | E160: 2020-03-31T18:07:31
A161: 587310_P | B161: 587310 | C161: P | D161: 724 | E161: 2020-03-31T18:07:31
A162: 587211_P | B162: 587211 | C162: P | D162: 400 | E162: 2020-03-31T18:07:31
A163: 587210_P | B163: 587210 | C163: P | D163: 431 | E163: 2020-03-31T18:07:31
A164: 587203_P | B164: 587203 | C164: P | D164: 6685 | E164: 2020-03-31T18:07:31
A165: 587201_P | B165: 587201 | C165: P | D165: 7606 | E165: 2020-03-31T18:07:31
A166: 587200_P | B166: 587200 | C166: P | D166: 9540 | E166: 2020-03-31T18:07:31
A167: 587191_P | B167: 587191 | C167: P | D167: 959 | E167: 2020-03-31T18:07:31
A168: 587191H_P | B168: 587191H | C168: P | D168: 959 | E168: 2011-07-08T14:58:20
A169: 587190_P | B169: 587190 | C169: P | D169: 1025 | E169: 2020-03-31T18:07:31
A170: 587220_P | B170: 587220 | C170: P | D170: 1266 | E170: 2020-03-31T18:07:31
A171: 587221_P | B171: 587221 | C171: P | D171: 1328 | E171: 2011-07-08T14:58:20
A172: 587150_P | B172: 587150 | C172: P | D172: 659 | E172: 2020-03-31T18:07:31
A173: 587142_P | B173: 587142 | C173: P | D173: 897 | E173: 2020-03-31T18:07:31
A174: 587141_P | B174: 587141 | C174: P | D174: 993 | E174: 2020-03-31T18:07:31
A175: 587140_P | B175: 587140 | C175: P | D175: 1027 | E175: 2020-03-31T18:07:31
A176: 587282_P | B176: 587282 | C176: P | D176: 988 | E176: 2020-03-31T18:07:31
A177: 587281_P | B177: 587281 | C177: P | D177: 1210 | E177: 2020-03-31T18:07:31
A178: 587280_P | B178: 587280 | C178: P | D178: 1365 | E178: 2020-03-31T18:07:31
A179: 26041_P | B179: 26041 | C179: P | D179: 96 | E179: 2020-03-31T18:07:27
A180: 587120_P | B180: 587120 | C180: P | D180: 765 | E180: 2020-03-31T18:07:31
A181: 1156520_P | B181: 1156520 | C181: P | D181: 472 | E181: 2020-03-31T18:07:26
A182: 587240_P | B182: 587240 | C182: P | D182: 110 | E182: 2020-03-31T18:07:31
A183: 587293_P | B183: 587293 | C183: P | D183: 29 | E183: 2020-03-31T18:07:31
A184: 587290_P | B184: 587290 | C184: P | D184: 625 | E184: 2020-03-31T18:07:31
A185: 587294_P | B185: 587294 | C185: P | D185: 50 | E185: 2020-03-31T18:07:31
A186: 587291_P | B186: 587291 | C186: P | D186: 2612 | E186: 2020-03-31T18:07:31
A187: 587003_P | B187: 587003 | C187: P | D187: 1818 | E187: 2020-03-31T18:07:30
A188: 587003H_P | B188: 587003H | C188: P | D188: 1818 | E188: 2011-07-08T14:58:23
A189: 587002_P | B189: 587002 | C189: P | D189: 2098 | E189: 2020-03-31T18:07:30
A190: 587002H_P | B190: 587002H | C190: P | D190: 2098 | E190: 2011-07-08T14:58:23
A191: 587001_P | B191: 587001 | C191: P | D191: 2634 | E191: 2020-03-31T18:07:30
A192: 587001H_P | B192: 587001H | C192: P | D192: 2634 | E192: 2011-07-08T14:58:23
A193: 587012_P | B193: 587012 | C193: P | D193: 1938 | E193: 2020-03-31T18:07:30
A194: 587011_P | B194: 587011 | C194: P | D194: 2299 | E194: 2020-03-31T18:07:30
A195: 587010_P | B195: 587010 | C195: P | D195: 2816 | E195: 2020-03-31T18:07:30
A196: 587014_P | B196: 587014 | C196: P | D196: 4050 | E196: 2020-03-31T18:07:30
A197: 587017_P | B197: 587017 | C197: P | D197: 4238 | E197: 2020-03-31T18:07:30
A198: 587015_P | B198: 587015 | C198: P | D198: 5809 | E198: 2020-03-31T18:07:30
A199: 1151120_P | B199: 1151120 | C199: P | D199: 2312 | E199: 2020-03-31T18:07:26
A200: 1151120H_P | B200: 1151120H | C200: P | D200: 2312 | E200: 2011-07-08T14:58:24
A201: 1151220_P | B201: 1151220 | C201: P | D201: 3591 | E201: 2020-03-31T18:07:26
A202: 587074_P | B202: 587074 | C202: P | D202: 453 | E202: 2020-03-31T18:07:31
... 2353 more rows

Sheet prevodni tabulka (hidden)
A1: Vyhledávání | D1: Code Helios převodová tabulka | G1: Vyhledávání | L1: Pomocné sloupce pro dohledání funkčnosti převodu z Euroshalu do ceníku SCASERV
A2: TIPOS | G2: H-CAD+Euroschall | J2: stejné jako sloupec C | L2: SHledání EU | N2: Seznam z EUROSHALU | P2: VARIOMAX dostupné | Q2: Z EU stojky Europlus prevede na CD
A3: číslo | B3: bez H | C3: Code Helios | D3: Code Helios | E3: Název Helios | F3: Název RTM | G3: Code Euroschal | H3: Typ | I3: Sortiment
N4: LG-komplet z Euroshal
A5: =VALUE(B5) -> 9570031 | B5: =IF(MID(G5,1,1)="H",REPLACE(G5,1,1,""),G5) -> 9570031 | C5: =IF(D5="",D4,D5) -> 9570031 | D5: 9570031 | E5: DŘEVĚNÝ NOSNÍK R - 2.50 M | F5: DŘEVĚNÝ NOSNÍK R - 2.50 M | G5: 9570031 | H5: Bednění | I5: Dřevěné nosníky | J5: 9570031 | L5: =VLOOKUP(N5,$G$5:$J$2524,4,FALSE) ->  | N5: _570001-1 | O5: _LG50 Panel 3000 x 1200
A6: 9570032 | B6: 9570032 | C6: =IF(D6="",C5,D6) -> 9570032 | D6: 9570032 | E6: DŘEVĚNÝ NOSNÍK R - 2.90 M | F6: DŘEVĚNÝ NOSNÍK R - 2.90 M | G6: 9570032 | H6: Bednění | I6: Dřevěné nosníky | J6: 9570032 | L6: =VLOOKUP(N6,$G$5:$J$2524,4,FALSE) -> 593140 | N6: 593140 | O6: LG50 Panel 3000 x 1000 (B)
A7: 9570033 | B7: 9570033 | C7: 9570033 | D7: 9570033 | E7: DŘEVĚNÝ NOSNÍK R - 3.30 M | F7: DŘEVĚNÝ NOSNÍK R - 3.30 M | G7: 9570033 | H7: Bednění | I7: Dřevěné nosníky | J7: 9570033 | L7: 593141 | N7: 593141 | O7: LG50 Panel 3000 x 750 (B)
A8: 9570034 | B8: 9570034 | C8: 9570034 | D8: 9570034 | E8: DŘEVĚNÝ NOSNÍK R - 5.90 M | F8: DŘEVĚNÝ NOSNÍK R - 5.90 M | G8: 9570034 | H8: Bednění | I8: Dřevěné nosníky | J8: 9570034 | L8: 593142 | N8: 593142 | O8: LG50 Panel 3000 x 500 (B)
A9: 2210108 | B9: 2210108 | C9: 2210108 | D9: 2210108 | E9: H20 Nosník dřevěný - 0,80m | F9: TFB Nosník TFB 200 - 0,80 m (N) | G9: 2210108 | H9: Bednění | I9: Dřevěné nosníky | J9: 2210108 | L9: 593143 | N9: 593143 | O9: LG50 Panel 3000 x 400 (B)
A10: 2210111 | B10: 2210111 | C10: 2210111 | D10: 2210111 | E10: H20 Nosník dřevěný - 1,10m | F10: TFB Nosník TFB 200 - 1,10 m (N) | G10: 2210111 | H10: Bednění | I10: Dřevěné nosníky | J10: 2210111 | N10: _570003-1 | O10: _LG50 Panel 3000/900
A11: 2210112 | B11: 2210112 | C11: 2210112 | D11: 2210112 | E11: H20 Nosník dřevěný - 1,25m | F11: TFB Nosník TFB 200 - 1,25 m | G11: 2210112 | H11: Bednění | I11: Dřevěné nosníky | J11: 2210112 | N11: _570400-1 | O11: _LG50 Tyč vyrov 3000 x 50
A12: 2210212 | B12: 2210212 | C12: 2210112 | D12: 2210112 | E12: H20 Nosník dřevěný - 1,25m | F12: TFB Nosník TFB 200 - 1,25 m (N) | G12: 2210212 | H12: Bednění | I12: Dřevěné nosníky | J12: 2210112 | N12: _570200-1 | O12: _LG50 Plech vyrov 3000 x 300
A13: 581761 | B13: 581761 | C13: 2210114 | D13: 2210114 | E13: H20 Nosník dřevěný - 1,45m | F13: Nosník H 20 - 145 | G13: H581761 | H13: Bednění | I13: Dřevěné nosníky | J13: 2210114 | N13: _540600-1 | O13: _LG50 Roh vnitřní 3000 x 300
A14: 2210114 | B14: 2210114 | C14: 2210114 | E14: H20 Nosník dřevěný - 1,45m | F14: TFB Nosník TFB 200 - 1,45 m | G14: 2210114 | H14: Bednění | I14: Dřevěné nosníky | J14: 2210114 | N14: 540801-1 | O14: _LG50 Roh vnější 3000
B15: 2210114S | C15: 2210114 | E15: H20 Nosník dřevěný - 1,45m | F15: TFB Nosník TFB 200 - 1,45 m | G15: 2210114S | H15: Bednění | I15: Dřevěné nosníky | J15: 2210114 | N15: _555130-1 | O15: _LG50 Roh vnitřní kloub 3000
A16: 2219015 | B16: 2219015 | C16: 2210115 | D16: 2210115 | E16: H20 Nosník dřevěný - 1,50m | F16: H Nosník C20/8 - 1,5 m | G16: 2219015 | H16: Bednění | I16: Dřevěné nosníky | J16: 2210115 | N16: _556130-1 | O16: _LF50 Roh vnější kloub 3000
A17: 501600 | B17: 501600 | C17: 2210115 | E17: H20 Nosník dřevěný - 1,50m | F17: Nosník C20/8-150 | G17: H501600 | H17: Bednění | I17: Dřevěné nosníky | J17: 2210115 | N17: _570210-1 | O17: _LG50 Panel 2700 x 1200
A18: 2210115 | B18: 2210115 | C18: 2210115 | E18: H20 Nosník dřevěný - 1,50m | F18: TFB Nosník TFB 200 - 1,50 m | G18: 2210115 | H18: Bednění | I18: Dřevěné nosníky | J18: 2210115 | L18: 590105 | N18: 590105 | O18: LG50 Panel 2700 x 750
A19: 2210215 | B19: 2210215 | C19: 2210115 | E19: H20 Nosník dřevěný - 1,50m | F19: TFB Nosník TFB 200 - 1,50 m (N) | G19: 2210215 | H19: Bednění | I19: Dřevěné nosníky | J19: 2210115 | L19: 590104 | N19: 590104 | O19: LG50 Panel 2700 x 300
A20: 2210117 | B20: 2210117 | C20: 2210117 | D20: 2210117 | E20: H20 Nosník dřevěný - 1,75m | F20: TFB Nosník TFB 200 - 1,75 m | G20: 2210117 | H20: Bednění | I20: Dřevěné nosníky | J20: 2210117 | L20: 590101 | N20: 590101 | O20: LG50 Panel 2700 x 900
A21: 2210217 | B21: 2210217 | C21: 2210117 | E21: H20 Nosník dřevěný - 1,75m | F21: TFB Nosník TFB 200 - 1,75 m (N) | G21: 2210217 | H21: Bednění | I21: Dřevěné nosníky | J21: 2210117 | L21: 590102 | N21: 590102 | O21: LG50 Panel 2700 x 600
A22: 2219018 | B22: 2219018 | C22: 2210118 | D22: 2210118 | E22: H20 Nosník dřevěný - 1,80m | F22: H Nosník C20/8 - 1,8 m | G22: 2219018 | H22: Bednění | I22: Dřevěné nosníky | J22: 2210118 | L22: 590103 | N22: 590103 | O22: LG50 Panel 2700 x 450
A23: 501633 | B23: 501633 | C23: 2210118 | E23: H20 Nosník dřevěný - 1,80m | F23: Nosník C20/8-180 | G23: H501633 | H23: Bednění | I23: Dřevěné nosníky | J23: 2210118 | L23: 590281 | N23: 590281 | O23: LG50 Tyč vyrov 2700 x 50
A24: 581760 | B24: 581760 | C24: 2210119 | D24: 2210119 | E24: H20 Nosník dřevěný - 1,90m | F24: Nosník H 20 - 190 | G24: H581760 | H24: Bednění | I24: Dřevěné nosníky | J24: 2210119 | L24: 590271 | N24: 590271 | O24: LG50 Plech vyrov 2700 x 350
A25: 2210119 | B25: 2210119 | C25: 2210119 | D25: 2210119 | E25: H20 Nosník dřevěný - 1,90m | F25: TFB Nosník TFB 200 - 1,90 m | G25: 2210119 | H25: Bednění | I25: Dřevěné nosníky | J25: 2210119 | L25: 590200 | N25: 590200 | O25: LG50 Roh vnitřní 2700 x 300
A26: 2210120 | B26: 2210120 | C26: 2210120 | D26: 2210120 | E26: H20 Nosník dřevěný - 2,00m | F26: TFB Nosník TFB 200 - 2,00 m | G26: 2210120 | H26: Bednění | I26: Dřevěné nosníky | J26: 2210120 | L26: 590220 | N26: 590220 | O26: LG50 Roh vnější 2700
A27: 2210220 | B27: 2210220 | C27: 2210120 | E27: H20 Nosník dřevěný - 2,00m | F27: TFB Nosník TFB 200 - 2,00 m (N) | G27: 2210220 | H27: Bednění | I27: Dřevěné nosníky | J27: 2210120 | N27: _555230-1 | O27: _LG50 Roh vnitřní kloub 2700
A28: 501666 | B28: 501666 | C28: 2210121 | D28: 2210121 | E28: H20 Nosník dřevěný - 2,10m | F28: Nosník C20/8-210 | G28: H501666 | H28: Bednění | I28: Dřevěné nosníky | J28: 2210121 | N28: _556230-1 | O28: _LG50 Roh vnější kloub 2700
A29: 2210221 | B29: 2210221 | C29: 2210121 | E29: H20 Nosník dřevěný - 2,10m | F29: TFB Nosník TFB 200 - 2,10 m (N) | G29: 2210221 | H29: Bednění | I29: Dřevěné nosníky | J29: 2210121 | N29: _570510-1 | O29: _LG50 Panel 1500 x 1200
A30: 2210222 | B30: 2210222 | C30: 2210122 | D30: 2210122 | E30: H20 Nosník dřevěný - 2,25m | F30: TFB Nosník TFB 200 - 2,25 m (N) | G30: 2210222 | H30: Bednění | I30: Dřevěné nosníky | J30: 2210122 | L30: 593125 | N30: 593125 | O30: LG50 Panel 1500 x 1000 (B)
A31: 2219024 | B31: 2219024 | C31: 2210124 | D31: 2210124 | E31: H20 Nosník dřevěný - 2,45m | F31: H Nosník C20/8 - 2,4 m | G31: 2219024 | H31: Bednění | I31: Dřevěné nosníky | J31: 2210124 | L31: 590126 | N31: 590126 | O31: LG50 Panel 1500 x 750
A32: 501699 | B32: 501699 | C32: 2210124 | E32: H20 Nosník dřevěný - 2,45m | F32: Nosník C20/8-240 | G32: H501699 | H32: Bednění | I32: Dřevěné nosníky | J32: 2210124 | L32: 593127 | N32: 593127 | O32: LG50 Panel 1500 x 500 (B)
A33: 581770 | B33: 581770 | C33: 2210124 | E33: H20 Nosník dřevěný - 2,45m | F33: Nosník H 20 - 245 | G33: H581770 | H33: Bednění | I33: Dřevěné nosníky | J33: 2210124 | L33: 590122 | N33: 590122 | O33: LG50 Panel 1500 x 300
A34: 2210122 | B34: 2210122 | C34: 2210124 | E34: H20 Nosník dřevěný - 2,45m | F34: TFB Nosník TFB 200 - 2,25 m | G34: 2210122 | H34: Bednění | I34: Dřevěné nosníky | J34: 2210124 | L34: 593128 | N34: 593128 | O34: LG50 Panel 1500 x 250 (B)
A35: 2210224 | B35: 2210224 | C35: 2210124 | E35: H20 Nosník dřevěný - 2,45m | F35: TFB Nosník TFB 200 - 2,40 m (N) | G35: 2210224 | H35: Bednění | I35: Dřevěné nosníky | J35: 2210124 | L35: 590120 | N35: 590120 | O35: LG50 Panel 1500 x 900
A36: 2210124 | B36: 2210124 | C36: 2210124 | E36: H20 Nosník dřevěný - 2,45m | F36: TFB Nosník TFB 200 - 2,45 m | G36: 2210124 | H36: Bednění | I36: Dřevěné nosníky | J36: 2210124 | L36: 590121 | N36: 590121 | O36: LG50 Panel 1500 x 600
B37: 2210124S | C37: 2210124 | E37: H20 Nosník dřevěný - 2,45m | F37: TFB Nosník TFB 200 - 2,45 m | G37: 2210124S | H37: Bednění | I37: Dřevěné nosníky | J37: 2210124 | L37: 590123 | N37: 590123 | O37: LG50 Panel 1500 x 450
A38: 2210125 | B38: 2210125 | C38: 2210125 | D38: 2210125 | E38: H20 Nosník dřevěný - 2,50m | F38: TFB Nosník TFB 200 - 2,50 m | G38: 2210125 | H38: Bednění | I38: Dřevěné nosníky | J38: 2210125 | L38: 590282 | N38: 590282 | O38: LG50 Tyč vyrov 1500 x 50
A39: 2210225 | B39: 2210225 | C39: 2210125 | E39: H20 Nosník dřevěný - 2,50m | F39: TFB Nosník TFB 200 - 2,50 m (N) | G39: 2210225 | H39: Bednění | I39: Dřevěné nosníky | J39: 2210125 | L39: 590272 | N39: 590272 | O39: LG50 Plech vyrov 1500 x 300
A40: 2210126 | B40: 2210126 | C40: 2210126 | D40: 2210126 | E40: H20 Nosník dřevěný - 2,65m | F40: Nosník H 20 - 265 | G40: 2210126 | H40: Bednění | I40: Dřevěné nosníky | J40: 2210126 | L40: 590202 | N40: 590202 | O40: LG50 Roh vnitřní 1500 x 300
A41: 2219027 | B41: 2219027 | C41: 2210127 | D41: 2210127 | E41: H20 Nosník dřevěný - 2,70m | F41: H Nosník C20/8 - 2,7 m | G41: 2219027 | H41: Bednění | I41: Dřevěné nosníky | J41: 2210127 | L41: 590221 | N41: 590221 | O41: LG50 Roh vnější 1500
A42: 501725 | B42: 501725 | C42: 2210127 | E42: H20 Nosník dřevěný - 2,70m | F42: Nosník C20/8-270 | G42: H501725 | H42: Bednění | I42: Dřevěné nosníky | J42: 2210127 | L42: 593242 | N42: 593242 | O42: LG50 Roh vnitřní kloub 1500 (B
A43: 2210127 | B43: 2210127 | C43: 2210127 | E43: H20 Nosník dřevěný - 2,70m | F43: TFB Nosník TFB 200 - 2,75 m | G43: 2210127 | H43: Bednění | I43: Dřevěné nosníky | J43: 2210127 | L43: 593262 | N43: 593262 | O43: LG50 Roh vnější kloub 1500 (B)
A44: 2210227 | B44: 2210227 | C44: 2210127 | E44: H20 Nosník dřevěný - 2,70m | F44: TFB Nosník TFB 200 - 2,75 m (N) | G44: 2210227 | H44: Bednění | I44: Dřevěné nosníky | J44: 2210127 | N44: _570710-1 | O44: _LG50 Panel 1200 x 1200
A45: 581792 | B45: 581792 | C45: 2210129 | D45: 2210129 | E45: H20 Nosník dřevěný - 2,90m | F45: Nosník H 20 - 290 | G45: H581792 | H45: Bednění | I45: Dřevěné nosníky | J45: 2210129 | L45: 590135 | N45: 590135 | O45: LG50 Panel 1200 x 750
A46: 930022 | B46: 930022 | C46: 2210129 | E46: H20 Nosník dřevěný - 2,90m | F46: TFB Nosník TFB 200 - 2,90 m | G46: 930022 | H46: Bednění | I46: Dřevěné nosníky | J46: 2210129 | L46: 590134 | N46: 590134 | O46: LG50 Panel 1200 x 300
A47: 2210129 | B47: 2210129 | C47: 2210129 | E47: H20 Nosník dřevěný - 2,90m | F47: TFB Nosník TFB 200 - 2,90 m | G47: 2210129 | H47: Bednění | I47: Dřevěné nosníky | J47: 2210129 | L47: 590131 | N47: 590131 | O47: LG50 Panel 1200 x 900
B48: 2210129S | C48: =IF(D48="",C47,D48) -> 2210129 | E48: H20 Nosník dřevěný - 2,90m | F48: TFB Nosník TFB 200 - 2,90 m | G48: 2210129S | H48: Bednění | I48: Dřevěné nosníky | J48: 2210129 | L48: 590132 | N48: 590132 | O48: LG50 Panel 1200 x 600
A49: 2210229 | B49: 2210229 | C49: 2210129 | E49: H20 Nosník dřevěný - 2,90m | F49: TFB Nosník TFB 200 - 2,90 m (N) | G49: 2210229 | H49: Bednění | I49: Dřevěné nosníky | J49: 2210129 | L49: 590133 | N49: 590133 | O49: LG50 Panel 1200 x 450
A50: 501758 | B50: 501758 | C50: 2210130 | D50: 2210130 | E50: H20 Nosník dřevěný - 3,00m | F50: Nosník C20/8-300 | G50: H501758 | H50: Bednění | I50: Dřevěné nosníky | J50: 2210130 | L50: 590283 | N50: 590283 | O50: LG50 Tyč vyrov 1200 x 50
A51: 2210130 | B51: 2210130 | C51: 2210130 | E51: H20 Nosník dřevěný - 3,00m | F51: TFB Nosník TFB 200 - 3,00 m | G51: 2210130 | H51: Bednění | I51: Dřevěné nosníky | J51: 2210130 | L51: 590273 | N51: 590273 | O51: LG50 Plech vyrov 1200 x 350
A52: 2210230 | B52: 2210230 | C52: 2210130 | E52: H20 Nosník dřevěný - 3,00m | F52: TFB Nosník TFB 200 - 3,00 m (N) | G52: 2210230 | H52: Bednění | I52: Dřevěné nosníky | J52: 2210130 | L52: 590203 | N52: 590203 | O52: LG50 Roh vnitřní 1200 x 300
A53: 2210132 | B53: 2210132 | C53: 2210132 | D53: 2210132 | E53: H20 Nosník dřevěný - 3,25m | F53: TFB Nosník TFB 200 - 3,25 m | G53: 2210132 | H53: Bednění | I53: Dřevěné nosníky | J53: 2210132 | L53: 590222 | N53: 590222 | O53: LG50 Roh vnější 1200
A54: 2210232 | B54: 2210232 | C54: 2210132 | E54: H20 Nosník dřevěný - 3,25m | F54: TFB Nosník TFB 200 - 3,25 m (N) | G54: 2210232 | H54: Bednění | I54: Dřevěné nosníky | J54: 2210132 | L54: 593243 | N54: 593243 | O54: LG50 Roh vnitřní kloub 1200 (B
A55: 501780 | B55: 501780 | C55: 2210133 | D55: 2210133 | E55: H20 Nosník dřevěný - 3,30m | F55: Nosník C20/8-330 | G55: H501780 | H55: Bednění | I55: Dřevěné nosníky | J55: 2210133 | L55: 593263 | N55: 593263 | O55: LG50 Roh vnější kloub 1200 (B)
A56: 581807 | B56: 581807 | C56: 2210133 | E56: H20 Nosník dřevěný - 3,30m | F56: Nosník H 20 - 330 | G56: H581807 | H56: Bednění | I56: Dřevěné nosníky | J56: 2210133 | L56: 590300 | N56: 590300 | O56: LG50 Spojka klínová
A57: 2210133 | B57: 2210133 | C57: 2210133 | E57: H20 Nosník dřevěný - 3,30m | F57: TFB Nosník TFB 200 - 3,30 m | G57: 2210133 | H57: Bednění | I57: Dřevěné nosníky | J57: 2210133 | L57: 590301 | N57: 590301 | O57: LG50 Nastavitelná spojka 0-15c
B58: 2210133S | C58: 2210133 | E58: H20 Nosník dřevěný - 3,30m | F58: TFB Nosník TFB 200 - 3,30 m (N) | G58: 2210133S | H58: Bednění | I58: Dřevěné nosníky | J58: 2210133 | N58: _590302-1 | O58: _LG50 Nastavitelná spojka 0-30
A59: 2210233 | B59: 2210233 | C59: 2210133 | E59: H20 Nosník dřevěný - 3,30m | F59: TFB Nosník TFB 200 - 3,30 m (N) | G59: 2210233 | H59: Bednění | I59: Dřevěné nosníky | J59: 2210133 | L59: 590310 | N59: 590310 | O59: LG50 Sloupová spínací spojka
A60: 930023 | B60: 930023 | C60: 2210133 | E60: H20 Nosník dřevěný - 3,30m | F60: TFB Nosník TFB 200 - 3,30m | G60: 930023 | H60: Bednění | I60: Dřevěné nosníky | J60: 2210133 | L60: 2507321 | N60: 2507321 | O60: LG Srovnávací lišta 750 mm
A61: 2210135 | B61: 2210135 | C61: 2210135 | D61: 2210135 | E61: H20 Nosník dřevěný - 3,50m | F61: TFB Nosník TFB 200 - 3,50 m | G61: 2210135 | H61: Bednění | I61: Dřevěné nosníky | J61: 2210135 | L61: 590823 | N61: 590823 | O61: LG Srovnávací lišta 1000 mm
A62: 2210235 | B62: 2210235 | C62: 2210135 | E62: H20 Nosník dřevěný - 3,50m | F62: TFB Nosník TFB 200 - 3,50 m (N) | G62: 2210235 | H62: Bednění | I62: Dřevěné nosníky | J62: 2210135 | L62: 2852411 | N62: 2852411 | O62: Matice kruhová DW 15 -110 mm
A63: 2219036 | B63: 2219036 | C63: 2210136 | D63: 2210136 | E63: H20 Nosník dřevěný - 3,60m | F63: H Nosník C20/8 - 3,6 m | G63: 2219036 | H63: Bednění | I63: Dřevěné nosníky | J63: 2210136 | L63: 590803 | N63: 590803 | O63: Logic60 Gelenkplatte
A64: 501817 | B64: 501817 | C64: 2210136 | E64: H20 Nosník dřevěný - 3,60m | F64: Nosník C20/8-360 | G64: H501817 | H64: Bednění | I64: Dřevěné nosníky | J64: 2210136 | N64: 2852810 | O64: Matice šestihranna DW 15 -100m
A65: 581818 | B65: 581818 | C65: 2210136 | E65: H20 Nosník dřevěný - 3,60m | F65: Nosník H 20 - 360 | G65: H581818 | H65: Bednění | I65: Dřevěné nosníky | J65: 2210136 | L65: =VLOOKUP(N65,$G$5:$J$2524,4,FALSE) -> 2852805 | N65: 2852805 | O65: Matice šestihranna DW 15 - 50m
A66: 2210136 | B66: 2210136 | C66: 2210136 | E66: H20 Nosník dřevěný - 3,60m | F66: TFB Nosník TFB 200 - 3,60 m | G66: 2210136 | H66: Bednění | I66: Dřevěné nosníky | J66: 2210136 | N66: 2852806 | O66: Matice šestihranná DW15 - 60mm
A67: 2210236 | B67: 2210236 | C67: 2210136 | E67: H20 Nosník dřevěný - 3,60m | F67: TFB Nosník TFB 200 - 3,60 m (N) | G67: 2210236 | H67: Bednění | I67: Dřevěné nosníky | J67: 2210136 | L67: 2850145 | N67: 2850145 | O67: Spínací tyč DW 15 - 4,5 m
A68: 2210137 | B68: 2210137 | C68: 2210137 | D68: 2210137 | E68: H20 Nosník dřevěný - 3,75m | F68: TFB Nosník TFB 200 - 3,75 m | G68: 2210137 | H68: Bednění | I68: Dřevěné nosníky | J68: 2210137 | L68: 2850130 | N68: 2850130 | O68: Spínací tyč DW 15 - 3,0 m
A69: =VALUE(B69) -> 2210237 | B69: =IF(MID(G69,1,1)="H",REPLACE(G69,1,1,""),G69) -> 2210237 | C69: 2210137 | E69: H20 Nosník dřevěný - 3,75m | F69: TFB Nosník TFB 200 - 3,75 m (N) | G69: 2210237 | H69: Bednění | I69: Dřevěné nosníky | J69: 2210137 | L69: 2850125 | N69: 2850125 | O69: Spínací tyč DW 15 - 2,5 m
A70: 501840 | B70: 501840 | C70: 2210139 | D70: 2210139 | E70: H20 Nosník dřevěný - 3,90m | F70: Nosník C20/8-390 | G70: H501840 | H70: Bednění | I70: Dřevěné nosníky | J70: 2210139 | L70: =VLOOKUP(N70,$G$5:$J$2524,4,FALSE) -> 2850120 | N70: 2850120 | O70: Spínací tyč DW 15 - 2,0 m
A71: 581829 | B71: 581829 | C71: 2210139 | E71: H20 Nosník dřevěný - 3,90m | F71: Nosník H 20 - 390 | G71: H581829 | H71: Bednění | I71: Dřevěné nosníky | J71: 2210139 | L71: 2850115 | N71: 2850115 | O71: Spínací tyč DW 15 - 1,5 m
A72: 2210139 | B72: 2210139 | C72: 2210139 | E72: H20 Nosník dřevěný - 3,90m | F72: TFB Nosník TFB 200 - 3,90 m | G72: 2210139 | H72: Bednění | I72: Dřevěné nosníky | J72: 2210139 | L72: 2850110 | N72: 2850110 | O72: Spínací tyč DW 15 - 1,0 m
B73: 2210139S | C73: 2210139 | E73: H20 Nosník dřevěný - 3,90m | F73: TFB Nosník TFB 200 - 3,90 m | G73: 2210139S | H73: Bednění | I73: Dřevěné nosníky | J73: 2210139 | L73: 2850107 | N73: 2850107 | O73: Spínací tyč DW 15 - 0,75 m
A74: 2210239 | B74: 2210239 | C74: 2210139 | E74: H20 Nosník dřevěný - 3,90m | F74: TFB Nosník TFB 200 - 3,90 m (N) | G74: 2210239 | H74: Bednění | I74: Dřevěné nosníky | J74: 2210139 | L74: 2850105 | N74: 2850105 | O74: Spínací tyč DW 15 - 0,5 m
A75: 2210140 | B75: 2210140 | C75: 2210140 | D75: 2210140 | E75: H20 Nosník dřevěný - 4,00m | F75: TFB Nosník TFB 200 - 4,00 m | G75: 2210140 | H75: Bednění | I75: Dřevěné nosníky | J75: 2210140 | L75: 2850140 | N75: 2850140 | O75: Spínací tyč DW 15 - 4,0 m
A76: 2210240 | B76: 2210240 | C76: 2210140 | E76: H20 Nosník dřevěný - 4,00m | F76: TFB Nosník TFB 200 - 4,00 m (N) | G76: 2210240 | H76: Bednění | I76: Dřevěné nosníky | J76: 2210140 | L76: 2850135 | N76: 2850135 | O76: Spínací tyč DW 15 - 3,5 m
A77: 501872 | B77: 501872 | C77: 2210142 | D77: 2210142 | E77: H20 Nosník dřevěný - 4,20m | F77: Nosník C20/8-420 | G77: H501872 | H77: Bednění | I77: Dřevěné nosníky | J77: 2210142 | L77: 2850150 | N77: 2850150 | O77: Spínací tyč DW 15 - 5,0 m
A78: 2210142 | B78: 2210142 | C78: 2210142 | E78: H20 Nosník dřevěný - 4,20m | F78: TFB Nosník TFB 200 - 4,2 m | G78: 2210142 | H78: Bednění | I78: Dřevěné nosníky | J78: 2210142 | L78: 2850155 | N78: 2850155 | O78: Spínací tyč DW 15 - 5,5 m
A79: 2210142 | B79: 2210142 | C79: 2210142 | E79: H20 Nosník dřevěný - 4,20m | F79: TFB Nosník TFB 200 - 4,20 m | G79: 2210142 | H79: Bednění | I79: Dřevěné nosníky | J79: 2210142 | L79: 2850160 | N79: 2850160 | O79: Spínací tyč DW 15 - 6,0 m
A80: 2219045 | B80: 2219045 | C80: 2210145 | D80: 2210145 | E80: H20 Nosník dřevěný - 4,50m | F80: H Nosník C20/8 - 4,5 m | G80: 2219045 | H80: Bednění | I80: Dřevěné nosníky | J80: 2210145 | L80: 590801 | N80: 590801 | O80: LG Držák vnější spínací tyče
A81: 581830 | B81: 581830 | C81: 2210145 | E81: H20 Nosník dřevěný - 4,50m | F81: Nosník H 20 - 450 | G81: H581830 | H81: Bednění | I81: Dřevěné nosníky | J81: 2210145 | L81: 590845 | N81: 590845 | O81: LG Konzola lávky univerzální
A82: 2210145 | B82: 2210145 | C82: 2210145 | E82: H20 Nosník dřevěný - 4,50m | F82: TFB NOSNÍK TFB 200 - 4,50 M | G82: 2210145 | H82: Bednění | I82: Dřevěné nosníky | J82: 2210145 | L82: 590826 | N82: 590826 | O82: LG Stabil 4,5 & hlava & patka
A83: 930005 | B83: 930005 | C83: 2210145 | E83: H20 Nosník dřevěný - 4,50m | F83: TFB Nosník TFB 200 - 4,50 m (N) | G83: 930005 | H83: Bednění | I83: Dřevěné nosníky | J83: 2210145 | L83: 590831 | N83: 590831 | O83: LG Stabil 6,0 & hlava & patka
A84: 2210245 | B84: 2210245 | C84: 2210145 | E84: H20 Nosník dřevěný - 4,50m | F84: TFB Nosník TFB 200 - 4,50 m (N) | G84: 2210245 | H84: Bednění | I84: Dřevěné nosníky | J84: 2210145 | L84: 590824 | N84: 590824 | O84: LG Stabil 3,0 & hlava & patka
A85: 2210248 | B85: 2210248 | C85: 2210148 | D85: 2210148 | E85: H20 Nosník dřevěný - 4,80m | F85: TFB Nosník TFB 200 - 4,80 m (N) | G85: 2210248 | H85: Bednění | I85: Dřevěné nosníky | J85: 2210148 | L85: AS720010 | N85: 590981 | O85: LG Stabil 1,5 & hlava & patka
A86: 581840 | B86: 581840 | C86: 2210149 | D86: 2210149 | E86: H20 Nosník dřevěný - 4,90m | F86: Nosník H 20 - 490 | G86: H581840 | H86: Bednění | I86: Dřevěné nosníky | J86: 2210149 | L86: 2507303 | N86: 2507303 | O86: LG Svlakový profil 1000 mm
A87: 2210149 | B87: 2210149 | C87: 2210149 | E87: H20 Nosník dřevěný - 4,90m | F87: TFB Nosník TFB 200 - 4,90 m | G87: 2210149 | H87: Bednění | I87: Dřevěné nosníky | J87: 2210149 | L87: 590721 | N87: 590721 | O87: LG Svlakový profil 500 mm
A88: 2210249 | B88: 2210249 | C88: 2210149 | E88: H20 Nosník dřevěný - 4,90m | F88: TFB Nosník TFB 200 - 4,90 m (N) | G88: 2210249 | H88: Bednění | I88: Dřevěné nosníky | J88: 2210149 | L88: 2507302 | N88: 2507302 | O88: LG Svlakový profil 800 mm
A89: 2210250 | B89: 2210250 | C89: 2210150 | D89: 2210150 | E89: H20 Nosník dřevěný - 5,00m | F89: TFB Nosník TFB 200 - 5,00 m (N) | G89: 2210250 | H89: Bednění | I89: Dřevěné nosníky | J89: 2210150 | L89: 2853010 | N89: 2853010 | O89: Podložka šestihranné matice 5x
A90: 8880139 | B90: 8880139 | C90: 8880139 | D90: 8880139 | E90: H20 Nosník dřevěný - 5,20m | F90: TFB Nosník TFB 200 - 5,20 m | G90: 8880139 | H90: Bednění | I90: Dřevěné nosníky | J90: 8880139 | L90: 590821 | N90: 590821 | O90: LG Nástavec konzoly
A91: 581851 | B91: 581851 | C91: 2210159 | D91: 2210159 | E91: H20 Nosník dřevěný - 5,90m | F91: Nosník H 20 - 590 | G91: H581851 | H91: Bednění | I91: Dřevěné nosníky | J91: 2210159 | L91: 590736 | N91: 590736 | O91: LG Řetěz háku jeřábového (B)
A92: 930004 | B92: 930004 | C92: 2210159 | E92: H20 Nosník dřevěný - 5,90m | F92: TFB Nosník TFB 200 - 5,90 m | G92: 930004 | H92: Bednění | I92: Dřevěné nosníky | J92: 2210159 | L92: 590805 | N92: 590805 | O92: LG Koncová spín spojka (DW&čep
A93: 2210150 | B93: 2210150 | C93: 2210159 | E93: H20 Nosník dřevěný - 5,90m | F93: TFB Nosník TFB 200 - 5,90 m | G93: 2210150 | H93: Bednění | I93: Dřevěné nosníky | J93: 2210159 | L93: 590311 | N93: 590311 | O93: LG50 Hák jeřábový
A94: 2210159 | B94: 2210159 | C94: 2210159 | E94: H20 Nosník dřevěný - 5,90m | F94: TFB Nosník TFB 200 - 5,90 m | G94: 2210159 | H94: Bednění | I94: Dřevěné nosníky | J94: 2210159 | L94: 2860100 | N94: 2860100 | O94: Plastic Sleeving tube 22 mm -
A95: 2210259 | B95: 2210259 | C95: 2210159 | E95: H20 Nosník dřevěný - 5,90m | F95: TFB Nosník TFB 200 - 5,90 m (N) | G95: 2210259 | H95: Bednění | I95: Dřevěné nosníky | J95: 2210159 | L95: 2861501K | N95: 2861501 | O95: Plastic Cone 22 mm
A96: 502053 | B96: 502053 | C96: 2210160 | D96: 2210160 | E96: H20 Nosník dřevěný - 6,00m | F96: Nosník C20/8-600 | G96: H502053 | H96: Bednění | I96: Dřevěné nosníky | J96: 2210160 | N96: 5860505 | O96: Water Stop Plug SS 22
A97: 2210160 | B97: 2210160 | C97: 2210160 | E97: H20 Nosník dřevěný - 6,00m | F97: TFB Nosník TFB 200 - 6,00 m | G97: 2210160 | H97: Bednění | I97: Dřevěné nosníky | J97: 2210160 | N97: 2860502 | O97: Water Stop Cone SK 26
A98: 2210260 | B98: 2210260 | C98: 2210160 | E98: H20 Nosník dřevěný - 6,00m | F98: TFB Nosník TFB 200 - 6,00 m (N) | G98: 2210260 | H98: Bednění | I98: Dřevěné nosníky | J98: 2210160 | L98: 2860501 | N98: 2860501 | O98: Plastic Plug to panel
A99: 2210279 | B99: 2210279 | C99: 2210179 | D99: 2210179 | E99: H20 Nosník dřevěný - 7,90m | F99: TFB Nosník TFB 200 - 7,90 m (N) | G99: 2210279 | H99: Bednění | I99: Dřevěné nosníky | J99: 2210179 | L99: 2861001 | N99: 2861001 | O99: Disarming oil - 1 l
A100: 2210190 | B100: 2210190 | C100: 2210190 | D100: 2210190 | E100: H20 Nosník dřevěný - 9,00m | F100: TFB NOSNÍK TFB 200 - 9,00 M | G100: 2210190 | H100: Bednění | I100: Dřevěné nosníky | J100: 2210190 | N100: Variomax-komplet z Euroshal
A101: 2210199 | B101: 2210199 | C101: 2210199 | D101: 2210199 | E101: H20 Nosník dřevěný - 9,90m | F101: TFB Nosník TFB 200 - 9,90 m | G101: 2210199 | H101: Bednění | I101: Dřevěné nosníky | J101: 2210199 | N101: _501 600 | O101: _Nosník C20/8 - 1,50m
A102: 2210100 | B102: 2210100 | C102: 2210100 | D102: 2210100 | E102: H20 Nosník dřevěný - bm | F102: TFB Nosník TFB 200 - bm | G102: 2210100 | H102: Bednění | I102: Dřevěné nosníky | J102: 2210100 | N102: _501 633 | O102: _Nosník C20/8 - 1,80m
A103: 2210200 | B103: 2210200 | C103: 2210100 | E103: H20 Nosník dřevěný - bm | F103: TFB Nosník TFB 200 - bm (N) | G103: 2210200 | H103: Bednění | I103: Dřevěné nosníky | J103: 2210100 | N103: _501 666 | O103: _Nosník C20/8 - 2,10m
A104: 2212314 | B104: 2212314 | C104: 2212314 | D104: 2212314 | E104: H20 Nosník dřevěný super -1,45m | F104: NOSNÍK H20 SUPER - 1,45 M N | G104: 2212314 | H104: Bednění | I104: Dřevěné nosníky | J104: 2212314 | N104: _501 699 | O104: _Nosník C20/8 - 2,40m
A105: 2212219 | B105: 2212219 | C105: 2212219 | D105: 2212219 | E105: H20 Nosník dřevěný super -1,90m | F105: NOSNÍK H20 SUPER - 1,90 M | G105: 2212219 | H105: Bednění | I105: Dřevěné nosníky | J105: 2212219 | N105: _501 725 | O105: _Nosník C20/8 - 2,70m
A106: 2212225 | B106: 2212225 | C106: 2212225 | D106: 2212225 | E106: H20 Nosník dřevěný super -2,50m | F106: NOSNÍK H20 SUPER - 2,50 M | G106: 2212225 | H106: Bednění | I106: Dřevěné nosníky | J106: 2212225 | N106: _501 758 | O106: _Nosník C20/8 - 3,00m
A107: 2212229 | B107: 2212229 | C107: 2212229 | D107: 2212229 | E107: H20 Nosník dřevěný super -2,90m | F107: NOSNÍK H20 SUPER - 2,90 M | G107: 2212229 | H107: Bednění | I107: Dřevěné nosníky | J107: 2212229 | N107: _501 780 | O107: _Nosník C20/8 - 3,30m
A108: 2212233 | B108: 2212233 | C108: 2212233 | D108: 2212233 | E108: H20 Nosník dřevěný super -3,30m | F108: NOSNÍK H20 SUPER - 3,30 M | G108: 2212233 | H108: Bednění | I108: Dřevěné nosníky | J108: 2212233 | N108: _501 817 | O108: _Nosník C20/8 - 3,60m
A109: 2212236 | B109: 2212236 | C109: 2212236 | D109: 2212236 | E109: H20 Nosník dřevěný super -3,60m | F109: NOSNÍK H20 SUPER - 3,60 M | G109: 2212236 | H109: Bednění | I109: Dřevěné nosníky | J109: 2212236 | N109: _501 840 | O109: _Nosník C20/8 - 3,90m
A110: 2212239 | B110: 2212239 | C110: 2212239 | D110: 2212239 | E110: H20 Nosník dřevěný super -3,90m | F110: NOSNÍK H20 SUPER - 3,90 M | G110: 2212239 | H110: Bednění | I110: Dřevěné nosníky | J110: 2212239 | N110: _501 872 | O110: _Nosník C20/8 - 4,20m
A111: 2212245 | B111: 2212245 | C111: 2212245 | D111: 2212245 | E111: H20 Nosník dřevěný super -4,50m | F111: NOSNÍK H20 SUPER - 4,50 M | G111: 2212245 | H111: Bednění | I111: Dřevěné nosníky | J111: 2212245 | N111: _501 909 | O111: _Nosník C20/8 - 4,50m
A112: 2212249 | B112: 2212249 | C112: =IF(D112="",C111,D112) -> 2212249 | D112: 2212249 | E112: H20 Nosník dřevěný super -4,90m | F112: NOSNÍK H20 SUPER - 4,90 M | G112: 2212249 | H112: Bednění | I112: Dřevěné nosníky | J112: 2212249 | N112: _501 931 | O112: _Nosník C20/8 - 4,80m
A113: 2212259 | B113: 2212259 | C113: =IF(D113="",C112,D113) -> 2212259 | D113: 2212259 | E113: H20 Nosník dřevěný super -5,90m | F113: NOSNÍK H20 SUPER - 5,90 M | G113: 2212259 | H113: Bednění | I113: Dřevěné nosníky | J113: 2212259 | N113: _100 001 | O113: _Nosník C20/8 - 5,00m
A114: 9510161 | B114: 9510161 | C114: =IF(D114="",#REF!,D114) -> H118163 | D114: H118163 | E114: ID 15 Rám 1,0x0,1m koncový | F114: ID - KONCOVÝ RÁM 10 | G114: 9510161 | H114: Bednění | I114: ID 15 | J114: H118163 | N114: _100 002 | O114: _Nosník C20/8 - 5,40m
A115: 118163 | B115: 118163 | C115: =IF(D115="",C114,D115) -> H118163 | E115: ID 15 Rám 1,0x0,1m koncový | F115: ID-koncový rám 10 | G115: H118163 | H115: Bednění | I115: ID 15 | J115: H118163 | N115: _502 053 | O115: _Nosník C20/8 - 6,00m
A116: 77670 | B116: 077670 | C116: H077670 | D116: H077670 | E116: ID 15 Rám 1,0x0,33m | F116: ID-vyrovnávací rám 33 | G116: H077670 | H116: Bednění | I116: ID 15 | J116: H077670 | N116: _100 003 | O116: _Nosník C20/8 - 6,15m
A117: 9570002 | B117: 9570002 | C117: H057173 | D117: H057173 | E117: ID 15 Rám 1,0x1,0m | F117: ID - NORMÁLNÍ RÁM 100 | G117: 9570002 | H117: Bednění | I117: ID 15 | J117: H057173 | N117: _571 421 | O117: _Nosník DUO 20 - 1,80m
A118: 57173 | B118: 057173 | C118: H057173 | E118: ID 15 Rám 1,0x1,0m | F118: ID-normální rám 100 | G118: H057173 | H118: Bednění | I118: ID 15 | J118: H057173 | N118: _568 931 | O118: _Nosník DUO 20 - 2,45m
A119: 9510160 | B119: 9510160 | C119: H057162 | D119: H057162 | E119: ID 15 Rám 1,0x1,33m | F119: ID - NORMÁLNÍ RÁM 133 | G119: 9510160 | H119: Bednění | I119: ID 15 | J119: H057162 | N119: _568 942 | O119: _Nosník DUO 20 - 2,65m
A120: 57162 | B120: 057162 | C120: H057162 | E120: ID 15 Rám 1,0x1,33m | F120: ID-normální rám 133 | G120: H057162 | H120: Bednění | I120: ID 15 | J120: H057162 | N120: _568 953 | O120: _Nosník DUO 20 -2,90m
A121: 9510162 | B121: 9510162 | C121: H148530 | D121: H148530 | E121: ID 15 Stavitelná hlava | F121: ID - VŘETENOVÁ HLAVA 38/52 | G121: 9510162 | H121: Bednění | I121: ID 15 | J121: H148530 | N121: _568 964 | O121: _Nosník DUO 20 - 3,30m
A122: 148530 | B122: 148530 | C122: H148530 | E122: ID 15 Stavitelná hlava | F122: ID-vřetenová hlava 38/52 | G122: H148530 | H122: Bednění | I122: ID 15 | J122: H148530 | N122: _568 975 | O122: _Nosník DUO 20 - 3,60m
A123: 9510163 | B123: 9510163 | C123: H148552 | D123: H148552 | E123: ID 15 Stavitelná patka | F123: ID - VŘETENOVÁ NOHA 38/52 | G123: 9510163 | H123: Bednění | I123: ID 15 | J123: H148552 | N123: _568 986 | O123: _Nosník DUO 20 -3,90m
A124: 148552 | B124: 148552 | C124: H148552 | E124: ID 15 Stavitelná patka | F124: ID-Vřetenová noha 38/52 | G124: H148552 | H124: Bednění | I124: ID 15 | J124: H148552 | N124: _568 997 | O124: _Nosník DUO 20 - 4,50m
A125: 9510164 | B125: 9510164 | C125: H148574 | D125: H148574 | E125: ID 15 Ztužení 1,44m | F125: ID - DIAGONÁLA | G125: 9510164 | H125: Bednění | I125: ID 15 | J125: H148574 | N125: _569 009 | O125: _Nosník DUO 20 - 4,90m
A126: 148574 | B126: 148574 | C126: H148574 | E126: ID 15 Ztužení 1,44m | F126: ID-diagonála | G126: H148574 | H126: Bednění | I126: ID 15 | J126: H148574 | N126: _569 010 | O126: _Nosník DUO 20 - 5,90m
A127: 77680 | B127: 077680 | C127: H077680 | D127: H077680 | E127: ID 15 Ztužení pro rám 1,0x0,33m | F127: ID-příčná diagonála | G127: H077680 | H127: Bednění | I127: ID 15 | J127: H077680 | N127: _582319 | O127: _Nosník H20 - 11,90m
A128: 600356 | B128: 600356 | C128: H600356 | D128: H600356 | E128: ID -čep | F128: L-čep | G128: H600356 | H128: Bednění | I128: ID 15 | J128: H600356 | L128: 2210119 | N128: 2210119 | O128: H20 - 1,90m | P128: 310
A129: 600351 | B129: 600351 | C129: H600351 | D129: H600351 | E129: LR hlava 75 | F129: Hlava 75 | G129: H600351 | H129: Bednění | I129: ID 15 | J129: H600351 | L129: 2210124 | N129: 2210124 | O129: H20 - 2,45m | P129: =621+58 -> 679
A130: 600350 | B130: 600350 | C130: H600350 | D130: H600350 | E130: LR rám 100 | F130: Zátěžový rám 100 | G130: H600350 | H130: Bednění | I130: ID 15 | J130: H600350 | L130: 2210126 | N130: 2210126 | O130: H20 - 2,65m | P130: =1+146 -> 147
A131: 600348 | B131: 600348 | C131: H600348 | D131: H600348 | E131: LR rám 200 | F131: Zátěžový rám 200 | G131: H600348 | H131: Bednění | I131: ID 15 | J131: H600348 | L131: 2210129 | N131: 2210129 | O131: H20 - 2,90m | P131: =300+241 -> 541
A132: 600354 | B132: 600354 | C132: H600354 | D132: H600354 | E132: LR vřeteno 2 | F132: Zátěžové vřeteno 2 | G132: H600354 | H132: Bednění | I132: ID 15 | J132: H600354 | L132: 2210133 | N132: 2210133 | O132: H20 - 3,30m | P132: =765+365 -> 1130
A133: =VALUE(B133) -> 9510017 | B133: =IF(MID(G133,1,1)="H",REPLACE(G133,1,1,""),G133) -> 9510017 | C133: 4204500 | D133: 4204500 | E133: CHEMICKÁ KOTVA 400ML | F133: CHEMICKÁ KOTVA 400ML | G133: 9510017 | H133: Bednění | I133: Kotevní příslušenství | J133: 4204500 | L133: 2210136 | N133: 2210136 | O133: H20 - 3,60m | P133: 48
A134: 910016 | B134: 910016 | C134: 4207001 | D134: 4207001 | E134: Lešenářský montážní klíč Mk 22 | F134: Leš.klíč 22mm/II | G134: H910016 | H134: Bednění | I134: Kotevní příslušenství | J134: 4207001 | L134: =VLOOKUP(N134,$G$5:$J$2524,4,FALSE) -> 2210139 | N134: 2210139 | O134: H20 - 3,90m | P134: =1+600 -> 601
A135: 4207001 | B135: 4207001 | C135: 4207001 | E135: Lešenářský montážní klíč Mk 22 | F135: Lešenářský montážní klíč Mk 22 | G135: 4207001 | H135: Bednění | I135: Kotevní příslušenství | J135: 4207001 | L135: 2210145 | N135: 2210145 | O135: H20 - 4,50m | P135: 314
B136: 4207001S | C136: 4207001 | E136: Lešenářský montážní klíč Mk 22 | F136: Lešenářský montážní klíč Mk 22 | G136: 4207001S | H136: Bednění | I136: Kotevní příslušenství | J136: 4207001 | L136: 2210149 | N136: 2210149 | O136: H20 - 4,90m | P136: 1
A137: 9510067 | B137: 9510067 | C137: 4205601 | D137: 4205601 | E137: Plastová kotevní krytka 14 mm | F137: PB PLASTOVÁ KOTEVNÍ PŘÍCHYTKA | G137: 9510067 | H137: Bednění | I137: Kotevní příslušenství | J137: 4205601 | L137: 2210159 | N137: 2210159 | O137: H20 - 5,90m | P137: 1064
A138: 4205601 | B138: 4205601 | C138: 4205601 | E138: Plastová kotevní krytka 14 mm | F138: Plastová kotevní krytka 14 mm | G138: 4205601 | H138: Bednění | I138: Kotevní příslušenství | J138: 4205601 | N138: _180 | O138: _Nosník - R 24 - 1,80m
A139: 9510021 | B139: 9510021 | C139: 4204650 | D139: 4204650 | E139: Podložka závitové tyče R22 | F139: R22 PODLOŽKA | G139: 9510021 | H139: Bednění | I139: Kotevní příslušenství | J139: 4204650 | N139: _240 | O139: _Nosník - R 24 - 2,40m
A140: 9510022 | B140: 9510022 | C140: 4204700 | D140: 4204700 | E140: Závitová tyč M20-1.0M (tř.8.8) | F140: ZÁVITOVÁ TYČ M20-1M (TŘ.8.8) | G140: 9510022 | H140: Bednění | I140: Kotevní příslušenství | J140: 4204700 | N140: _270 | O140: _Nosník - R 24 - 2,70m
A141: 2507700 | B141: 2507700 | C141: 590815 | D141: 590815 | E141: LG360 Montážní klíč M50 L=1 m | F141: LG Utahovací klíč | G141: 2507700 | H141: Bednění | I141: Logik 360 | J141: 590815 | N141: _300 | O141: _Nosník - R 24 - 3,00m
A142: 2460212 | B142: 2460212 | C142: 590574 | D142: 590574 | E142: LG360 Panel vnější 1200 x 1250/1 | F142: LG360 Panel vnější 1200 x 1250 | G142: 2460212 | H142: Bednění | I142: Logik 360 | J142: 590574 | N142: _330 | O142: _Nosník - R 24 - 3,30m
A143: 2460112 | B143: 2460112 | C143: 590568 | D143: 590568 | E143: LG360 Panel vnit 1200 x 1240/1 | F143: LG360 Panel vnitřní 1200 x 1240 | G143: 2460112 | H143: Bednění | I143: Logik 360 | J143: 590568 | N143: _360 | O143: _Nosník - R 24 - 3,60m
A144: 590941 | B144: 590941 | C144: 590941 | D144: 590941 | E144: LG Příchytka A-rámu (matice) | F144: LG50 Napojení jedn. Opěrky/panel | G144: 590941 | H144: Bednění | I144: LOGIK 50 | J144: 590941 | N144: _390 | O144: _Nosník - R 24 - 3,90m
A145: 590311 | B145: 590311 | C145: 590311 | D145: 590311 | E145: LG50 Hák jeřábový | F145: LG50 Hák jeřábový | G145: 590311 | H145: Bednění | I145: LOGIK 50 | J145: 590311 | N145: _450 | O145: _Nosník - R 24 - 4,50m
A146: 590802 | B146: 590802 | C146: 590802 | D146: 590802 | E146: LG50 Kotevní spojka | F146: LG50 Opěrka jednostr. bednění | G146: 590802 | H146: Bednění | I146: LOGIK 50 | J146: 590802 | N146: _510 | O146: _Nosník - R 24 - 5,10m
A147: 590802 | B147: 590802 | C147: 590802 | E147: LG50 Kotevní spojka | F147: LG50 Opěrka jednostr.bednění | G147: 590802 | H147: Bednění | I147: LOGIK 50 | J147: 590802 | N147: _600 | O147: _Nosník - R 24 - 6,00m
A148: 870478 | B148: 870478 | C148: 870478 | D148: 870478 | E148: LG50 Nádstavec jednostr opěry | F148: LG50 Nádstavec jednostr. opěry | G148: 870478 | H148: Bednění | I148: LOGIK 50 | J148: 870478 | N148: _90 | O148: _Nosník - R 24 - 0,90m
A149: 590301 | B149: 590301 | C149: 590301 | D149: 590301 | E149: LG50 Nastavitelná spojka 0-15 cm | F149: LG50 Nastavitelná spojka 0-15 cm | G149: 590301 | H149: Bednění | I149: LOGIK 50 | J149: 590301 | L149: 2210114 | N149: 2210114 | O149: H20 - 1,45m | P149: 1
A150: 590134 | B150: 590134 | C150: 590134 | D150: 590134 | E150: LG50 Panel 1200 x 300 | F150: LG50 Panel 1200 x 300 | G150: 590134 | H150: Bednění | I150: LOGIK 50 | J150: 590134 | L150: 2210142 | N150: 2210142 | O150: H20 - 4,20m | P150: =1+143 -> 144
A151: 593134 | B151: 593134 | C151: 593134 | D151: 593134 | E151: LG50 Panel 1200 x 300 (B) | F151: LG50 Panel 1200 x 300 (B) | G151: 593134 | H151: Bednění | I151: LOGIK 50 | J151: 593134 | L151: 2210111 | N151: 2210111 | O151: H20 - 1,1m | P151: 288
A152: 590133 | B152: 590133 | C152: 590133 | D152: 590133 | E152: LG50 Panel 1200 x 450 | F152: LG50 Panel 1200 x 450 | G152: 590133 | H152: Bednění | I152: LOGIK 50 | J152: 590133 | L152: 2210112 | N152: 2210112 | O152: H20 - 1,25m
A153: 593133 | B153: 593133 | C153: 593133 | D153: 593133 | E153: LG50 Panel 1200 x 450 (B) | F153: LG50 Panel 1200 x 450 (B) | G153: 593133 | H153: Bednění | I153: LOGIK 50 | J153: 593133 | L153: 2210115 | N153: 2210115 | O153: H20 - 1,50m | P153: 1
A154: 590132 | B154: 590132 | C154: 590132 | D154: 590132 | E154: LG50 Panel 1200 x 600 | F154: LG50 Panel 1200 x 600 | G154: 590132 | H154: Bednění | I154: LOGIK 50 | J154: 590132 | L154: 2210117 | N154: 2210117 | O154: H20 - 1,75m
A155: 593132 | B155: 593132 | C155: 593132 | D155: 593132 | E155: LG50 Panel 1200 x 600 (B) | F155: LG50 Panel 1200 x 600 (B) | G155: 593132 | H155: Bednění | I155: LOGIK 50 | J155: 593132 | N155: 2210118 | O155: H20 - 1,80m
A156: 590135 | B156: 590135 | C156: 590135 | D156: 590135 | E156: LG50 Panel 1200 x 750 | F156: LG50 Panel 1200 x 750 | G156: 590135 | H156: Bednění | I156: LOGIK 50 | J156: 590135 | L156: 2210120 | N156: 2210120 | O156: H20 - 2,00m
A157: 590135 | B157: 590135 | C157: 590135 | E157: LG50 Panel 1200 x 750 | F157: LG50 Panel 1200 x 750 | G157: 590135 | H157: Bednění | I157: LOGIK 50 | J157: 590135 | N157: 2210121 | O157: H20 - 2,10m
A158: 590131 | B158: 590131 | C158: 590131 | D158: 590131 | E158: LG50 Panel 1200 x 900 | F158: LG50 Panel 1200 x 900 | G158: 590131 | H158: Bednění | I158: LOGIK 50 | J158: 590131 | L158: 2210124 | N158: 2210122 | O158: H20 - 2,25m
A159: 590131 | B159: 590131 | C159: 590131 | E159: LG50 Panel 1200 x 900 | F159: LG50 Panel 1200 x 900 | G159: 590131 | H159: Bednění | I159: LOGIK 50 | J159: 590131 | L159: 2210125 | N159: 2210125 | O159: H20 - 2,50m | P159: =329+85 -> 414
A160: 593131 | B160: 593131 | C160: 593131 | D160: 593131 | E160: LG50 Panel 1200 x 900 (B) | F160: LG50 Panel 1200 x 900 (B) | G160: 593131 | H160: Bednění | I160: LOGIK 50 | J160: 593131 | L160: 2210127 | N160: 2210127 | O160: H20 - 2,70m
A161: 593125 | B161: 593125 | C161: 593125 | D161: 593125 | E161: LG50 Panel 1500 x 1000 (B) | F161: LG50 Panel 1500 x 1000 (B) | G161: 593125 | H161: Bednění | I161: LOGIK 50 | J161: 593125 | L161: 2210130 | N161: 2210130 | O161: H20 - 3,00m
A162: 593128 | B162: 593128 | C162: 593128 | D162: 593128 | E162: LG50 Panel 1500 x 250 (B) | F162: LG50 Panel 1500 x 250 (B) | G162: 593128 | H162: Bednění | I162: LOGIK 50 | J162: 593128 | L162: 2210132 | N162: 2210132 | O162: H20 - 3,25m
A163: 590122 | B163: 590122 | C163: 590122 | D163: 590122 | E163: LG50 Panel 1500 x 300 | F163: LG50 Panel 1500 x 300 | G163: 590122 | H163: Bednění | I163: LOGIK 50 | J163: 590122 | L163: 2210135 | N163: 2210135 | O163: H20 - 3,50m
A164: 593122 | B164: 593122 | C164: 593122 | D164: 593122 | E164: LG50 Panel 1500 x 300 (B) | F164: LG50 Panel 1500 x 300 (B) | G164: 593122 | H164: Bednění | I164: LOGIK 50 | J164: 593122 | L164: 2210137 | N164: 2210137 | O164: H20 - 3,75m
A165: 590123 | B165: 590123 | C165: 590123 | D165: 590123 | E165: LG50 Panel 1500 x 450 | F165: LG50 Panel 1500 x 450 | G165: 590123 | H165: Bednění | I165: LOGIK 50 | J165: 590123 | L165: 2210140 | N165: 2210140 | O165: H20 - 4,00m
A166: 593123 | B166: 593123 | C166: 593123 | D166: 593123 | E166: LG50 Panel 1500 x 450 (B) | F166: LG50 Panel 1500 x 450 (B) | G166: 593123 | H166: Bednění | I166: LOGIK 50 | J166: 593123 | N166: 2210148 | O166: H20 - 4,80m
A167: 593127 | B167: 593127 | C167: 593127 | D167: 593127 | E167: LG50 Panel 1500 x 500 (B) | F167: LG50 Panel 1500 x 500 (B) | G167: 593127 | H167: Bednění | I167: LOGIK 50 | J167: 593127 | L167: 2210159 | N167: 2210150 | O167: H20 - 5,00m
A168: 590121 | B168: 590121 | C168: 590121 | D168: 590121 | E168: LG50 Panel 1500 x 600 | F168: LG50 Panel 1500 x 600 | G168: 590121 | H168: Bednění | I168: LOGIK 50 | J168: 590121 | N168: 2210152 | O168: H20 - 5,20m
A169: 593121 | B169: 593121 | C169: 593121 | D169: 593121 | E169: LG50 Panel 1500 x 600 (B) | F169: LG50 Panel 1500 x 600 (B) | G169: 593121 | H169: Bednění | I169: LOGIK 50 | J169: 593121 | L169: 2210160 | N169: 2210160 | O169: H20 - 6,00m
A170: 590126 | B170: 590126 | C170: 590126 | D170: 590126 | E170: LG50 Panel 1500 x 750 | F170: LG50 Panel 1500 x 750 | G170: 590126 | H170: Bednění | I170: LOGIK 50 | J170: 590126 | N170: 2210179 | O170: H20 - 7,90m
A171: 593126 | B171: 593126 | C171: 593126 | D171: 593126 | E171: LG50 Panel 1500 x 750 (B) | F171: LG50 Panel 1500 x 750 (B) | G171: 593126 | H171: Bednění | I171: LOGIK 50 | J171: 593126 | L171: 2210190 | N171: 2210190 | O171: H20 - 9,0m
A172: 590120 | B172: 590120 | C172: 590120 | D172: 590120 | E172: LG50 Panel 1500 x 900 | F172: LG50 Panel 1500 x 900 | G172: 590120 | H172: Bednění | I172: LOGIK 50 | J172: 590120 | L172: 2210199 | N172: 2210199 | O172: H20 - 9,90m
A173: 590120 | B173: 590120 | C173: 590120 | E173: LG50 Panel 1500 x 900 | F173: LG50 Panel 1500 x 900 | G173: 590120 | H173: Bednění | I173: LOGIK 50 | J173: 590120 | L173: 2210108 | N173: 2210108 | O173: H20 - 0,80 | P173: 277
A174: 593120 | B174: 593120 | C174: 593120 | D174: 593120 | E174: LG50 Panel 1500 x 900 (B) | F174: LG50 Panel 1500 x 900 (B) | G174: 593120 | H174: Bednění | I174: LOGIK 50 | J174: 593120 | N174: _101 | O174: _Třívrstvá deska 150/50
A175: 590104 | B175: 590104 | C175: 590104 | D175: 590104 | E175: LG50 Panel 2700 x 300 | F175: LG50 Panel 2700 x 300 | G175: 590104 | H175: Bednění | I175: LOGIK 50 | J175: 590104 | N175: _102 | O175: _Třívrstvá deska 200/50
A176: 593104 | B176: 593104 | C176: 593104 | D176: 593104 | E176: LG50 Panel 2700 x 300 (B) | F176: LG50 Panel 2700 x 300 (B) | G176: 593104 | H176: Bednění | I176: LOGIK 50 | J176: 593104 | N176: _103 | O176: _Třívrstvá deska 250/50
A177: 590103 | B177: 590103 | C177: 590103 | D177: 590103 | E177: LG50 Panel 2700 x 450 | F177: LG50 Panel 2700 x 450 | G177: 590103 | H177: Bednění | I177: LOGIK 50 | J177: 590103 | L177: 2817015 | N177: 2817015 | O177: Bednící třívrstvá deska 21mm -
A178: 593103 | B178: 593103 | C178: 593103 | D178: 593103 | E178: LG50 Panel 2700 x 450 (B) | F178: LG50 Panel 2700 x 450 (B) | G178: 593103 | H178: Bednění | I178: LOGIK 50 | J178: 593103 | L178: 2817020 | N178: 2817020 | O178: Bednící třívrstvá deska 21mm -
A179: 590102 | B179: 590102 | C179: =IF(D179="",C178,D179) -> 590102 | D179: 590102 | E179: LG50 Panel 2700 x 600 | F179: LG50 Panel 2700 x 600 | G179: 590102 | H179: Bednění | I179: LOGIK 50 | J179: 590102 | L179: 2817025 | N179: 2817025 | O179: Bednící třívrstvá deska 21mm -
A180: 593102 | B180: 593102 | C180: 593102 | D180: 593102 | E180: LG50 Panel 2700 x 600 (B) | F180: LG50 Panel 2700 x 600 (B) | G180: 593102 | H180: Bednění | I180: LOGIK 50 | J180: 593102 | N180: 2817010 | O180: Bednící třívrstvá deska 21mm -
A181: 590105 | B181: 590105 | C181: 590105 | D181: 590105 | E181: LG50 Panel 2700 x 750 | F181: LG50 Panel 2700 x 750 | G181: 590105 | H181: Bednění | I181: LOGIK 50 | J181: 590105 | L181: 2814925 | N181: 2814925 | O181: Bednící překližka 21mm 625 x 2
A182: 590105 | B182: 590105 | C182: 590105 | E182: LG50 Panel 2700 x 750 | F182: LG50 Panel 2700 x 750 | G182: 590105 | H182: Bednění | I182: LOGIK 50 | J182: 590105 | L182: 2815225 | N182: 2815225 | O182: Bednící překližka 21mm 1250 x
A183: 590101 | B183: 590101 | C183: 590101 | D183: 590101 | E183: LG50 Panel 2700 x 900 | F183: LG50 Panel 2700 x 900 | G183: 590101 | H183: Bednění | I183: LOGIK 50 | J183: 590101 | L183: 2814920 | N183: 2814920 | O183: Bednící překližka 21mm 625 x 2
A184: 590101 | B184: 590101 | C184: 590101 | E184: LG50 Panel 2700 x 900 | F184: LG50 Panel 2700 x 900 | G184: 590101 | H184: Bednění | I184: LOGIK 50 | J184: 590101 | L184: 2814915 | N184: 2814915 | O184: Bednící překližka 21mm 625 x 1
A185: 593101 | B185: 593101 | C185: 593101 | D185: 593101 | E185: LG50 Panel 2700 x 900 (B) | F185: LG50 Panel 2700 x 900 (B) | G185: 593101 | H185: Bednění | I185: LOGIK 50 | J185: 593101 | L185: 2814825 | N185: 2814825 | O185: Bednící překližka 21mm 500 x 2
A186: 593140 | B186: 593140 | C186: 593140 | D186: 593140 | E186: LG50 Panel 3000 x 1000 (B) | F186: LG50 Panel 3000 x 1000 (B) | G186: 593140 | H186: Bednění | I186: LOGIK 50 | J186: 593140 | L186: 2818501 | N186: 2818501 | O186: Překližka dořezová 20mm 1250 x
A187: 593143 | B187: 593143 | C187: 593143 | D187: 593143 | E187: LG50 Panel 3000 x 400 (B) | F187: LG50 Panel 3000 x 400 (B) | G187: 593143 | H187: Bednění | I187: LOGIK 50 | J187: 593143 | N187: _463021 | O187: _Stojka A 260 DIN
A188: 593142 | B188: 593142 | C188: 593142 | D188: 593142 | E188: LG50 Panel 3000 x 500 (B) | F188: LG50 Panel 3000 x 500 (B) | G188: 593142 | H188: Bednění | I188: LOGIK 50 | J188: 593142 | N188: _463032 | O188: _Stojka A 300 DIN
A189: 593141 | B189: 593141 | C189: 593141 | D189: 593141 | E189: LG50 Panel 3000 x 750 (B) | F189: LG50 Panel 3000 x 750 (B) | G189: 593141 | H189: Bednění | I189: LOGIK 50 | J189: 593141 | N189: _477048 | O189: _Stojka A 350 DIN
A190: 2422312 | B190: 2422312 | C190: 2422312 | D190: 2422312 | E190: LG50 Plech vnější kr 1200 | F190: LG50 Plech vnější kr. 1200 | G190: 2422312 | H190: Bednění | I190: LOGIK 50 | J190: 2422312 | N190: _463054 | O190: _Stojka A 410 DIN
A191: 2422315 | B191: 2422315 | C191: 2422315 | D191: 2422315 | E191: LG50 Plech vnější kr 1500 | F191: LG50 Plech vnější kr. 1500 | G191: 2422315 | H191: Bednění | I191: LOGIK 50 | J191: 2422315 | L191: H463065 | N191: H463065 | O191: Stojka AS 410 DIN
A192: 2422212 | B192: 2422212 | C192: 2422212 | D192: 2422212 | E192: LG50 Plech vnitřní kr 1200 | F192: LG50 Plech vnitřní kr. 1200 | G192: 2422212 | H192: Bednění | I192: LOGIK 50 | J192: 2422212 | L192: H463076 | N192: H463076 | O192: Stojka AS 490 DIN
A193: 2422215 | B193: 2422215 | C193: 2422215 | D193: 2422215 | E193: LG50 Plech vnitřní kr 1500 | F193: LG50 Plech vnitřní kr. 1500 | G193: 2422215 | H193: Bednění | I193: LOGIK 50 | J193: 2422215 | N193: _463 087 | O193: _Stojka AS 550 DIN
A194: 590273 | B194: 590273 | C194: 590273 | D194: 590273 | E194: LG50 Plech vyrov 1200 x 350 | F194: LG50 Plech vyrov. 1200 x 350 | G194: 590273 | H194: Bednění | I194: LOGIK 50 | J194: 590273 | N194: _558898 | O194: _Stojka Alu 500 DC
A195: 590273 | B195: 590273 | C195: 590273 | E195: LG50 Plech vyrov 1200 x 350 | F195: LG50 Plech vyrov. 1200 x 350 | G195: 590273 | H195: Bednění | I195: LOGIK 50 | J195: 590273 | N195: _C30 | O195: _Stojka Alu-Top 300
A196: 590272 | B196: 590272 | C196: 590272 | D196: 590272 | E196: LG50 Plech vyrov 1500 x 300 | F196: LG50 Plech vyrov. 1500 x 300 | G196: 590272 | H196: Bednění | I196: LOGIK 50 | J196: 590272 | N196: _E40 | O196: _Stojka Alu-Top 400
A197: =VALUE(B197) -> 590272 | B197: =IF(MID(G197,1,1)="H",REPLACE(G197,1,1,""),G197) -> 590272 | C197: 590272 | E197: LG50 Plech vyrov 1500 x 300 | F197: LG50 Plech vyrov. 1500 x 300 | G197: 590272 | H197: Bednění | I197: LOGIK 50 | J197: 590272 | N197: _D50 | O197: _Stojka Alu-Top 500
A198: 590271 | B198: 590271 | C198: 590271 | D198: 590271 | E198: LG50 Plech vyrov 2700 x 350 | F198: LG50 Plech vyrov. 2700 x 300 | G198: 590271 | H198: Bednění | I198: LOGIK 50 | J198: 590271 | L198: =VLOOKUP(N198,$G$5:$J$2524,4,FALSE) -> H601390 | N198: 601390 | O198: Europlus new 20 - 250
A199: 590271 | B199: 590271 | C199: 590271 | E199: LG50 Plech vyrov 2700 x 350 | F199: LG50 Plech vyrov. 2700 x 300 | G199: 590271 | H199: Bednění | I199: LOGIK 50 | J199: 590271 | L199: H601400 | N199: 601400 | O199: Europlus new 20 - 300
B200: AS100005 | C200: AS100005 | D200: AS100005 | E200: LG50 Průchodka PVC | F200: LG Průchodka PVC | G200: AS100005 | H200: Bednění | I200: LOGIK 50 | J200: AS100005 | L200: H601410 | N200: 601410 | O200: Europlus new 20 - 350
... 2324 more rows

Sheet postup update na TO (hidden)
A1: K obecnému ceníku je potřeba doplnit listy:
E2: Import TO
E3: převodní tabulka
E4: postup update na TO
A5: K obecnému ceníku je potřeba doplnit makra:
E6: přiřaď kódy helios na listu import TO
E7: import TO na listu SGB
A9: Postup:
B10: 1 | C10: nový obecný ceník otevřít a nakonec uložit jako šablonu TECHNICKY CENIK_200x_mecic_den (datum shodné s obecným ceníkem ke kterému se váže)
B11: 2 | C11: zkopírovat list "Import TO" a list "postup update na TO" do nového "TECHNICKÉHO CENÍKU".
C12: Při kopírování "import TO" zřejmě nalezne označené oblasti, které budou mít stejný název jako staré oblasti v listu SGB, souhlasit ANO několikrát po sobě
C13: a co se stalo: nové oblasti se stejným názvem nakopíruje, ale pouze s platností pro list "převodní tabulka" toto lze zkontrolovat:
C14: vložit - název - definovat (uvidím seznam oblastí a na pravé straně není nic nebo název listu ke kterému se tato oblast v rámci sešitu váže pouze).
B15: 3 | C15: Makro "přiřaď kódy Helios"
C16: Při "přenosnout nebo zkopírovat" listu import TO se současně nakopírovalo tlačítko makra "přořaď kódy Helios" i makro samotné, pouze není makro správně propojené s tlačítkem.
C17: Toto provedu takto:
D18: pravým butonem na okraj tlačítka a vybrat přiřadit makro
D19: otevře se tabulka a v ní vybrat "tento sešit" (zobrazí pouze makra vážící se k sešitu) pak vybrat správné makro "list2.Přiřaď kódy Helios" a potvrdit OK
C21: Makra jsou napsána ve visual basic. Jak se k nim dostanu:
D22: obě jsou na společném listě kde js mohu upravit:
D23: nástroje - makro - editor jazyka visual basic tam poklepat 2x na list 2 Import TO a otevřou se zápisy maker:
D24: nahoře | E24: přiřaď kódy helios | H24: toto makro není třeba upravovat
D25: pod ním | E25: import TO jsou oddělené čarou | H25: toto makro je třeba upravit
B27: 4 | C27: Nakopírovat list "převodní tabulka" - je to Chabrův produkt a při přechodu na Helios uváděl převodní vztah k RTM, čili tabulka se dále nevyvijí a není ji třeba upravovat
B28: 5 | C28: ze staršího ceníku přes schránku zkopírovat a vložit tlačítko makra "Import TO" na listu SGB a pak přesunout do správné pozice.
C29: přiřadit makro k tlačítku - pravé tlačítko - přiřadit makro a v tabulce vybrat tento sešit a makro "list2-Import TO" OK
C30: makro upravím podle níže uvedeného postupu - červeně je zápis tohoto makra.
B34: 6 | C34: do listu SGB nakopírovat makro "IMPORT TO"
E35: Zápis makra "import TO" je tento - červeně a potřebné úpravy jsou vyznačeny šipkami:
D36: nástroje - makro - editor jazyka visual basic tam poklepat 2x na list 2 Import TO a otevřou se zápisy maker:
E37: 'Spustí import z předem vyplněného listu "Import TO" - data vygenerovaná Tiposem, H-Cadem či Euroschallem
E38: Sub Import_TO()
E40: 'zjistí počet řádků v listu Import TO
E41: a = 1
E42: Do While Worksheets("Import TO").Cells(a + 2, 2).Value <> ""
E43: a = a + 1
E44: Loop
E46: 'Projde všechny položky ceníku a pokud se shoduje kód s kódem v listu Import TO, dopíše do sloupečku Projekce požadovaný počet
E48: For i = 8 To 1919
E49: For j = 3 To a + 2
E51: If Worksheets("Import TO").Cells(j, 1).Value = Worksheets("SGB").Cells(i, 12).Value Then
E52: Worksheets("SGB").Cells(i, 20).Value = Worksheets("Import TO").Cells(j, 2).Value
E53: Exit For
E54: Else
E56: End If
E58: Next j
E60: Next i
E63: End Sub
E65: Po opravě zápisu tabulku schodím křížkem bez uložení, uloží se až spolu s celou šablonou .xlt, editor maker je přístupný jako jiné otevřené xls soubory
C67: 7 | D67: Dále je třeba upravit makro "Export do HeG" na listě SGB, nebude správně fungovat pokud přidám sloupečky před sloupec CODE např. přidáním filtrace nových systémů
D68: úprava makra :
D69: nástroje-makro-editor jazyka visual basic zde otevřít složku moduls a tam makro Export
E71: Option Explicit
E73: Sub export_heg() 'vytvoří txt soubor pro import do HEG
E75: Dim r As Integer 'řádek zdroje
E76: Dim r2 As Integer 'řádek exportního souboru
E77: Dim S As Integer 'sloupec zdroje
E78: Dim i As Integer 'počítadlo
E79: Dim sesit As String 'proměnná pro načítání sumy počtů
E81: Application.DisplayAlerts = False 'vypne varovné zprávy
E82: Application.ScreenUpdating = False
E84: sesit = ActiveSheet.Name
E86: On Error Resume Next
E87: Sheets("export").Delete 'vymaže starý list export, je-li
E89: Sheets.Add
E90: ActiveSheet.Name = "export" 'založí nový list
E92: Sheets(sesit).Select
E94: r = 12
E95: r2 = 1
E96: S = Sheets(sesit).Range("pocet_vseho_filtr").Column
E98: For i = 1 To Sheets(sesit).Range("pocet_vseho_filtr").Rows.Count 'projde všechny řádky a překopíruje ty s kladným počtem ks
E99: If Sheets(sesit).Cells(i + r, S).Value > 0 Then
E100: Sheets("export").Cells(r2, 1).NumberFormat = "@"
E101: Sheets("export").Cells(r2, 1).Value = Sheets(sesit).Cells(i + r, 12).Value 'DM:7.7. bylo tam 5 místo 14, proč, nevim)
E102: Sheets("export").Cells(r2, 2).Value = Sheets(sesit).Cells(i + r, S).Value
E103: r2 = r2 + 1
E104: Else
E105: End If
E106: Next i
E108: uloz_data
E110: Sheets("export").Delete 'vymaže dočasný list export
E112: Application.DisplayAlerts = True
E113: Application.ScreenUpdating = True
E115: End Sub
D117: Makro "Export do HeG" vygeneruje textový soubor "exp_heg.txt", který obsahuje dva sloupečky: kód a počty kusů
D118: Vygenerovaný "exp_heg.txt" musí vypadat takto:
E119: H464600 | F119: 328
E120: H575603 | F120: 10
E121: H470024 | F121: 2
E122: H482410 | F122: 12
E123: H482420 | F123: 4
E124: H470013 | F124: 5
E125: H482431 | F125: 4
E126: H470002 | F126: 11
E127: H531312 | F127: 112
E128: H601418 | F128: 4
C132: 8 | D132: Makro "Editace" pro převod |SPRINT estimating upravit pořadová čísla sloupců
E134: If Cells(Rcount_a, 1).Value = Sheets("SGB").Cells(Rcount_b, 17).Value Or Cells(Rcount_a, 1).Value = Sheets("SGB").Cells(Rcount_b, 15).Value Then
E135: Sheets("SGB").Cells(Rcount_b, 25).Value = Cells(Rcount_a, 3).Value
E136: Flag = 1
E137: Else
A150: Makra Pavla Stehlíka:
A151: Doplň příslušenství = makro "PS"
A152: Nakopíruj přes schránku button a přiřaď Makro (až jej naimportuješ) Při přiřazení musím vybrat název souboru nového ceníku, jinak nefunguje
A153: Ze starého ceníku:
A154: Alt+F11 tam vyberu ve složce Modules makro PS a vyexportuju na plochu - soubor ps.bas
A155: V novém ceníku
A156: Alt+F11 a do složky modules importuji z plochy makro ps.bas
A157: V makru je třeba upravit název listu a čísla správných buněk
A158: Makro přiřazuje k LG50:
A159: konusy PVC | C159: 2861501 | D159: PVC zátka | E159: 2860501
A160: Hák LG | C160: 590311 | D160: řetěz | E160: 590736
A161: šestihran matice | C161: 2852805 | D161: podložka | E161: 2853010
A163: Makro chránička
A164: 2860120 | B164: Chránička 2,0m
A165: 2861001 | B165: Převádí olej z 1l na 10l | D165: 2861002
